Workbook

Sheet Leaderboard
A5: No. | B5: Name | C5: Team Name | D5: 2019-08-01 | E5: 2019-09-01 | F5: 2019-10-01 | G5: 2019-11-01 | H5: 2019-12-01 | I5: 2020-01-01 | J5: 2020-02-01 | K5: 2020-03-01 | L5: 2020-04-01 | M5: 2020-05-01 | N5: Total Pts
A6: 1 | B6: Anastas Popov | C6: Super Saints | D6: =HLOOKUP(B6,August!$I$1:$BP$87,87,FALSE) -> 173 | E6: =HLOOKUP(B6,September!$I$1:$BP$81,81,FALSE) -> 134 | F6: =HLOOKUP(B6,October!$I$1:$BP$57,57,FALSE) -> 25 | N6: =SUM(D6:M6) -> 332
A7: 2 | B7: Eamon Fox | C7: It's Never Over, Never Really Over | D7: =HLOOKUP(B7,August!$I$1:$BP$87,87,FALSE) -> 157 | E7: =HLOOKUP(B7,September!$I$1:$BP$81,81,FALSE) -> 124 | F7: =HLOOKUP(B7,October!$I$1:$BP$57,57,FALSE) -> 25 | N7: =SUM(D7:M7) -> 306
A8: 3 | B8: Sean O'Mairtin | C8: Creweless | D8: =HLOOKUP(B8,August!$I$1:$BP$87,87,FALSE) -> 161 | E8: =HLOOKUP(B8,September!$I$1:$BP$81,81,FALSE) -> 118 | F8: =HLOOKUP(B8,October!$I$1:$BP$57,57,FALSE) -> 20 | N8: =SUM(D8:M8) -> 299
A9: 4 | B9: Gary Fitzpatrick | C9: Sun's Out Gunn's Out | D9: =HLOOKUP(B9,August!$I$1:$BP$87,87,FALSE) -> 113 | E9: =HLOOKUP(B9,September!$I$1:$BP$81,81,FALSE) -> 165 | F9: =HLOOKUP(B9,October!$I$1:$BP$57,57,FALSE) -> 20 | N9: =SUM(D9:M9) -> 298
A10: 5 | B10: Con McSweeney | C10: Dowtcha Boys | D10: =HLOOKUP(B10,August!$I$1:$BP$87,87,FALSE) -> 138 | E10: =HLOOKUP(B10,September!$I$1:$BP$81,81,FALSE) -> 134 | F10: =HLOOKUP(B10,October!$I$1:$BP$57,57,FALSE) -> 20 | N10: =SUM(D10:M10) -> 292
A11: 6 | B11: Ralph Goodwin | C11: Gorey Celtic Stars | D11: =HLOOKUP(B11,August!$I$1:$BP$87,87,FALSE) -> 164 | E11: =HLOOKUP(B11,September!$I$1:$BP$81,81,FALSE) -> 96 | F11: =HLOOKUP(B11,October!$I$1:$BP$57,57,FALSE) -> 30 | N11: =SUM(D11:M11) -> 290
A12: 7 | B12: Gerard McCluskey | C12: Breffni Blues 2019 | D12: =HLOOKUP(B12,August!$I$1:$BP$87,87,FALSE) -> 113 | E12: =HLOOKUP(B12,September!$I$1:$BP$81,81,FALSE) -> 133 | F12: =HLOOKUP(B12,October!$I$1:$BP$57,57,FALSE) -> 40 | N12: =SUM(D12:M12) -> 286
A13: 8 | B13: Wayne Donovan | C13: Deprive The Five | D13: =HLOOKUP(B13,August!$I$1:$BP$87,87,FALSE) -> 154 | E13: =HLOOKUP(B13,September!$I$1:$BP$81,81,FALSE) -> 96 | F13: =HLOOKUP(B13,October!$I$1:$BP$57,57,FALSE) -> 35 | N13: =SUM(D13:M13) -> 285
A14: 9 | B14: John Brophy | C14: Carrig Combo | D14: =HLOOKUP(B14,August!$I$1:$BP$87,87,FALSE) -> 131 | E14: =HLOOKUP(B14,September!$I$1:$BP$81,81,FALSE) -> 113 | F14: =HLOOKUP(B14,October!$I$1:$BP$57,57,FALSE) -> 40 | N14: =SUM(D14:M14) -> 284
A15: 10 | B15: Brendan Maguire | C15: Cantthinkofone | D15: =HLOOKUP(B15,August!$I$1:$BP$87,87,FALSE) -> 141 | E15: =HLOOKUP(B15,September!$I$1:$BP$81,81,FALSE) -> 124 | F15: =HLOOKUP(B15,October!$I$1:$BP$57,57,FALSE) -> 15 | N15: =SUM(D15:M15) -> 280
A16: 11 | B16: Roisin Joyce | C16: LCR FC | D16: =HLOOKUP(B16,August!$I$1:$BP$87,87,FALSE) -> 121 | E16: =HLOOKUP(B16,September!$I$1:$BP$81,81,FALSE) -> 136 | F16: =HLOOKUP(B16,October!$I$1:$BP$57,57,FALSE) -> 22 | N16: =SUM(D16:M16) -> 279
A17: 12 | B17: Damien Martin | C17: Rath Rovers | D17: =HLOOKUP(B17,August!$I$1:$BP$87,87,FALSE) -> 131 | E17: =HLOOKUP(B17,September!$I$1:$BP$81,81,FALSE) -> 121 | F17: =HLOOKUP(B17,October!$I$1:$BP$57,57,FALSE) -> 25 | N17: =SUM(D17:M17) -> 277
A18: 13 | B18: Ciaran O'Hart | C18: Riverchapel Plate | D18: =HLOOKUP(B18,August!$I$1:$BP$87,87,FALSE) -> 129 | E18: =HLOOKUP(B18,September!$I$1:$BP$81,81,FALSE) -> 131 | F18: =HLOOKUP(B18,October!$I$1:$BP$57,57,FALSE) -> 15 | N18: =SUM(D18:M18) -> 275
A19: 14 | B19: Bobby Hynes | C19: Born To Run | D19: =HLOOKUP(B19,August!$I$1:$BP$87,87,FALSE) -> 140 | E19: =HLOOKUP(B19,September!$I$1:$BP$81,81,FALSE) -> 109 | F19: =HLOOKUP(B19,October!$I$1:$BP$57,57,FALSE) -> 25 | N19: =SUM(D19:M19) -> 274
A20: 15 | B20: Declan O'Neill | C20: Athletico Spurs | D20: =HLOOKUP(B20,August!$I$1:$BP$87,87,FALSE) -> 148 | E20: =HLOOKUP(B20,September!$I$1:$BP$81,81,FALSE) -> 115 | F20: =HLOOKUP(B20,October!$I$1:$BP$57,57,FALSE) -> 10 | N20: =SUM(D20:M20) -> 273
A21: 16 | B21: Callum Dunne | C21: Seattle Sound Lads | D21: =HLOOKUP(B21,August!$I$1:$BP$87,87,FALSE) -> 128 | E21: =HLOOKUP(B21,September!$I$1:$BP$81,81,FALSE) -> 114 | F21: =HLOOKUP(B21,October!$I$1:$BP$57,57,FALSE) -> 30 | N21: =SUM(D21:M21) -> 272
A22: 17 | B22: Brian Prendergast | C22: Magical Mustafi | D22: =HLOOKUP(B22,August!$I$1:$BP$87,87,FALSE) -> 130 | E22: =HLOOKUP(B22,September!$I$1:$BP$81,81,FALSE) -> 120 | F22: =HLOOKUP(B22,October!$I$1:$BP$57,57,FALSE) -> 20 | N22: =SUM(D22:M22) -> 270
A23: 18 | B23: Paul Moore | C23: TAA LAA | D23: =HLOOKUP(B23,August!$I$1:$BP$87,87,FALSE) -> 134 | E23: =HLOOKUP(B23,September!$I$1:$BP$81,81,FALSE) -> 111 | F23: =HLOOKUP(B23,October!$I$1:$BP$57,57,FALSE) -> 25 | N23: =SUM(D23:M23) -> 270
A24: 19 | B24: Gary McGurk | C24: Origi In Madrid | D24: =HLOOKUP(B24,August!$I$1:$BP$87,87,FALSE) -> 141 | E24: =HLOOKUP(B24,September!$I$1:$BP$81,81,FALSE) -> 112 | F24: =HLOOKUP(B24,October!$I$1:$BP$57,57,FALSE) -> 15 | N24: =SUM(D24:M24) -> 268
A25: 20 | B25: Matthew Lynch | C25: The Village Idiots | D25: =HLOOKUP(B25,August!$I$1:$BP$87,87,FALSE) -> 136 | E25: =HLOOKUP(B25,September!$I$1:$BP$81,81,FALSE) -> 112 | F25: =HLOOKUP(B25,October!$I$1:$BP$57,57,FALSE) -> 20 | N25: =SUM(D25:M25) -> 268
A26: 21 | B26: Craig Calvert | C26: United Manchester FC | D26: =HLOOKUP(B26,August!$I$1:$BP$87,87,FALSE) -> 140 | E26: =HLOOKUP(B26,September!$I$1:$BP$81,81,FALSE) -> 104 | F26: =HLOOKUP(B26,October!$I$1:$BP$57,57,FALSE) -> 20 | N26: =SUM(D26:M26) -> 264
A27: 22 | B27: Kevin Philpott | C27: Kevlaar | D27: =HLOOKUP(B27,August!$I$1:$BP$87,87,FALSE) -> 111 | E27: =HLOOKUP(B27,September!$I$1:$BP$81,81,FALSE) -> 133 | F27: =HLOOKUP(B27,October!$I$1:$BP$57,57,FALSE) -> 20 | N27: =SUM(D27:M27) -> 264
A28: 23 | B28: Chris Keohan | C28: Moves Like Agger | D28: =HLOOKUP(B28,August!$I$1:$BP$87,87,FALSE) -> 148 | E28: =HLOOKUP(B28,September!$I$1:$BP$81,81,FALSE) -> 94 | F28: =HLOOKUP(B28,October!$I$1:$BP$57,57,FALSE) -> 20 | N28: =SUM(D28:M28) -> 262
A29: 24 | B29: Joe Turner | C29: The Joy of Six | D29: =HLOOKUP(B29,August!$I$1:$BP$87,87,FALSE) -> 138 | E29: =HLOOKUP(B29,September!$I$1:$BP$81,81,FALSE) -> 99 | F29: =HLOOKUP(B29,October!$I$1:$BP$57,57,FALSE) -> 25 | N29: =SUM(D29:M29) -> 262
A30: 25 | B30: Jonathan Fox | C30: Klopp Of The League | D30: =HLOOKUP(B30,August!$I$1:$BP$87,87,FALSE) -> 138 | E30: =HLOOKUP(B30,September!$I$1:$BP$81,81,FALSE) -> 94 | F30: =HLOOKUP(B30,October!$I$1:$BP$57,57,FALSE) -> 30 | N30: =SUM(D30:M30) -> 262
A31: 26 | B31: David Cooney | C31: Lifeafterhazard | D31: =HLOOKUP(B31,August!$I$1:$BP$87,87,FALSE) -> 111 | E31: =HLOOKUP(B31,September!$I$1:$BP$81,81,FALSE) -> 130 | F31: =HLOOKUP(B31,October!$I$1:$BP$57,57,FALSE) -> 20 | N31: =SUM(D31:M31) -> 261
A32: 27 | B32: Niall Carroll | C32: Dejan 6 | D32: =HLOOKUP(B32,August!$I$1:$BP$87,87,FALSE) -> 116 | E32: =HLOOKUP(B32,September!$I$1:$BP$81,81,FALSE) -> 128 | F32: =HLOOKUP(B32,October!$I$1:$BP$57,57,FALSE) -> 15 | N32: =SUM(D32:M32) -> 259
A33: 28 | B33: Philip Jordan | C33: Frankie's Army | D33: =HLOOKUP(B33,August!$I$1:$BP$87,87,FALSE) -> 136 | E33: =HLOOKUP(B33,September!$I$1:$BP$81,81,FALSE) -> 83 | F33: =HLOOKUP(B33,October!$I$1:$BP$57,57,FALSE) -> 40 | N33: =SUM(D33:M33) -> 259
A34: 29 | B34: Anthony Michaels | C34: Offside Ref | D34: =HLOOKUP(B34,August!$I$1:$BP$87,87,FALSE) -> 123 | E34: =HLOOKUP(B34,September!$I$1:$BP$81,81,FALSE) -> 94 | F34: =HLOOKUP(B34,October!$I$1:$BP$57,57,FALSE) -> 40 | N34: =SUM(D34:M34) -> 257
A35: 30 | B35: Caroline Carroll | C35: Mane 10 | D35: =HLOOKUP(B35,August!$I$1:$BP$87,87,FALSE) -> 138 | E35: =HLOOKUP(B35,September!$I$1:$BP$81,81,FALSE) -> 99 | F35: =HLOOKUP(B35,October!$I$1:$BP$57,57,FALSE) -> 20 | N35: =SUM(D35:M35) -> 257
A36: 31 | B36: Gerry Moore | C36: Unai Has The Pepe In His Step | D36: =HLOOKUP(B36,August!$I$1:$BP$87,87,FALSE) -> 121 | E36: =HLOOKUP(B36,September!$I$1:$BP$81,81,FALSE) -> 121 | F36: =HLOOKUP(B36,October!$I$1:$BP$57,57,FALSE) -> 15 | N36: =SUM(D36:M36) -> 257
A37: 32 | B37: Dave McGinley | C37: Reservoir Dubs | D37: =HLOOKUP(B37,August!$I$1:$BP$87,87,FALSE) -> 115 | E37: =HLOOKUP(B37,September!$I$1:$BP$81,81,FALSE) -> 121 | F37: =HLOOKUP(B37,October!$I$1:$BP$57,57,FALSE) -> 20 | N37: =SUM(D37:M37) -> 256
A38: 33 | B38: Micheal Joyce | C38: At Last 2019 | D38: =HLOOKUP(B38,August!$I$1:$BP$87,87,FALSE) -> 121 | E38: =HLOOKUP(B38,September!$I$1:$BP$81,81,FALSE) -> 118 | F38: =HLOOKUP(B38,October!$I$1:$BP$57,57,FALSE) -> 15 | N38: =SUM(D38:M38) -> 254
A39: 34 | B39: Brian Haughton | C39: The Wexicans | D39: =HLOOKUP(B39,August!$I$1:$BP$87,87,FALSE) -> 118 | E39: =HLOOKUP(B39,September!$I$1:$BP$81,81,FALSE) -> 109 | F39: =HLOOKUP(B39,October!$I$1:$BP$57,57,FALSE) -> 25 | N39: =SUM(D39:M39) -> 252
A40: 35 | B40: Gavin Morgan | C40: Aimless Wanderers | D40: =HLOOKUP(B40,August!$I$1:$BP$87,87,FALSE) -> 123 | E40: =HLOOKUP(B40,September!$I$1:$BP$81,81,FALSE) -> 104 | F40: =HLOOKUP(B40,October!$I$1:$BP$57,57,FALSE) -> 25 | N40: =SUM(D40:M40) -> 252
A41: 36 | B41: Javier Suarez | C41: Tika Taka | D41: =HLOOKUP(B41,August!$I$1:$BP$87,87,FALSE) -> 125 | E41: =HLOOKUP(B41,September!$I$1:$BP$81,81,FALSE) -> 79 | F41: =HLOOKUP(B41,October!$I$1:$BP$57,57,FALSE) -> 45 | N41: =SUM(D41:M41) -> 249
A42: 37 | B42: Karl Boland | C42: Boaty McBoatface FC | D42: =HLOOKUP(B42,August!$I$1:$BP$87,87,FALSE) -> 121 | E42: =HLOOKUP(B42,September!$I$1:$BP$81,81,FALSE) -> 113 | F42: =HLOOKUP(B42,October!$I$1:$BP$57,57,FALSE) -> 15 | N42: =SUM(D42:M42) -> 249
A43: 38 | B43: Gerry Draper | C43: Everton10 | D43: =HLOOKUP(B43,August!$I$1:$BP$87,87,FALSE) -> 118 | E43: =HLOOKUP(B43,September!$I$1:$BP$81,81,FALSE) -> 99 | F43: =HLOOKUP(B43,October!$I$1:$BP$57,57,FALSE) -> 30 | N43: =SUM(D43:M43) -> 247
A44: 39 | B44: Phil Doyle | C44: FC Muertos Errantes | D44: =HLOOKUP(B44,August!$I$1:$BP$87,87,FALSE) -> 135 | E44: =HLOOKUP(B44,September!$I$1:$BP$81,81,FALSE) -> 96 | F44: =HLOOKUP(B44,October!$I$1:$BP$57,57,FALSE) -> 15 | N44: =SUM(D44:M44) -> 246
A45: 40 | B45: Gary Donnelly | C45: Storm A Brewstering…. | D45: =HLOOKUP(B45,August!$I$1:$BP$87,87,FALSE) -> 131 | E45: =HLOOKUP(B45,September!$I$1:$BP$81,81,FALSE) -> 93 | F45: =HLOOKUP(B45,October!$I$1:$BP$57,57,FALSE) -> 20 | N45: =SUM(D45:M45) -> 244
A46: 41 | B46: Joe Behan | C46: Melchester Rovers | D46: =HLOOKUP(B46,August!$I$1:$BP$87,87,FALSE) -> 119 | E46: =HLOOKUP(B46,September!$I$1:$BP$81,81,FALSE) -> 108 | F46: =HLOOKUP(B46,October!$I$1:$BP$57,57,FALSE) -> 15 | N46: =SUM(D46:M46) -> 242
A47: 42 | B47: Trevor Byrne | C47: Noddys 11 | D47: =HLOOKUP(B47,August!$I$1:$BP$87,87,FALSE) -> 103 | E47: =HLOOKUP(B47,September!$I$1:$BP$81,81,FALSE) -> 116 | F47: =HLOOKUP(B47,October!$I$1:$BP$57,57,FALSE) -> 22 | N47: =SUM(D47:M47) -> 241
A48: 43 | B48: Simon Scanlon | C48: Taking It Serious This Year | D48: =HLOOKUP(B48,August!$I$1:$BP$87,87,FALSE) -> 136 | E48: =HLOOKUP(B48,September!$I$1:$BP$81,81,FALSE) -> 92 | F48: =HLOOKUP(B48,October!$I$1:$BP$57,57,FALSE) -> 10 | N48: =SUM(D48:M48) -> 238
A49: 44 | B49: Barry McGoldrick | C49: The Blarney Pilgrims | D49: =HLOOKUP(B49,August!$I$1:$BP$87,87,FALSE) -> 98 | E49: =HLOOKUP(B49,September!$I$1:$BP$81,81,FALSE) -> 114 | F49: =HLOOKUP(B49,October!$I$1:$BP$57,57,FALSE) -> 25 | N49: =SUM(D49:M49) -> 237
A50: 45 | B50: Brian Mullen | C50: Where's Tony Galvin Now? | D50: =HLOOKUP(B50,August!$I$1:$BP$87,87,FALSE) -> 123 | E50: =HLOOKUP(B50,September!$I$1:$BP$81,81,FALSE) -> 104 | F50: =HLOOKUP(B50,October!$I$1:$BP$57,57,FALSE) -> 10 | N50: =SUM(D50:M50) -> 237
A51: 46 | B51: Liam Geraghty | C51: What Shade of Blue? | D51: =HLOOKUP(B51,August!$I$1:$BP$87,87,FALSE) -> 118 | E51: =HLOOKUP(B51,September!$I$1:$BP$81,81,FALSE) -> 99 | F51: =HLOOKUP(B51,October!$I$1:$BP$57,57,FALSE) -> 20 | N51: =SUM(D51:M51) -> 237
A52: 47 | B52: Liam Keohan | C52: Irish Gunner | D52: =HLOOKUP(B52,August!$I$1:$BP$87,87,FALSE) -> 105 | E52: =HLOOKUP(B52,September!$I$1:$BP$81,81,FALSE) -> 114 | F52: =HLOOKUP(B52,October!$I$1:$BP$57,57,FALSE) -> 15 | N52: =SUM(D52:M52) -> 234
A53: 48 | B53: Richard Johnston | C53: Ba Mhaith Liom Cupan Tae | D53: =HLOOKUP(B53,August!$I$1:$BP$87,87,FALSE) -> 121 | E53: =HLOOKUP(B53,September!$I$1:$BP$81,81,FALSE) -> 81 | F53: =HLOOKUP(B53,October!$I$1:$BP$57,57,FALSE) -> 32 | N53: =SUM(D53:M53) -> 234
A54: 49 | B54: Aidan Scanlon | C54: Kilflynn Santos | D54: =HLOOKUP(B54,August!$I$1:$BP$87,87,FALSE) -> 90 | E54: =HLOOKUP(B54,September!$I$1:$BP$81,81,FALSE) -> 127 | F54: =HLOOKUP(B54,October!$I$1:$BP$57,57,FALSE) -> 15 | N54: =SUM(D54:M54) -> 232
A55: 50 | B55: Graham Goodwin | C55: Pochettino's Parrot | D55: =HLOOKUP(B55,August!$I$1:$BP$87,87,FALSE) -> 88 | E55: =HLOOKUP(B55,September!$I$1:$BP$81,81,FALSE) -> 118 | F55: =HLOOKUP(B55,October!$I$1:$BP$57,57,FALSE) -> 25 | N55: =SUM(D55:M55) -> 231
A56: 51 | B56: Paul Prendergast | C56: The Untouchables | D56: =HLOOKUP(B56,August!$I$1:$BP$87,87,FALSE) -> 126 | E56: =HLOOKUP(B56,September!$I$1:$BP$81,81,FALSE) -> 78 | F56: =HLOOKUP(B56,October!$I$1:$BP$57,57,FALSE) -> 25 | N56: =SUM(D56:M56) -> 229
A57: 52 | B57: Frank McSweeney | C57: Poolabu | D57: =HLOOKUP(B57,August!$I$1:$BP$87,87,FALSE) -> 128 | E57: =HLOOKUP(B57,September!$I$1:$BP$81,81,FALSE) -> 84 | F57: =HLOOKUP(B57,October!$I$1:$BP$57,57,FALSE) -> 15 | N57: =SUM(D57:M57) -> 227
A58: 53 | B58: Kris Stainton | C58: Ole's Revolutionaries | D58: =HLOOKUP(B58,August!$I$1:$BP$87,87,FALSE) -> 116 | E58: =HLOOKUP(B58,September!$I$1:$BP$81,81,FALSE) -> 100 | F58: =HLOOKUP(B58,October!$I$1:$BP$57,57,FALSE) -> 10 | N58: =SUM(D58:M58) -> 226
A59: 54 | B59: Aidan White | C59: Return of the Villans | D59: =HLOOKUP(B59,August!$I$1:$BP$87,87,FALSE) -> 104 | E59: =HLOOKUP(B59,September!$I$1:$BP$81,81,FALSE) -> 96 | F59: =HLOOKUP(B59,October!$I$1:$BP$57,57,FALSE) -> 25 | N59: =SUM(D59:M59) -> 225
A60: 55 | B60: Andy Dunne | C60: Matipswich Town | D60: =HLOOKUP(B60,August!$I$1:$BP$87,87,FALSE) -> 90 | E60: =HLOOKUP(B60,September!$I$1:$BP$81,81,FALSE) -> 104 | F60: =HLOOKUP(B60,October!$I$1:$BP$57,57,FALSE) -> 30 | N60: =SUM(D60:M60) -> 224
A61: 56 | B61: Aiden Desch | C61: NumNuts | D61: =HLOOKUP(B61,August!$I$1:$BP$87,87,FALSE) -> 119 | E61: =HLOOKUP(B61,September!$I$1:$BP$81,81,FALSE) -> 75 | F61: =HLOOKUP(B61,October!$I$1:$BP$57,57,FALSE) -> 25 | N61: =SUM(D61:M61) -> 219
A62: 57 | B62: Victoria Reid | C62: Tristan's Titans | D62: =HLOOKUP(B62,August!$I$1:$BP$87,87,FALSE) -> 109 | E62: =HLOOKUP(B62,September!$I$1:$BP$81,81,FALSE) -> 95 | F62: =HLOOKUP(B62,October!$I$1:$BP$57,57,FALSE) -> 15 | N62: =SUM(D62:M62) -> 219
A63: 58 | B63: Darragh Kenny | C63: Luca Connell CSC | D63: =HLOOKUP(B63,August!$I$1:$BP$87,87,FALSE) -> 118 | E63: =HLOOKUP(B63,September!$I$1:$BP$81,81,FALSE) -> 85 | F63: =HLOOKUP(B63,October!$I$1:$BP$57,57,FALSE) -> 15 | N63: =SUM(D63:M63) -> 218
A64: 59 | B64: Mai-Ly Turner | C64: Mo The Magnificent | D64: =HLOOKUP(B64,August!$I$1:$BP$87,87,FALSE) -> 123 | E64: =HLOOKUP(B64,September!$I$1:$BP$81,81,FALSE) -> 74 | F64: =HLOOKUP(B64,October!$I$1:$BP$57,57,FALSE) -> 20 | N64: =SUM(D64:M64) -> 217
A65: 60 | B65: Eoghan Farrelly | C65: Last Chance Saloon | D65: =HLOOKUP(B65,August!$I$1:$BP$87,87,FALSE) -> 112 | E65: =HLOOKUP(B65,September!$I$1:$BP$81,81,FALSE) -> 75 | F65: =HLOOKUP(B65,October!$I$1:$BP$57,57,FALSE) -> 25 | N65: =SUM(D65:M65) -> 212

Sheet August
I1: Aidan Scanlon | J1: Aidan White | K1: Aiden Desch | L1: Anastas Popov | M1: Andy Dunne | N1: Anthony Michaels | O1: Barry McGoldrick | P1: Bobby Hynes | Q1: Brendan Maguire | R1: Brian Haughton | S1: Brian Mullen | T1: Brian Prendergast | U1: Callum Dunne | V1: Caroline Carroll | W1: Chris Keohan | X1: Ciaran O'Hart | Y1: Con McSweeney | Z1: Craig Calvert | AA1: Damien Martin | AB1: Darragh Kenny | AC1: Dave McGinley | AD1: David Cooney | AE1: Declan O'Neill | AF1: Eamon Fox | AG1: Eoghan Farrelly | AH1: Frank McSweeney | AI1: Gary Donnelly | AJ1: Gary Fitzpatrick | AK1: Gary McGurk | AL1: Gavin Morgan | AM1: Gerard McCluskey | AN1: Gerry Draper | AO1: Gerry Moore | AP1: Graham Goodwin | AQ1: Javier Suarez | AR1: Joe Behan | AS1: Joe Turner | AT1: John Brophy | AU1: Jonathan Fox | AV1: Karl Boland | AW1: Kevin Philpott | AX1: Kris Stainton | AY1: Liam Geraghty | AZ1: Liam Keohan | BA1: Mai-Ly Turner | BB1: Matthew Lynch | BC1: Micheal Joyce | BD1: Niall Carroll | BE1: Paul Moore | BF1: Paul Prendergast | BG1: Phil Doyle | BH1: Philip Jordan | BI1: Ralph Goodwin | BJ1: Richard Johnston | BK1: Roisin Joyce | BL1: Sean O'Mairtin | BM1: Simon Scanlon | BN1: Trevor Byrne | BO1: Victoria Reid | BP1: Wayne Donovan
A2: Day | B2: Date | C2: Teams | G2: Time
A3: Fri | B3: 2019-08-09 | C3: Liverpool | D3: 4 | E3: 1 | F3: Norwich City | G3: 20:00:00 | I3: 5 | J3: 5 | K3: 5 | L3: 5 | M3: 5 | N3: 5 | O3: 5 | P3: 5 | Q3: 5 | R3: 5 | S3: 5 | T3: 5 | U3: 5 | V3: 5 | W3: 5 | X3: 5 | Y3: 5 | Z3: 5 | AA3: 5 | AB3: 5 | AC3: 5 | AD3: 5 | AE3: 5 | AF3: 5 | AG3: 5 | AH3: 5 | AI3: 5 | AJ3: 5 | AK3: 5 | AL3: 5 | AM3: 5 | AN3: 5 | AO3: 5 | AP3: 5 | AQ3: 5 | AR3: 10 | AS3: 5 | AT3: 5 | AU3: 5 | AV3: 5 | AW3: 5 | AX3: 5 | AY3: 5 | AZ3: 5 | BA3: 5 | BB3: 5 | BC3: 5 | BD3: 5 | BE3: 5 | BF3: 5 | BG3: 5 | BH3: 5 | BI3: 5 | BJ3: 5 | BK3: 5 | BL3: 5 | BM3: 5 | BN3: 5 | BO3: 5 | BP3: 5
A4: Sat | B4: 2019-08-10 | C4: West Ham | D4: 0 | E4: 5 | F4: Man City | G4: 12:30:00 | I4: 5 | J4: 5 | K4: 5 | L4: 5 | M4: 5 | N4: 5 | O4: 5 | P4: 5 | Q4: 5 | R4: 5 | S4: 5 | T4: 5 | U4: 5 | V4: 5 | W4: 5 | X4: 0 | Y4: 5 | Z4: 5 | AA4: 5 | AB4: 5 | AC4: 5 | AD4: 5 | AE4: 5 | AF4: 5 | AG4: 5 | AH4: 5 | AI4: 5 | AJ4: 5 | AK4: 5 | AL4: 5 | AM4: 5 | AN4: 5 | AO4: 5 | AP4: 5 | AQ4: 5 | AR4: 5 | AS4: 5 | AT4: 5 | AU4: 5 | AV4: 5 | AW4: 5 | AX4: 5 | AY4: 5 | AZ4: 5 | BA4: 5 | BB4: 5 | BC4: 0 | BD4: 5 | BE4: 5 | BF4: 5 | BG4: 5 | BH4: 5 | BI4: 5 | BJ4: 5 | BK4: 5 | BL4: 5 | BM4: 5 | BN4: 5 | BO4: 5 | BP4: 5
A5: Sat | B5: 2019-08-10 | C5: Bournemouth | D5: 1 | E5: 1 | F5: Sheffield United | G5: 15:00:00 | I5: 0 | J5: 0 | K5: 0 | L5: 10 | M5: 0 | N5: 10 | O5: 5 | P5: 0 | Q5: 10 | R5: 0 | S5: 10 | T5: 10 | U5: 0 | V5: 0 | W5: 0 | X5: 0 | Y5: 10 | Z5: 0 | AA5: 0 | AB5: 5 | AC5: 0 | AD5: 0 | AE5: 0 | AF5: 10 | AG5: 0 | AH5: 10 | AI5: 5 | AJ5: 0 | AK5: 0 | AL5: 0 | AM5: 10 | AN5: 0 | AO5: 0 | AP5: 0 | AQ5: 0 | AR5: 10 | AS5: 0 | AT5: 0 | AU5: 0 | AV5: 0 | AW5: 0 | AX5: 0 | AY5: 0 | AZ5: 0 | BA5: 0 | BB5: 10 | BC5: 0 | BD5: 0 | BE5: 10 | BF5: 0 | BG5: 0 | BH5: 10 | BI5: 0 | BJ5: 0 | BK5: 0 | BL5: 0 | BM5: 10 | BN5: 0 | BO5: 0 | BP5: 0
A6: Sat | B6: 2019-08-10 | C6: Burnley | D6: 3 | E6: 0 | F6: Southampton | G6: 15:00:00 | I6: 0 | J6: 0 | K6: 0 | L6: 5 | M6: 5 | N6: 5 | O6: 0 | P6: 0 | Q6: 5 | R6: 0 | S6: 5 | T6: 5 | U6: 0 | V6: 0 | W6: 0 | X6: 5 | Y6: 5 | Z6: 5 | AA6: 0 | AB6: 0 | AC6: 0 | AD6: 0 | AE6: 0 | AF6: 0 | AG6: 0 | AH6: 0 | AI6: 5 | AJ6: 0 | AK6: 0 | AL6: 5 | AM6: 5 | AN6: 5 | AO6: 0 | AP6: 0 | AQ6: 0 | AR6: 0 | AS6: 5 | AT6: 5 | AU6: 5 | AV6: 0 | AW6: 0 | AX6: 5 | AY6: 0 | AZ6: 0 | BA6: 0 | BB6: 0 | BC6: 0 | BD6: 0 | BE6: 0 | BF6: 5 | BG6: 0 | BH6: 0 | BI6: 5 | BJ6: 0 | BK6: 5 | BL6: 5 | BM6: 5 | BN6: 0 | BO6: 5 | BP6: 5
A7: Sat | B7: 2019-08-10 | C7: Crystal Palace | D7: 0 | E7: 0 | F7: Everton | G7: 15:00:00 | I7: 0 | J7: 0 | K7: 0 | L7: 5 | M7: 0 | N7: 0 | O7: 0 | P7: 5 | Q7: 5 | R7: 5 | S7: 0 | T7: 0 | U7: 0 | V7: 0 | W7: 0 | X7: 0 | Y7: 5 | Z7: 0 | AA7: 0 | AB7: 0 | AC7: 5 | AD7: 0 | AE7: 5 | AF7: 0 | AG7: 0 | AH7: 0 | AI7: 0 | AJ7: 5 | AK7: 10 | AL7: 5 | AM7: 5 | AN7: 0 | AO7: 5 | AP7: 0 | AQ7: 0 | AR7: 0 | AS7: 5 | AT7: 5 | AU7: 0 | AV7: 0 | AW7: 0 | AX7: 0 | AY7: 0 | AZ7: 0 | BA7: 5 | BB7: 0 | BC7: 0 | BD7: 0 | BE7: 0 | BF7: 5 | BG7: 0 | BH7: 0 | BI7: 5 | BJ7: 0 | BK7: 0 | BL7: 0 | BM7: 0 | BN7: 0 | BO7: 5 | BP7: 5
A8: Sat | B8: 2019-08-10 | C8: Watford | D8: 0 | E8: 3 | F8: Brighton | G8: 15:00:00 | I8: 0 | J8: 5 | K8: 0 | L8: 0 | M8: 0 | N8: 0 | O8: 0 | P8: 0 | Q8: 0 | R8: 0 | S8: 0 | T8: 0 | U8: 0 | V8: 0 | W8: 0 | X8: 0 | Y8: 0 | Z8: 0 | AA8: 0 | AB8: 0 | AC8: 0 | AD8: 0 | AE8: 0 | AF8: 0 | AG8: 0 | AH8: 0 | AI8: 0 | AJ8: 0 | AK8: 0 | AL8: 0 | AM8: 0 | AN8: 0 | AO8: 0 | AP8: 0 | AQ8: 0 | AR8: 0 | AS8: 0 | AT8: 0 | AU8: 0 | AV8: 0 | AW8: 0 | AX8: 0 | AY8: 0 | AZ8: 0 | BA8: 0 | BB8: 0 | BC8: 0 | BD8: 0 | BE8: 0 | BF8: 0 | BG8: 0 | BH8: 0 | BI8: 0 | BJ8: 0 | BK8: 0 | BL8: 0 | BM8: 0 | BN8: 0 | BO8: 0 | BP8: 0
A9: Sat | B9: 2019-08-10 | C9: Tottenham | D9: 3 | E9: 1 | F9: Aston Villa | G9: 17:30:00 | I9: 5 | J9: 0 | K9: 5 | L9: 5 | M9: 5 | N9: 10 | O9: 5 | P9: 5 | Q9: 10 | R9: 5 | S9: 5 | T9: 5 | U9: 10 | V9: 5 | W9: 10 | X9: 5 | Y9: 5 | Z9: 10 | AA9: 10 | AB9: 10 | AC9: 5 | AD9: 10 | AE9: 5 | AF9: 5 | AG9: 5 | AH9: 10 | AI9: 5 | AJ9: 5 | AK9: 5 | AL9: 5 | AM9: 5 | AN9: 5 | AO9: 10 | AP9: 5 | AQ9: 10 | AR9: 5 | AS9: 5 | AT9: 5 | AU9: 5 | AV9: 5 | AW9: 5 | AX9: 5 | AY9: 5 | AZ9: 5 | BA9: 5 | BB9: 10 | BC9: 10 | BD9: 5 | BE9: 5 | BF9: 5 | BG9: 5 | BH9: 5 | BI9: 5 | BJ9: 5 | BK9: 5 | BL9: 10 | BM9: 5 | BN9: 5 | BO9: 5 | BP9: 5
A10: Sun | B10: 2019-08-11 | C10: Leicester City | D10: 0 | E10: 0 | F10: Wolves | G10: 14:00:00 | I10: 0 | J10: 5 | K10: 5 | L10: 5 | M10: 0 | N10: 0 | O10: 0 | P10: 0 | Q10: 0 | R10: 0 | S10: 0 | T10: 5 | U10: 0 | V10: 0 | W10: 0 | X10: 5 | Y10: 5 | Z10: 5 | AA10: 5 | AB10: 0 | AC10: 5 | AD10: 0 | AE10: 5 | AF10: 0 | AG10: 0 | AH10: 0 | AI10: 5 | AJ10: 5 | AK10: 0 | AL10: 0 | AM10: 0 | AN10: 0 | AO10: 0 | AP10: 0 | AQ10: 0 | AR10: 5 | AS10: 5 | AT10: 0 | AU10: 0 | AV10: 0 | AW10: 5 | AX10: 5 | AY10: 5 | AZ10: 0 | BA10: 5 | BB10: 5 | BC10: 0 | BD10: 5 | BE10: 0 | BF10: 5 | BG10: 0 | BH10: 5 | BI10: 0 | BJ10: 0 | BK10: 0 | BL10: 5 | BM10: 5 | BN10: 0 | BO10: 0 | BP10: 5
A11: Sun | B11: 2019-08-11 | C11: Newcastle United | D11: 0 | E11: 1 | F11: Arsenal | G11: 14:00:00 | I11: 0 | J11: 5 | K11: 5 | L11: 5 | M11: 5 | N11: 0 | O11: 10 | P11: 5 | Q11: 5 | R11: 0 | S11: 5 | T11: 5 | U11: 10 | V11: 5 | W11: 5 | X11: 0 | Y11: 5 | Z11: 5 | AA11: 5 | AB11: 5 | AC11: 5 | AD11: 0 | AE11: 5 | AF11: 5 | AG11: 5 | AH11: 5 | AI11: 5 | AJ11: 5 | AK11: 0 | AL11: 10 | AM11: 5 | AN11: 5 | AO11: 0 | AP11: 5 | AQ11: 5 | AR11: 5 | AS11: 5 | AT11: 5 | AU11: 10 | AV11: 5 | AW11: 5 | AX11: 5 | AY11: 5 | AZ11: 5 | BA11: 5 | BB11: 5 | BC11: 5 | BD11: 5 | BE11: 5 | BF11: 5 | BG11: 5 | BH11: 5 | BI11: 5 | BJ11: 5 | BK11: 5 | BL11: 5 | BM11: 5 | BN11: 5 | BO11: 5 | BP11: 5
A12: Sun | B12: 2019-08-11 | C12: Man United | D12: 4 | E12: 0 | F12: Chelsea | G12: 16:30:00 | I12: 0 | J12: 0 | K12: 0 | L12: 0 | M12: 0 | N12: 0 | O12: 0 | P12: 5 | Q12: 5 | R12: 5 | S12: 0 | T12: 0 | U12: 0 | V12: 0 | W12: 0 | X12: 0 | Y12: 0 | Z12: 5 | AA12: 5 | AB12: 0 | AC12: 5 | AD12: 0 | AE12: 0 | AF12: 0 | AG12: 0 | AH12: 0 | AI12: 5 | AJ12: 0 | AK12: 0 | AL12: 5 | AM12: 0 | AN12: 0 | AO12: 5 | AP12: 0 | AQ12: 5 | AR12: 5 | AS12: 0 | AT12: 0 | AU12: 0 | AV12: 5 | AW12: 5 | AX12: 5 | AY12: 0 | AZ12: 5 | BA12: 0 | BB12: 0 | BC12: 0 | BD12: 5 | BE12: 0 | BF12: 0 | BG12: 5 | BH12: 5 | BI12: 5 | BJ12: 5 | BK12: 0 | BL12: 5 | BM12: 5 | BN12: 0 | BO12: 5 | BP12: 0
A13: Sat | B13: 2019-08-17 | C13: Arsenal | D13: 2 | E13: 1 | F13: Burnley | G13: 12:30:00 | I13: 10 | J13: 5 | K13: 0 | L13: 5 | M13: 5 | N13: 5 | O13: 5 | P13: 5 | Q13: 5 | R13: 5 | S13: 5 | T13: 5 | U13: 5 | V13: 5 | W13: 5 | X13: 5 | Y13: 5 | Z13: 5 | AA13: 5 | AB13: 5 | AC13: 5 | AD13: 10 | AE13: 5 | AF13: 5 | AG13: 5 | AH13: 10 | AI13: 5 | AJ13: 5 | AK13: 5 | AL13: 5 | AM13: 10 | AN13: 10 | AO13: 10 | AP13: 5 | AQ13: 5 | AR13: 5 | AS13: 5 | AT13: 5 | AU13: 5 | AV13: 5 | AW13: 5 | AX13: 10 | AY13: 10 | AZ13: 5 | BA13: 10 | BB13: 5 | BC13: 10 | BD13: 5 | BE13: 0 | BF13: 5 | BG13: 5 | BH13: 5 | BI13: 5 | BJ13: 5 | BK13: 5 | BL13: 10 | BM13: 5 | BN13: 5 | BO13: 5 | BP13: 10
A14: Sat | B14: 2019-08-17 | C14: Aston Villa | D14: 1 | E14: 2 | F14: Bournemouth | G14: 15:00:00 | I14: 0 | J14: 0 | K14: 0 | L14: 0 | M14: 0 | N14: 0 | O14: 5 | P14: 0 | Q14: 0 | R14: 0 | S14: 0 | T14: 0 | U14: 0 | V14: 0 | W14: 0 | X14: 0 | Y14: 0 | Z14: 0 | AA14: 0 | AB14: 0 | AC14: 0 | AD14: 0 | AE14: 0 | AF14: 0 | AG14: 0 | AH14: 0 | AI14: 0 | AJ14: 0 | AK14: 0 | AL14: 0 | AM14: 5 | AN14: 0 | AO14: 0 | AP14: 0 | AQ14: 5 | AR14: 0 | AS14: 0 | AT14: 0 | AU14: 0 | AV14: 0 | AW14: 0 | AX14: 0 | AY14: 0 | AZ14: 0 | BA14: 0 | BB14: 0 | BC14: 0 | BD14: 0 | BE14: 0 | BF14: 0 | BG14: 0 | BH14: 0 | BI14: 0 | BJ14: 0 | BK14: 0 | BL14: 0 | BM14: 0 | BN14: 10 | BO14: 0 | BP14: 0
A15: Sat | B15: 2019-08-17 | C15: Brighton | D15: 1 | E15: 1 | F15: West Ham | G15: 15:00:00 | I15: 0 | J15: 0 | K15: 10 | L15: 10 | M15: 0 | N15: 0 | O15: 0 | P15: 10 | Q15: 10 | R15: 0 | S15: 0 | T15: 10 | U15: 0 | V15: 0 | W15: 0 | X15: 10 | Y15: 0 | Z15: 0 | AA15: 0 | AB15: 0 | AC15: 0 | AD15: 10 | AE15: 10 | AF15: 10 | AG15: 0 | AH15: 10 | AI15: 0 | AJ15: 0 | AK15: 10 | AL15: 0 | AM15: 0 | AN15: 0 | AO15: 0 | AP15: 0 | AQ15: 5 | AR15: 5 | AS15: 0 | AT15: 0 | AU15: 0 | AV15: 0 | AW15: 0 | AX15: 0 | AY15: 0 | AZ15: 0 | BA15: 0 | BB15: 0 | BC15: 10 | BD15: 0 | BE15: 0 | BF15: 0 | BG15: 10 | BH15: 10 | BI15: 0 | BJ15: 0 | BK15: 10 | BL15: 5 | BM15: 10 | BN15: 0 | BO15: 0 | BP15: 10
A16: Sat | B16: 2019-08-17 | C16: Everton | D16: 1 | E16: 0 | F16: Watford | G16: 15:00:00 | I16: 5 | J16: 10 | K16: 5 | L16: 5 | M16: 5 | N16: 0 | O16: 0 | P16: 5 | Q16: 5 | R16: 5 | S16: 5 | T16: 5 | U16: 0 | V16: 5 | W16: 0 | X16: 5 | Y16: 5 | Z16: 5 | AA16: 5 | AB16: 5 | AC16: 5 | AD16: 5 | AE16: 5 | AF16: 10 | AG16: 5 | AH16: 5 | AI16: 0 | AJ16: 0 | AK16: 5 | AL16: 5 | AM16: 5 | AN16: 5 | AO16: 5 | AP16: 5 | AQ16: 5 | AR16: 5 | AS16: 10 | AT16: 5 | AU16: 10 | AV16: 5 | AW16: 5 | AX16: 0 | AY16: 5 | AZ16: 5 | BA16: 5 | BB16: 0 | BC16: 5 | BD16: 5 | BE16: 0 | BF16: 0 | BG16: 0 | BH16: 5 | BI16: 10 | BJ16: 10 | BK16: 5 | BL16: 10 | BM16: 5 | BN16: 10 | BO16: 5 | BP16: 5
A17: Sat | B17: 2019-08-17 | C17: Norwich City | D17: 3 | E17: 1 | F17: Newcastle United | G17: 15:00:00 | I17: 0 | J17: 0 | K17: 5 | L17: 5 | M17: 5 | N17: 10 | O17: 0 | P17: 5 | Q17: 0 | R17: 0 | S17: 0 | T17: 0 | U17: 5 | V17: 5 | W17: 5 | X17: 0 | Y17: 0 | Z17: 0 | AA17: 0 | AB17: 5 | AC17: 0 | AD17: 0 | AE17: 0 | AF17: 5 | AG17: 0 | AH17: 0 | AI17: 0 | AJ17: 5 | AK17: 0 | AL17: 5 | AM17: 0 | AN17: 5 | AO17: 0 | AP17: 0 | AQ17: 0 | AR17: 5 | AS17: 5 | AT17: 5 | AU17: 5 | AV17: 0 | AW17: 0 | AX17: 0 | AY17: 0 | AZ17: 0 | BA17: 5 | BB17: 5 | BC17: 0 | BD17: 5 | BE17: 5 | BF17: 5 | BG17: 0 | BH17: 0 | BI17: 0 | BJ17: 0 | BK17: 0 | BL17: 0 | BM17: 0 | BN17: 0 | BO17: 0 | BP17: 0
A18: Sat | B18: 2019-08-17 | C18: Southampton | D18: 1 | E18: 2 | F18: Liverpool | G18: 15:00:00 | I18: 5 | J18: 5 | K18: 5 | L18: 10 | M18: 5 | N18: 5 | O18: 5 | P18: 10 | Q18: 5 | R18: 5 | S18: 5 | T18: 5 | U18: 10 | V18: 5 | W18: 5 | X18: 5 | Y18: 5 | Z18: 5 | AA18: 5 | AB18: 5 | AC18: 10 | AD18: 10 | AE18: 10 | AF18: 10 | AG18: 5 | AH18: 5 | AI18: 5 | AJ18: 5 | AK18: 5 | AL18: 5 | AM18: 5 | AN18: 5 | AO18: 5 | AP18: 5 | AQ18: 5 | AR18: 5 | AS18: 10 | AT18: 5 | AU18: 10 | AV18: 5 | AW18: 5 | AX18: 5 | AY18: 5 | AZ18: 5 | BA18: 0 | BB18: 5 | BC18: 5 | BD18: 0 | BE18: 5 | BF18: 5 | BG18: 5 | BH18: 5 | BI18: 5 | BJ18: 5 | BK18: 5 | BL18: 5 | BM18: 10 | BN18: 5 | BO18: 5 | BP18: 10
A19: Sat | B19: 2019-08-17 | C19: Man City | D19: 2 | E19: 2 | F19: Tottenham | G19: 17:30:00 | I19: 0 | J19: 0 | K19: 5 | L19: 0 | M19: 0 | N19: 0 | O19: 0 | P19: 0 | Q19: 0 | R19: 0 | S19: 0 | T19: 0 | U19: 0 | V19: 10 | W19: 0 | X19: 0 | Y19: 0 | Z19: 0 | AA19: 0 | AB19: 0 | AC19: 0 | AD19: 0 | AE19: 10 | AF19: 0 | AG19: 0 | AH19: 0 | AI19: 0 | AJ19: 0 | AK19: 0 | AL19: 0 | AM19: 0 | AN19: 0 | AO19: 10 | AP19: 0 | AQ19: 0 | AR19: 0 | AS19: 0 | AT19: 0 | AU19: 0 | AV19: 0 | AW19: 0 | AX19: 0 | AY19: 0 | AZ19: 0 | BA19: 0 | BB19: 0 | BC19: 0 | BD19: 0 | BE19: 0 | BF19: 0 | BG19: 10 | BH19: 0 | BI19: 0 | BJ19: 0 | BK19: 10 | BL19: 10 | BM19: 0 | BN19: 5 | BO19: 0 | BP19: 0
A20: Sun | B20: 2019-08-18 | C20: Sheffield United | D20: 1 | E20: 0 | F20: Crystal Palace | G20: 14:00:00 | I20: 0 | J20: 10 | K20: 0 | L20: 5 | M20: 0 | N20: 0 | O20: 0 | P20: 0 | Q20: 5 | R20: 0 | S20: 0 | T20: 0 | U20: 10 | V20: 5 | W20: 10 | X20: 0 | Y20: 5 | Z20: 10 | AA20: 0 | AB20: 10 | AC20: 0 | AD20: 0 | AE20: 0 | AF20: 0 | AG20: 0 | AH20: 0 | AI20: 0 | AJ20: 0 | AK20: 0 | AL20: 0 | AM20: 0 | AN20: 0 | AO20: 0 | AP20: 0 | AQ20: 0 | AR20: 0 | AS20: 10 | AT20: 5 | AU20: 10 | AV20: 0 | AW20: 0 | AX20: 0 | AY20: 5 | AZ20: 0 | BA20: 0 | BB20: 0 | BC20: 0 | BD20: 5 | BE20: 10 | BF20: 0 | BG20: 0 | BH20: 0 | BI20: 0 | BJ20: 10 | BK20: 0 | BL20: 10 | BM20: 0 | BN20: 0 | BO20: 10 | BP20: 0
A21: Sun | B21: 2019-08-18 | C21: Chelsea | D21: 1 | E21: 1 | F21: Leicester City | G21: 16:30:00 | I21: 5 | J21: 5 | K21: 0 | L21: 0 | M21: 0 | N21: 0 | O21: 0 | P21: 0 | Q21: 0 | R21: 0 | S21: 0 | T21: 0 | U21: 0 | V21: 0 | W21: 0 | X21: 0 | Y21: 0 | Z21: 5 | AA21: 0 | AB21: 10 | AC21: 0 | AD21: 0 | AE21: 0 | AF21: 0 | AG21: 10 | AH21: 0 | AI21: 0 | AJ21: 0 | AK21: 10 | AL21: 0 | AM21: 0 | AN21: 0 | AO21: 0 | AP21: 10 | AQ21: 0 | AR21: 0 | AS21: 0 | AT21: 0 | AU21: 0 | AV21: 0 | AW21: 0 | AX21: 10 | AY21: 0 | AZ21: 0 | BA21: 0 | BB21: 0 | BC21: 0 | BD21: 0 | BE21: 10 | BF21: 5 | BG21: 0 | BH21: 0 | BI21: 0 | BJ21: 0 | BK21: 0 | BL21: 0 | BM21: 0 | BN21: 0 | BO21: 0 | BP21: 0
A22: Mon | B22: 2019-08-19 | C22: Wolves | D22: 1 | E22: 1 | F22: Man United | G22: 20:00:00 | I22: 0 | J22: 0 | K22: 0 | L22: 10 | M22: 0 | N22: 10 | O22: 0 | P22: 10 | Q22: 0 | R22: 0 | S22: 0 | T22: 10 | U22: 0 | V22: 5 | W22: 10 | X22: 0 | Y22: 0 | Z22: 0 | AA22: 0 | AB22: 0 | AC22: 0 | AD22: 0 | AE22: 0 | AF22: 0 | AG22: 0 | AH22: 10 | AI22: 0 | AJ22: 0 | AK22: 5 | AL22: 10 | AM22: 0 | AN22: 10 | AO22: 0 | AP22: 0 | AQ22: 0 | AR22: 0 | AS22: 0 | AT22: 10 | AU22: 0 | AV22: 0 | AW22: 0 | AX22: 0 | AY22: 0 | AZ22: 0 | BA22: 5 | BB22: 5 | BC22: 0 | BD22: 0 | BE22: 0 | BF22: 10 | BG22: 0 | BH22: 0 | BI22: 10 | BJ22: 0 | BK22: 0 | BL22: 0 | BM22: 0 | BN22: 0 | BO22: 0 | BP22: 10
A23: Fri | B23: 2019-08-23 | C23: Aston Villa | D23: 2 | E23: 0 | F23: Everton | G23: 20:00:00 | I23: 0 | J23: 0 | K23: 5 | L23: 0 | M23: 0 | N23: 5 | O23: 0 | P23: 0 | Q23: 10 | R23: 0 | S23: 0 | T23: 5 | U23: 0 | V23: 10 | W23: 10 | X23: 0 | Y23: 0 | Z23: 0 | AA23: 5 | AB23: 0 | AC23: 5 | AD23: 5 | AE23: 0 | AF23: 0 | AG23: 0 | AH23: 0 | AI23: 0 | AJ23: 0 | AK23: 0 | AL23: 0 | AM23: 0 | AN23: 0 | AO23: 5 | AP23: 0 | AQ23: 0 | AR23: 0 | AS23: 0 | AT23: 0 | AU23: 0 | AV23: 0 | AW23: 0 | AX23: 5 | AY23: 0 | AZ23: 5 | BA23: 0 | BB23: 0 | BC23: 0 | BD23: 10 | BE23: 0 | BF23: 10 | BG23: 5 | BH23: 5 | BI23: 5 | BJ23: 5 | BK23: 0 | BL23: 0 | BM23: 0 | BN23: 0 | BO23: 0 | BP23: 5
A24: Sat | B24: 2019-08-24 | C24: Norwich City | D24: 2 | E24: 3 | F24: Chelsea | G24: 12:30:00 | I24: 5 | J24: 0 | K24: 0 | L24: 5 | M24: 5 | N24: 0 | O24: 0 | P24: 5 | Q24: 0 | R24: 5 | S24: 5 | T24: 0 | U24: 5 | V24: 0 | W24: 5 | X24: 0 | Y24: 5 | Z24: 0 | AA24: 5 | AB24: 0 | AC24: 0 | AD24: 0 | AE24: 0 | AF24: 5 | AG24: 5 | AH24: 5 | AI24: 5 | AJ24: 0 | AK24: 5 | AL24: 0 | AM24: 0 | AN24: 0 | AO24: 0 | AP24: 0 | AQ24: 5 | AR24: 0 | AS24: 0 | AT24: 5 | AU24: 5 | AV24: 5 | AW24: 5 | AX24: 5 | AY24: 5 | AZ24: 5 | BA24: 5 | BB24: 5 | BC24: 0 | BD24: 5 | BE24: 0 | BF24: 0 | BG24: 0 | BH24: 5 | BI24: 5 | BJ24: 5 | BK24: 5 | BL24: 5 | BM24: 5 | BN24: 5 | BO24: 0 | BP24: 0
A25: Sat | B25: 2019-08-24 | C25: Brighton | D25: 0 | E25: 2 | F25: Southampton | G25: 15:00:00 | I25: 0 | J25: 0 | K25: 5 | L25: 5 | M25: 0 | N25: 0 | O25: 0 | P25: 0 | Q25: 0 | R25: 0 | S25: 0 | T25: 5 | U25: 0 | V25: 5 | W25: 0 | X25: 0 | Y25: 5 | Z25: 0 | AA25: 0 | AB25: 0 | AC25: 0 | AD25: 0 | AE25: 5 | AF25: 0 | AG25: 0 | AH25: 0 | AI25: 0 | AJ25: 5 | AK25: 0 | AL25: 0 | AM25: 0 | AN25: 0 | AO25: 0 | AP25: 0 | AQ25: 0 | AR25: 0 | AS25: 0 | AT25: 0 | AU25: 0 | AV25: 0 | AW25: 0 | AX25: 0 | AY25: 0 | AZ25: 5 | BA25: 0 | BB25: 5 | BC25: 0 | BD25: 0 | BE25: 0 | BF25: 0 | BG25: 0 | BH25: 0 | BI25: 0 | BJ25: 0 | BK25: 0 | BL25: 0 | BM25: 0 | BN25: 0 | BO25: 0 | BP25: 0
A26: Sat | B26: 2019-08-24 | C26: Man United | D26: 1 | E26: 2 | F26: Crystal Palace | G26: 15:00:00 | I26: 0 | J26: 0 | K26: 0 | L26: 0 | M26: 0 | N26: 0 | O26: 0 | P26: 0 | Q26: 0 | R26: 0 | S26: 0 | T26: 0 | U26: 0 | V26: 0 | W26: 0 | X26: 0 | Y26: 0 | Z26: 0 | AA26: 0 | AB26: 0 | AC26: 0 | AD26: 0 | AE26: 0 | AF26: 0 | AG26: 0 | AH26: 0 | AI26: 0 | AJ26: 0 | AK26: 0 | AL26: 0 | AM26: 0 | AN26: 0 | AO26: 0 | AP26: 0 | AQ26: 0 | AR26: 0 | AS26: 0 | AT26: 0 | AU26: 0 | AV26: 0 | AW26: 0 | AX26: 0 | AY26: 0 | AZ26: 0 | BA26: 0 | BB26: 0 | BC26: 0 | BD26: 0 | BE26: 0 | BF26: 0 | BG26: 0 | BH26: 0 | BI26: 0 | BJ26: 0 | BK26: 0 | BL26: 0 | BM26: 0 | BN26: 0 | BO26: 0 | BP26: 0
A27: Sat | B27: 2019-08-24 | C27: Sheffield United | D27: 1 | E27: 2 | F27: Leicester City | G27: 15:00:00 | I27: 10 | J27: 0 | K27: 5 | L27: 5 | M27: 0 | N27: 0 | O27: 0 | P27: 10 | Q27: 0 | R27: 0 | S27: 10 | T27: 0 | U27: 10 | V27: 5 | W27: 10 | X27: 0 | Y27: 5 | Z27: 10 | AA27: 0 | AB27: 0 | AC27: 0 | AD27: 0 | AE27: 5 | AF27: 5 | AG27: 5 | AH27: 0 | AI27: 5 | AJ27: 10 | AK27: 0 | AL27: 5 | AM27: 0 | AN27: 0 | AO27: 0 | AP27: 10 | AQ27: 10 | AR27: 0 | AS27: 0 | AT27: 0 | AU27: 5 | AV27: 5 | AW27: 5 | AX27: 0 | AY27: 10 | AZ27: 5 | BA27: 0 | BB27: 10 | BC27: 10 | BD27: 0 | BE27: 0 | BF27: 5 | BG27: 10 | BH27: 10 | BI27: 5 | BJ27: 0 | BK27: 0 | BL27: 0 | BM27: 5 | BN27: 0 | BO27: 10 | BP27: 0
A28: Sat | B28: 2019-08-24 | C28: Watford | D28: 1 | E28: 3 | F28: West Ham | G28: 15:00:00 | I28: 0 | J28: 0 | K28: 0 | L28: 0 | M28: 0 | N28: 0 | O28: 5 | P28: 5 | Q28: 0 | R28: 5 | S28: 0 | T28: 0 | U28: 0 | V28: 0 | W28: 0 | X28: 0 | Y28: 0 | Z28: 0 | AA28: 0 | AB28: 0 | AC28: 0 | AD28: 0 | AE28: 0 | AF28: 0 | AG28: 0 | AH28: 0 | AI28: 5 | AJ28: 0 | AK28: 5 | AL28: 0 | AM28: 5 | AN28: 5 | AO28: 0 | AP28: 0 | AQ28: 0 | AR28: 0 | AS28: 0 | AT28: 0 | AU28: 0 | AV28: 0 | AW28: 0 | AX28: 0 | AY28: 0 | AZ28: 5 | BA28: 0 | BB28: 0 | BC28: 0 | BD28: 5 | BE28: 5 | BF28: 0 | BG28: 0 | BH28: 0 | BI28: 0 | BJ28: 0 | BK28: 0 | BL28: 0 | BM28: 0 | BN28: 5 | BO28: 5 | BP28: 0
A29: Sat | B29: 2019-08-24 | C29: Liverpool | D29: 3 | E29: 1 | F29: Arsenal | G29: 17:30:00 | H29: LivArs | I29: 0 | J29: 5 | K29: 5 | L29: 5 | M29: 5 | N29: 5 | O29: 5 | P29: 5 | Q29: 5 | R29: 10 | S29: 0 | T29: 5 | U29: 5 | V29: 5 | W29: 10 | X29: 5 | Y29: 10 | Z29: 10 | AA29: 5 | AB29: 5 | AC29: 5 | AD29: 5 | AE29: 5 | AF29: 10 | AG29: 10 | AH29: 10 | AI29: 10 | AJ29: 5 | AK29: 5 | AL29: 10 | AM29: 0 | AN29: 5 | AO29: 0 | AP29: 5 | AQ29: 5 | AR29: 5 | AS29: 5 | AT29: 0 | AU29: 5 | AV29: 10 | AW29: 5 | AX29: 0 | AY29: 5 | AZ29: 0 | BA29: 5 | BB29: 5 | BC29: 5 | BD29: 0 | BE29: 5 | BF29: 5 | BG29: 0 | BH29: 5 | BI29: 5 | BJ29: 5 | BK29: 5 | BL29: 5 | BM29: 10 | BN29: 5 | BO29: 0 | BP29: 5
A30: Sun | B30: 2019-08-25 | C30: Bournemouth | D30: 1 | E30: 3 | F30: Man City | G30: 14:00:00 | H30: BouMac | I30: 5 | J30: 5 | K30: 5 | L30: 5 | M30: 5 | N30: 0 | O30: 5 | P30: 5 | Q30: 5 | R30: 10 | S30: 5 | T30: 5 | U30: 5 | V30: 5 | W30: 5 | X30: 10 | Y30: 5 | Z30: 5 | AA30: 5 | AB30: 5 | AC30: 5 | AD30: 5 | AE30: 5 | AF30: 5 | AG30: 5 | AH30: 5 | AI30: 5 | AJ30: 5 | AK30: 5 | AL30: 5 | AM30: 10 | AN30: 5 | AO30: 10 | AP30: 5 | AQ30: 5 | AR30: 5 | AS30: 5 | AT30: 5 | AU30: 5 | AV30: 5 | AW30: 5 | AX30: 5 | AY30: 5 | AZ30: 5 | BA30: 10 | BB30: 5 | BC30: 5 | BD30: 5 | BE30: 5 | BF30: 5 | BG30: 10 | BH30: 5 | BI30: 5 | BJ30: 5 | BK30: 10 | BL30: 10 | BM30: 5 | BN30: 10 | BO30: 5 | BP30: 10
A31: Sun | B31: 2019-08-25 | C31: Tottenham | D31: 0 | E31: 1 | F31: Newcastle United | G31: 16:30:00 | I31: 0 | J31: 0 | K31: 0 | L31: 0 | M31: 0 | N31: 0 | O31: 0 | P31: 0 | Q31: 0 | R31: 0 | S31: 0 | T31: 0 | U31: 0 | V31: 0 | W31: 0 | X31: 0 | Y31: 0 | Z31: 0 | AA31: 0 | AB31: 0 | AC31: 0 | AD31: 0 | AE31: 0 | AF31: 0 | AG31: 0 | AH31: 0 | AI31: 0 | AJ31: 0 | AK31: 0 | AL31: 0 | AM31: 0 | AN31: 0 | AO31: 0 | AP31: 0 | AQ31: 0 | AR31: 0 | AS31: 0 | AT31: 0 | AU31: 0 | AV31: 0 | AW31: 0 | AX31: 0 | AY31: 0 | AZ31: 0 | BA31: 0 | BB31: 0 | BC31: 0 | BD31: 0 | BE31: 0 | BF31: 0 | BG31: 0 | BH31: 0 | BI31: 0 | BJ31: 0 | BK31: 0 | BL31: 0 | BM31: 0 | BN31: 0 | BO31: 0 | BP31: 0
A32: Sun | B32: 2019-08-25 | C32: Wolves | D32: 1 | E32: 1 | F32: Burnley | G32: 16:30:00 | I32: 0 | J32: 0 | K32: 0 | L32: 0 | M32: 0 | N32: 0 | O32: 0 | P32: 0 | Q32: 0 | R32: 0 | S32: 10 | T32: 0 | U32: 0 | V32: 0 | W32: 0 | X32: 0 | Y32: 0 | Z32: 0 | AA32: 0 | AB32: 0 | AC32: 0 | AD32: 0 | AE32: 10 | AF32: 0 | AG32: 0 | AH32: 0 | AI32: 0 | AJ32: 0 | AK32: 5 | AL32: 0 | AM32: 0 | AN32: 0 | AO32: 0 | AP32: 0 | AQ32: 0 | AR32: 0 | AS32: 0 | AT32: 0 | AU32: 0 | AV32: 0 | AW32: 0 | AX32: 0 | AY32: 0 | AZ32: 0 | BA32: 10 | BB32: 0 | BC32: 0 | BD32: 0 | BE32: 10 | BF32: 0 | BG32: 0 | BH32: 0 | BI32: 0 | BJ32: 0 | BK32: 0 | BL32: 0 | BM32: 0 | BN32: 0 | BO32: 0 | BP32: 0
A33: Sat | B33: 2019-08-31 | C33: Southampton | D33: 1 | E33: 1 | F33: Man United | G33: 12:30:00 | I33: 0 | J33: 0 | K33: 0 | L33: 0 | M33: 0 | N33: 0 | O33: 0 | P33: 0 | Q33: 0 | R33: 0 | S33: 0 | T33: 0 | U33: 10 | V33: 0 | W33: 0 | X33: 0 | Y33: 0 | Z33: 0 | AA33: 0 | AB33: 0 | AC33: 0 | AD33: 10 | AE33: 10 | AF33: 0 | AG33: 0 | AH33: 0 | AI33: 0 | AJ33: 0 | AK33: 10 | AL33: 0 | AM33: 0 | AN33: 0 | AO33: 10 | AP33: 0 | AQ33: 0 | AR33: 0 | AS33: 10 | AT33: 0 | AU33: 0 | AV33: 0 | AW33: 0 | AX33: 0 | AY33: 0 | AZ33: 0 | BA33: 5 | BB33: 0 | BC33: 0 | BD33: 0 | BE33: 10 | BF33: 0 | BG33: 0 | BH33: 0 | BI33: 10 | BJ33: 0 | BK33: 0 | BL33: 5 | BM33: 0 | BN33: 0 | BO33: 0 | BP33: 10
A34: Sat | B34: 2019-08-31 | C34: Chelsea | D34: 2 | E34: 2 | F34: Sheffield United | G34: 15:00:00 | I34: 0 | J34: 0 | K34: 0 | L34: 0 | M34: 0 | N34: 0 | O34: 0 | P34: 0 | Q34: 0 | R34: 0 | S34: 0 | T34: 0 | U34: 0 | V34: 0 | W34: 0 | X34: 0 | Y34: 0 | Z34: 0 | AA34: 0 | AB34: 0 | AC34: 0 | AD34: 0 | AE34: 0 | AF34: 0 | AG34: 0 | AH34: 0 | AI34: 0 | AJ34: 0 | AK34: 0 | AL34: 0 | AM34: 0 | AN34: 0 | AO34: 0 | AP34: 0 | AQ34: 0 | AR34: 0 | AS34: 0 | AT34: 0 | AU34: 0 | AV34: 0 | AW34: 0 | AX34: 0 | AY34: 0 | AZ34: 0 | BA34: 0 | BB34: 5 | BC34: 0 | BD34: 0 | BE34: 0 | BF34: 0 | BG34: 0 | BH34: 0 | BI34: 0 | BJ34: 0 | BK34: 0 | BL34: 0 | BM34: 0 | BN34: 0 | BO34: 0 | BP34: 0
A35: Sat | B35: 2019-08-31 | C35: Crystal Palace | D35: 1 | E35: 0 | F35: Aston Villa | G35: 15:00:00 | I35: 0 | J35: 0 | K35: 5 | L35: 10 | M35: 5 | N35: 5 | O35: 5 | P35: 5 | Q35: 0 | R35: 5 | S35: 0 | T35: 0 | U35: 5 | V35: 5 | W35: 0 | X35: 10 | Y35: 0 | Z35: 0 | AA35: 5 | AB35: 5 | AC35: 10 | AD35: 0 | AE35: 5 | AF35: 10 | AG35: 0 | AH35: 0 | AI35: 5 | AJ35: 5 | AK35: 10 | AL35: 5 | AM35: 10 | AN35: 5 | AO35: 0 | AP35: 0 | AQ35: 0 | AR35: 0 | AS35: 5 | AT35: 5 | AU35: 10 | AV35: 5 | AW35: 0 | AX35: 10 | AY35: 0 | AZ35: 0 | BA35: 5 | BB35: 0 | BC35: 0 | BD35: 5 | BE35: 0 | BF35: 0 | BG35: 0 | BH35: 0 | BI35: 5 | BJ35: 0 | BK35: 0 | BL35: 5 | BM35: 5 | BN35: 0 | BO35: 0 | BP35: 0
A36: Sat | B36: 2019-08-31 | C36: Leicester City | D36: 3 | E36: 1 | F36: Bournemouth | G36: 15:00:00 | I36: 5 | J36: 0 | K36: 5 | L36: 5 | M36: 5 | N36: 5 | O36: 5 | P36: 5 | Q36: 5 | R36: 5 | S36: 5 | T36: 5 | U36: 5 | V36: 5 | W36: 0 | X36: 10 | Y36: 5 | Z36: 5 | AA36: 5 | AB36: 5 | AC36: 5 | AD36: 5 | AE36: 5 | AF36: 10 | AG36: 5 | AH36: 5 | AI36: 5 | AJ36: 5 | AK36: 5 | AL36: 5 | AM36: 5 | AN36: 5 | AO36: 5 | AP36: 5 | AQ36: 10 | AR36: 5 | AS36: 5 | AT36: 5 | AU36: 5 | AV36: 5 | AW36: 5 | AX36: 5 | AY36: 5 | AZ36: 5 | BA36: 5 | BB36: 5 | BC36: 5 | BD36: 5 | BE36: 5 | BF36: 5 | BG36: 10 | BH36: 5 | BI36: 5 | BJ36: 5 | BK36: 5 | BL36: 5 | BM36: 5 | BN36: 5 | BO36: 5 | BP36: 10
A37: Sat | B37: 2019-08-31 | C37: Man City | D37: 4 | E37: 0 | F37: Brighton | G37: 15:00:00 | I37: 10 | J37: 5 | K37: 5 | L37: 5 | M37: 5 | N37: 5 | O37: 5 | P37: 5 | Q37: 10 | R37: 5 | S37: 5 | T37: 5 | U37: 0 | V37: 5 | W37: 10 | X37: 5 | Y37: 5 | Z37: 5 | AA37: 10 | AB37: 5 | AC37: 5 | AD37: 10 | AE37: 5 | AF37: 5 | AG37: 5 | AH37: 5 | AI37: 10 | AJ37: 5 | AK37: 5 | AL37: 5 | AM37: 5 | AN37: 5 | AO37: 5 | AP37: 5 | AQ37: 5 | AR37: 5 | AS37: 10 | AT37: 5 | AU37: 5 | AV37: 5 | AW37: 5 | AX37: 5 | AY37: 10 | AZ37: 10 | BA37: 5 | BB37: 5 | BC37: 5 | BD37: 10 | BE37: 5 | BF37: 10 | BG37: 10 | BH37: 10 | BI37: 5 | BJ37: 5 | BK37: 5 | BL37: 5 | BM37: 5 | BN37: 5 | BO37: 5 | BP37: 5
A38: Sat | B38: 2019-08-31 | C38: Newcastle United | D38: 1 | E38: 1 | F38: Watford | G38: 15:00:00 | I38: 0 | J38: 0 | K38: 0 | L38: 0 | M38: 0 | N38: 10 | O38: 0 | P38: 0 | Q38: 0 | R38: 0 | S38: 0 | T38: 5 | U38: 0 | V38: 0 | W38: 10 | X38: 10 | Y38: 0 | Z38: 10 | AA38: 10 | AB38: 0 | AC38: 0 | AD38: 0 | AE38: 0 | AF38: 10 | AG38: 0 | AH38: 0 | AI38: 0 | AJ38: 0 | AK38: 0 | AL38: 0 | AM38: 0 | AN38: 0 | AO38: 0 | AP38: 0 | AQ38: 10 | AR38: 0 | AS38: 0 | AT38: 10 | AU38: 0 | AV38: 0 | AW38: 10 | AX38: 0 | AY38: 0 | AZ38: 0 | BA38: 0 | BB38: 10 | BC38: 0 | BD38: 0 | BE38: 10 | BF38: 0 | BG38: 5 | BH38: 0 | BI38: 10 | BJ38: 10 | BK38: 10 | BL38: 10 | BM38: 0 | BN38: 0 | BO38: 0 | BP38: 0
A39: Sat | B39: 2019-08-31 | C39: West Ham | D39: 2 | E39: 0 | F39: Norwich City | G39: 15:00:00 | I39: 0 | J39: 0 | K39: 10 | L39: 10 | M39: 0 | N39: 0 | O39: 5 | P39: 5 | Q39: 5 | R39: 10 | S39: 5 | T39: 5 | U39: 0 | V39: 5 | W39: 5 | X39: 5 | Y39: 10 | Z39: 5 | AA39: 5 | AB39: 0 | AC39: 0 | AD39: 5 | AE39: 0 | AF39: 10 | AG39: 5 | AH39: 0 | AI39: 5 | AJ39: 5 | AK39: 0 | AL39: 0 | AM39: 5 | AN39: 5 | AO39: 5 | AP39: 0 | AQ39: 0 | AR39: 5 | AS39: 0 | AT39: 0 | AU39: 5 | AV39: 10 | AW39: 5 | AX39: 0 | AY39: 5 | AZ39: 5 | BA39: 0 | BB39: 0 | BC39: 5 | BD39: 5 | BE39: 0 | BF39: 0 | BG39: 5 | BH39: 0 | BI39: 10 | BJ39: 5 | BK39: 0 | BL39: 0 | BM39: 5 | BN39: 0 | BO39: 0 | BP39: 0
A40: Sat | B40: 2019-08-31 | C40: Burnley | D40: 0 | E40: 3 | F40: Liverpool | G40: 17:30:00 | I40: 5 | J40: 5 | K40: 0 | L40: 5 | M40: 5 | N40: 5 | O40: 0 | P40: 5 | Q40: 5 | R40: 5 | S40: 10 | T40: 5 | U40: 5 | V40: 10 | W40: 5 | X40: 5 | Y40: 5 | Z40: 10 | AA40: 10 | AB40: 5 | AC40: 5 | AD40: 5 | AE40: 5 | AF40: 5 | AG40: 5 | AH40: 5 | AI40: 10 | AJ40: 5 | AK40: 5 | AL40: 0 | AM40: 0 | AN40: 5 | AO40: 5 | AP40: 5 | AQ40: 10 | AR40: 10 | AS40: 5 | AT40: 5 | AU40: 5 | AV40: 5 | AW40: 5 | AX40: 5 | AY40: 5 | AZ40: 5 | BA40: 0 | BB40: 5 | BC40: 10 | BD40: 0 | BE40: 5 | BF40: 5 | BG40: 5 | BH40: 10 | BI40: 5 | BJ40: 5 | BK40: 5 | BL40: 5 | BM40: 0 | BN40: 5 | BO40: 5 | BP40: 5
A42: Goalscorer #1
A43: Harry Kane - Tottenham Hotspur | D43: =COUNT(H43:DV43) -> 15 | E43: =2+0+0 -> 2 | K43: =2*$E43 -> 4 | T43: =2*$E43 -> 4 | AB43: =2*$E43 -> 4 | AD43: =2*$E43 -> 4 | AE43: =2*$E43 -> 4 | AI43: =2*$E43 -> 4 | AJ43: =2*$E43 -> 4 | AM43: =2*$E43 -> 4 | AP43: =2*$E43 -> 4 | AW43: =2*$E43 -> 4 | AX43: =2*$E43 -> 4 | BD43: =2*$E43 -> 4 | BF43: =2*$E43 -> 4 | BL43: =2*$E43 -> 4 | BO43: =2*$E43 -> 4
A44: Marcus Rashford - Man United | D44: =COUNT(H44:DV44) -> 2 | E44: =2+0+0+0 -> 2 | I44: =2*$E44 -> 4 | AA44: =2*$E44 -> 4
A45: Mohamed Salah - Liverpool | D45: 22 | E45: =1+0+2+0 -> 3 | L45: =2*$E45 -> 6 | M45: =2*$E45 -> 6 | N45: =2*$E45 -> 6 | O45: =2*$E45 -> 6 | P45: =2*$E45 -> 6 | R45: =2*$E45 -> 6 | U45: =2*$E45 -> 6 | V45: =2*$E45 -> 6 | W45: =2*$E45 -> 6 | Z45: =2*$E45 -> 6 | AC45: =2*$E45 -> 6 | AH45: =2*$E45 -> 6 | AL45: =2*$E45 -> 6 | AN45: =2*$E45 -> 6 | AQ45: =2*$E45 -> 6 | AR45: =2*$E45 -> 6 | AS45: =2*$E45 -> 6 | AU45: =2*$E45 -> 6 | AY45: =2*$E45 -> 6 | BA45: =2*$E45 -> 6 | BE45: =2*$E45 -> 6 | BG45: =2*$E45 -> 6
A46: Pierre Emerick Aubameyang - Arsenal | D46: 8 | E46: =1+1+0 -> 2 | Q46: =2*$E46 -> 4 | S46: =2*$E46 -> 4 | Y46: =2*$E46 -> 4 | AF46: =2*$E46 -> 4 | AK46: =2*$E46 -> 4 | AZ46: =2*$E46 -> 4 | BB46: =2*$E46 -> 4 | BM46: =2*$E46 -> 4
A47: Sadio Mane - Liverpool | D47: 3 | E47: =0+1+0+1 -> 2 | BJ47: =2*$E47 -> 4 | BK47: =2*$E47 -> 4 | BN47: =2*$E47 -> 4
A48: Sergio Aguero - Man City | D48: 10 | E48: =1+1+2+2 -> 6 | J48: =2*$E48 -> 12 | X48: =2*$E48 -> 12 | AG48: =2*$E48 -> 12 | AO48: =2*$E48 -> 12 | AT48: =2*$E48 -> 12 | AV48: =2*$E48 -> 12 | BC48: =2*$E48 -> 12 | BH48: =2*$E48 -> 12 | BI48: =2*$E48 -> 12 | BP48: =2*$E48 -> 12
A50: Goalscorer #2
A51: Alexandre Lacazette - Arsenal | D51: =COUNT(H51:DV51) -> 9 | E51: =0+1+0 -> 1 | M51: =2*$E51 -> 2 | P51: =2*$E51 -> 2 | T51: =2*$E51 -> 2 | AD51: =2*$E51 -> 2 | AO51: =2*$E51 -> 2 | AP51: =2*$E51 -> 2 | AQ51: =2*$E51 -> 2 | BH51: =2*$E51 -> 2 | BN51: =2*$E51 -> 2
A52: Ayoze Perez - Leicester City | D52: 1 | E52: =0+0+0+0 -> 0 | AM52: =2*$E52 -> 0
A53: Callum Wilson - Bournemouth | D53: 1 | E53: =0+0+0+1 -> 1 | I53: =2*$E53 -> 2
A54: Jamie Vardy - Leicester City | D54: 4 | E54: =0+0+1+2 -> 3 | AF54: =2*$E54 -> 6 | AG54: =2*$E54 -> 6 | AR54: =2*$E54 -> 6 | BE54: =2*$E54 -> 6
A55: Raheem Sterling - Man City | D55: 43 | E55: =3+1+1+0 -> 5 | J55: =2*$E55 -> 10 | K55: =2*$E55 -> 10 | L55: =2*$E55 -> 10 | N55: =2*$E55 -> 10 | O55: =2*$E55 -> 10 | Q55: =2*$E55 -> 10 | R55: =2*$E55 -> 10 | S55: 10 | U55: 10 | V55: 10 | W55: 10 | X55: 10 | Y55: =2*$E55 -> 10 | AA55: =2*$E55 -> 10 | AB55: =2*$E55 -> 10 | AC55: =2*$E55 -> 10 | AE55: =2*$E55 -> 10 | AH55: =2*$E55 -> 10 | AI55: =2*$E55 -> 10 | AJ55: =2*$E55 -> 10 | AK55: =2*$E55 -> 10 | AL55: =2*$E55 -> 10 | AN55: =2*$E55 -> 10 | AS55: =2*$E55 -> 10 | AT55: 10 | AU55: 10 | AV55: 10 | AW55: 10 | AX55: 10 | AY55: 10 | BA55: =2*$E55 -> 10 | BB55: =2*$E55 -> 10 | BC55: =2*$E55 -> 10 | BD55: =2*$E55 -> 10 | BF55: =2*$E55 -> 10 | BG55: =2*$E55 -> 10 | BI55: =2*$E55 -> 10 | BJ55: =2*$E55 -> 10 | BK55: =2*$E55 -> 10 | BL55: =2*$E55 -> 10 | BM55: =2*$E55 -> 10 | BO55: =2*$E55 -> 10 | BP55: =2*$E55 -> 10
A56: Raul Jiminez - Wolves | D56: 2 | E56: =0+0+1 -> 1 | Z56: =2*$E56 -> 2 | AZ56: =2*$E56 -> 2
A58: Golden Gloves
A59: Alisson Becker - Liverpool | D59: =COUNT(H59:DV59) -> 37 | E59: =1+0+0+0 -> 1 | J59: =2*$E59 -> 2 | L59: =2*$E59 -> 2 | M59: =2*$E59 -> 2 | N59: =2*$E59 -> 2 | O59: =2*$E59 -> 2 | P59: =2*$E59 -> 2 | R59: =2*$E59 -> 2 | U59: =2*$E59 -> 2 | V59: =2*$E59 -> 2 | W59: =2*$E59 -> 2 | X59: =2*$E59 -> 2 | Z59: =2*$E59 -> 2 | AF59: =2*$E59 -> 2 | AH59: =2*$E59 -> 2 | AI59: =2*$E59 -> 2 | AK59: =2*$E59 -> 2 | AL59: =2*$E59 -> 2 | AN59: =2*$E59 -> 2 | AO59: =2*$E59 -> 2 | AP59: =2*$E59 -> 2 | AQ59: =2*$E59 -> 2 | AS59: =2*$E59 -> 2 | AU59: =2*$E59 -> 2 | AW59: =2*$E59 -> 2 | AY59: =2*$E59 -> 2 | BA59: =2*$E59 -> 2 | BB59: =2*$E59 -> 2 | BD59: =2*$E59 -> 2 | BE59: =2*$E59 -> 2 | BF59: =2*$E59 -> 2 | BI59: =2*$E59 -> 2 | BJ59: 2 | BK59: 2 | BL59: 2 | BM59: 2 | BN59: 2 | BP59: =2*$E59 -> 2
A60: Ederson - Man City | D60: 15 | E60: =1+0+0+1 -> 2 | I60: =2*$E60 -> 4 | S60: =2*$E60 -> 4 | T60: =2*$E60 -> 4 | Y60: =2*$E60 -> 4 | AB60: =2*$E60 -> 4 | AC60: =2*$E60 -> 4 | AE60: =2*$E60 -> 4 | AG60: =2*$E60 -> 4 | AJ60: =2*$E60 -> 4 | AM60: =2*$E60 -> 4 | AT60: =2*$E60 -> 4 | AV60: =2*$E60 -> 4 | AZ60: =2*$E60 -> 4 | BC60: =2*$E60 -> 4 | BG60: =2*$E60 -> 4
A61: David de Gea - Man United | D61: 5 | E61: =1+0+0+0 -> 1 | Q61: =2*$E61 -> 2 | AA61: =2*$E61 -> 2 | AR61: =2*$E61 -> 2 | AX61: =2*$E61 -> 2 | BH61: =2*$E61 -> 2
A62: Hugo Lloris - Tottenham Hotspur | D62: 2 | E62: =0+0+0 -> 0 | K62: =2*$E62 -> 0 | BO62: =2*$E62 -> 0
A63: Kepa Arrizabalaga - Chelsea | D63: 1 | E63: =0+0+0+0 -> 0 | AD63: =2*$E63 -> 0
A65: Sack Race
A66: Brendan Rodgers - Leicester City | D66: =COUNT(H66:DV66) -> 0
A67: Chris Wilder - Sheffield United | D67: 4 | R67: =15*$E67 -> 0 | AH67: =15*$E67 -> 0 | AL67: =15*$E67 -> 0 | AY67: =15*$E67 -> 0
A68: Daniel Farke - Norwich City | D68: 1 | AI68: =15*$E68 -> 0
A69: Dean Smith - Aston Villa | D69: 8 | O69: =15*$E69 -> 0 | X69: =15*$E69 -> 0 | AC69: =15*$E69 -> 0 | AE69: =15*$E69 -> 0 | AG69: =15*$E69 -> 0 | AN69: =15*$E69 -> 0 | BI69: =15*$E69 -> 0 | BO69: =15*$E69 -> 0
A70: Eddie Howe - Bournemouth | D70: 0
A71: Frank Lampard - Chelsea | D71: 1 | S71: =15*$E71 -> 0
A72: Graham Potter - Brighton | D72: 6 | T72: =15*$E72 -> 0 | AP72: =15*$E72 -> 0 | BD72: =15*$E72 -> 0 | BE72: =15*$E72 -> 0 | BG72: =15*$E72 -> 0 | BP72: =15*$E72 -> 0
A73: Javi Gracia - Watford | D73: 3 | I73: =15*$E73 -> 0 | P73: =15*$E73 -> 0 | AW73: =15*$E73 -> 0
A74: Jurgen Klopp - Liverpool | D74: 0
A75: Manuel Pellegrini - West Ham United | D75: 4 | Z75: =15*$E75 -> 0 | AA75: =15*$E75 -> 0 | BF75: =15*$E75 -> 0 | BN75: =15*$E75 -> 0
A76: Marco Silva - Everton | D76: 4 | K76: =15*$E76 -> 0 | AX76: =15*$E76 -> 0 | BL76: =15*$E76 -> 0 | BM76: =15*$E76 -> 0
A77: Mauricio Pochettino - Tottenham Hotspur | D77: 0
A78: Nuno Espirito Santo - Wolves | D78: 0
A79: Ole Gunnar Solskjaer - Manchester United | D79: 9 | J79: =15*$E79 -> 0 | M79: =15*$E79 -> 0 | N79: =15*$E79 -> 0 | V79: =15*$E79 -> 0 | Y79: =15*$E79 -> 0 | AD79: =15*$E79 -> 0 | AK79: =15*$E79 -> 0 | AS79: =15*$E79 -> 0 | BB79: =15*$E79 -> 0
A80: Pep Guardiola - Manchester City | D80: 0
A81: Ralph Hassenhuttl - Southampton | D81: 2 | Q81: =15*$E81 -> 0 | AT81: =15*$E81 -> 0
A82: Roy Hodgson - Crystal Palace | D82: 8 | W82: =15*$E82 -> 0 | AB82: =15*$E82 -> 0 | AJ82: =15*$E82 -> 0 | AR82: =15*$E82 -> 0 | AU82: =15*$E82 -> 0 | BA82: =15*$E82 -> 0 | BC82: =15*$E82 -> 0 | BK82: =15*$E82 -> 0
A83: Sean Dyche - Burnley | D83: 3 | AM83: =15*$E83 -> 0 | AO83: =15*$E83 -> 0 | AV83: =15*$E83 -> 0
A84: Steve Bruce - Newcastle United | D84: 7 | L84: =15*$E84 -> 0 | U84: =15*$E84 -> 0 | AF84: =15*$E84 -> 0 | AQ84: =15*$E84 -> 0 | AZ84: =15*$E84 -> 0 | BH84: =15*$E84 -> 0 | BJ84: =15*$E84 -> 0
A85: Unai Emery - Arsenal | D85: 0
A87: Grand Total - August | I87: =SUM(I$3:I86) -> 90 | J87: =SUM(J$3:J86) -> 104 | K87: =SUM(K$3:K86) -> 119 | L87: =SUM(L$3:L86) -> 173 | M87: =SUM(M$3:M86) -> 90 | N87: =SUM(N$3:N86) -> 123 | O87: =SUM(O$3:O86) -> 98 | P87: =SUM(P$3:P86) -> 140 | Q87: =SUM(Q$3:Q86) -> 141 | R87: =SUM(R$3:R86) -> 118 | S87: =SUM(S$3:S86) -> 123 | T87: =SUM(T$3:T86) -> 130 | U87: =SUM(U$3:U86) -> 128 | V87: =SUM(V$3:V86) -> 138 | W87: =SUM(W$3:W86) -> 148 | X87: =SUM(X$3:X86) -> 129 | Y87: =SUM(Y$3:Y86) -> 138 | Z87: =SUM(Z$3:Z86) -> 140 | AA87: =SUM(AA$3:AA86) -> 131 | AB87: =SUM(AB$3:AB86) -> 118 | AC87: =SUM(AC$3:AC86) -> 115 | AD87: =SUM(AD$3:AD86) -> 111 | AE87: =SUM(AE$3:AE86) -> 148 | AF87: =SUM(AF$3:AF86) -> 157 | AG87: =SUM(AG$3:AG86) -> 112 | AH87: =SUM(AH$3:AH86) -> 128 | AI87: =SUM(AI$3:AI86) -> 131 | AJ87: =SUM(AJ$3:AJ86) -> 113 | AK87: =SUM(AK$3:AK86) -> 141 | AL87: =SUM(AL$3:AL86) -> 123 | AM87: =SUM(AM$3:AM86) -> 113 | AN87: =SUM(AN$3:AN86) -> 118 | AO87: =SUM(AO$3:AO86) -> 121 | AP87: =SUM(AP$3:AP86) -> 88 | AQ87: =SUM(AQ$3:AQ86) -> 125 | AR87: =SUM(AR$3:AR86) -> 119 | AS87: =SUM(AS$3:AS86) -> 138 | AT87: =SUM(AT$3:AT86) -> 131 | AU87: =SUM(AU$3:AU86) -> 138 | AV87: =SUM(AV$3:AV86) -> 121 | AW87: =SUM(AW$3:AW86) -> 111 | AX87: =SUM(AX$3:AX86) -> 116 | AY87: =SUM(AY$3:AY86) -> 118 | AZ87: =SUM(AZ$3:AZ86) -> 105 | BA87: =SUM(BA$3:BA86) -> 123 | BB87: =SUM(BB$3:BB86) -> 136 | BC87: =SUM(BC$3:BC86) -> 121 | BD87: =SUM(BD$3:BD86) -> 116 | BE87: =SUM(BE$3:BE86) -> 134 | BF87: =SUM(BF$3:BF86) -> 126 | BG87: =SUM(BG$3:BG86) -> 135 | BH87: =SUM(BH$3:BH86) -> 136 | BI87: =SUM(BI$3:BI86) -> 164 | BJ87: =SUM(BJ$3:BJ86) -> 121 | BK87: =SUM(BK$3:BK86) -> 121 | BL87: =SUM(BL$3:BL86) -> 161 | BM87: =SUM(BM$3:BM86) -> 136 | BN87: =SUM(BN$3:BN86) -> 103 | BO87: =SUM(BO$3:BO86) -> 109 | BP87: =SUM(BP$3:BP86) -> 154
A89: Ten Pointers | I89: =COUNTIF(I3:I40,"10") -> 3 | J89: =COUNTIF(J3:J40,"10") -> 2 | K89: 2 | L89: 6 | M89: 0 | N89: 5 | O89: 1 | P89: 4 | Q89: 5 | R89: 3 | S89: 4 | T89: 3 | U89: 6 | V89: 3 | W89: 8 | X89: 5 | Y89: 3 | Z89: 6 | AA89: 4 | AB89: 3 | AC89: 2 | AD89: 6 | AE89: 5 | AF89: 9 | AG89: 2 | AH89: 6 | AI89: 3 | AJ89: 1 | AK89: 5 | AL89: 3 | AM89: 4 | AN89: 2 | AO89: 5 | AP89: 2 | AQ89: 5 | AR89: 3 | AS89: 5 | AT89: 2 | AU89: 5 | AV89: 2 | AW89: 1 | AX89: 3 | AY89: 3 | AZ89: 1 | BA89: 3 | BB89: 4 | BC89: 5 | BD89: 2 | BE89: 6 | BF89: 3 | BG89: 6 | BH89: 5 | BI89: 5 | BJ89: 3 | BK89: 4 | BL89: 7 | BM89: 4 | BN89: 3 | BO89: 2 | BP89: 7

Sheet September
I1: Aidan Scanlon | J1: Aidan White | K1: Aiden Desch | L1: Anastas Popov | M1: Andy Dunne | N1: Anthony Michaels | O1: Barry McGoldrick | P1: Bobby Hynes | Q1: Brendan Maguire | R1: Brian Haughton | S1: Brian Mullen | T1: Brian Prendergast | U1: Callum Dunne | V1: Caroline Carroll | W1: Chris Keohan | X1: Ciaran O'Hart | Y1: Con McSweeney | Z1: Craig Calvert | AA1: Damien Martin | AB1: Darragh Kenny | AC1: Dave McGinley | AD1: David Cooney | AE1: Declan O'Neill | AF1: Eamon Fox | AG1: Eoghan Farrelly | AH1: Frank McSweeney | AI1: Gary Donnelly | AJ1: Gary Fitzpatrick | AK1: Gary McGurk | AL1: Gavin Morgan | AM1: Gerard McCluskey | AN1: Gerry Draper | AO1: Gerry Moore | AP1: Graham Goodwin | AQ1: Javier Suarez | AR1: Joe Behan | AS1: Joe Turner | AT1: John Brophy | AU1: Jonathan Fox | AV1: Karl Boland | AW1: Kevin Philpott | AX1: Kris Stainton | AY1: Liam Geraghty | AZ1: Liam Keohan | BA1: Mai-Ly Turner | BB1: Matthew Lynch | BC1: Micheal Joyce | BD1: Niall Carroll | BE1: Paul Moore | BF1: Paul Prendergast | BG1: Phil Doyle | BH1: Philip Jordan | BI1: Ralph Goodwin | BJ1: Richard Johnston | BK1: Roisin Joyce | BL1: Sean O'Mairtin | BM1: Simon Scanlon | BN1: Trevor Byrne | BO1: Victoria Reid | BP1: Wayne Donovan
A2: Day | B2: Date | C2: Teams | G2: Time
A3: Sun | B3: 2019-09-01 | C3: Everton | D3: 3 | E3: 2 | F3: Wolves | G3: 14:00:00 | I3: 5 | J3: 0 | K3: 5 | L3: 5 | M3: 5 | N3: 0 | O3: 5 | P3: 0 | Q3: 5 | R3: 5 | S3: 5 | T3: 5 | U3: 0 | V3: 5 | W3: 5 | X3: 5 | Y3: 5 | Z3: 0 | AA3: 0 | AB3: 0 | AC3: 5 | AD3: 0 | AE3: 0 | AF3: 5 | AG3: 5 | AH3: 0 | AI3: 5 | AJ3: 0 | AK3: 0 | AL3: 5 | AM3: 5 | AN3: 5 | AO3: 5 | AP3: 5 | AQ3: 0 | AR3: 0 | AS3: 0 | AT3: 5 | AU3: 5 | AV3: 5 | AW3: 5 | AX3: 0 | AY3: 5 | AZ3: 5 | BA3: 5 | BB3: 0 | BC3: 0 | BD3: 0 | BE3: 5 | BF3: 0 | BG3: 0 | BH3: 0 | BI3: 0 | BJ3: 5 | BK3: 0 | BL3: 0 | BM3: 5 | BN3: 5 | BO3: 0 | BP3: 0
A4: Sun | B4: 2019-09-01 | C4: Arsenal | D4: 2 | E4: 2 | F4: Tottenham | G4: 16:30:00 | I4: 0 | J4: 10 | K4: 0 | L4: 0 | M4: 10 | N4: 10 | O4: 0 | P4: 0 | Q4: 0 | R4: 0 | S4: 0 | T4: 0 | U4: 0 | V4: 0 | W4: 0 | X4: 5 | Y4: 10 | Z4: 5 | AA4: 10 | AB4: 5 | AC4: 10 | AD4: 0 | AE4: 0 | AF4: 0 | AG4: 10 | AH4: 0 | AI4: 0 | AJ4: 10 | AK4: 10 | AL4: 0 | AM4: 0 | AN4: 10 | AO4: 0 | AP4: 5 | AQ4: 5 | AR4: 0 | AS4: 0 | AT4: 5 | AU4: 0 | AV4: 10 | AW4: 5 | AX4: 0 | AY4: 10 | AZ4: 0 | BA4: 0 | BB4: 10 | BC4: 0 | BD4: 10 | BE4: 10 | BF4: 0 | BG4: 0 | BH4: 0 | BI4: 0 | BJ4: 0 | BK4: 0 | BL4: 0 | BM4: 0 | BN4: 0 | BO4: 0 | BP4: 5
A5: Sat | B5: 2019-09-14 | C5: Liverpool | D5: 3 | E5: 1 | F5: Newcastle United | G5: 12:30:00 | I5: 10 | J5: 5 | K5: 5 | L5: 5 | M5: 5 | N5: 5 | O5: 5 | P5: 5 | Q5: 5 | R5: 5 | S5: 5 | T5: 5 | U5: 5 | V5: 5 | W5: 5 | X5: 5 | Y5: 5 | Z5: 5 | AA5: 10 | AB5: 5 | AC5: 5 | AD5: 5 | AE5: 5 | AF5: 5 | AG5: 5 | AH5: 5 | AI5: 5 | AJ5: 5 | AK5: 5 | AL5: 5 | AM5: 10 | AN5: 5 | AO5: 5 | AP5: 5 | AQ5: 5 | AR5: 5 | AS5: 5 | AT5: 5 | AU5: 5 | AV5: 5 | AW5: 5 | AX5: 5 | AY5: 5 | AZ5: 5 | BA5: 10 | BB5: 5 | BC5: 5 | BD5: 5 | BE5: 5 | BF5: 5 | BG5: 5 | BH5: 5 | BI5: 5 | BJ5: 5 | BK5: 5 | BL5: 5 | BM5: 5 | BN5: 5 | BO5: 5 | BP5: 5
A6: Sat | B6: 2019-09-14 | C6: Brighton | D6: 1 | E6: 1 | F6: Burnley | G6: 15:00:00 | I6: 10 | J6: 10 | K6: 0 | L6: 10 | M6: 0 | N6: 0 | O6: 10 | P6: 0 | Q6: 10 | R6: 0 | S6: 0 | T6: 10 | U6: 0 | V6: 0 | W6: 0 | X6: 10 | Y6: 10 | Z6: 10 | AA6: 0 | AB6: 0 | AC6: 10 | AD6: 10 | AE6: 10 | AF6: 10 | AG6: 0 | AH6: 10 | AI6: 5 | AJ6: 10 | AK6: 5 | AL6: 0 | AM6: 0 | AN6: 10 | AO6: 5 | AP6: 10 | AQ6: 5 | AR6: 10 | AS6: 0 | AT6: 0 | AU6: 0 | AV6: 0 | AW6: 10 | AX6: 0 | AY6: 0 | AZ6: 0 | BA6: 0 | BB6: 10 | BC6: 10 | BD6: 10 | BE6: 0 | BF6: 0 | BG6: 5 | BH6: 0 | BI6: 10 | BJ6: 0 | BK6: 0 | BL6: 10 | BM6: 0 | BN6: 10 | BO6: 0 | BP6: 10
A7: Sat | B7: 2019-09-14 | C7: Man United | D7: 1 | E7: 0 | F7: Leicester City | G7: 15:00:00 | I7: 5 | J7: 5 | K7: 5 | L7: 5 | M7: 0 | N7: 10 | O7: 0 | P7: 0 | Q7: 5 | R7: 5 | S7: 0 | T7: 5 | U7: 0 | V7: 0 | W7: 5 | X7: 0 | Y7: 0 | Z7: 5 | AA7: 5 | AB7: 0 | AC7: 5 | AD7: 0 | AE7: 0 | AF7: 0 | AG7: 5 | AH7: 5 | AI7: 5 | AJ7: 0 | AK7: 5 | AL7: 0 | AM7: 5 | AN7: 0 | AO7: 0 | AP7: 5 | AQ7: 0 | AR7: 0 | AS7: 0 | AT7: 5 | AU7: 0 | AV7: 5 | AW7: 5 | AX7: 5 | AY7: 5 | AZ7: 0 | BA7: 0 | BB7: 0 | BC7: 0 | BD7: 5 | BE7: 0 | BF7: 0 | BG7: 0 | BH7: 5 | BI7: 0 | BJ7: 0 | BK7: 5 | BL7: 5 | BM7: 5 | BN7: 5 | BO7: 5 | BP7: 0
A8: Sat | B8: 2019-09-14 | C8: Sheffield United | D8: 0 | E8: 1 | F8: Southampton | G8: 15:00:00 | I8: 0 | J8: 0 | K8: 0 | L8: 0 | M8: 0 | N8: 0 | O8: 0 | P8: 0 | Q8: 0 | R8: 0 | S8: 0 | T8: 0 | U8: 0 | V8: 0 | W8: 0 | X8: 5 | Y8: 0 | Z8: 0 | AA8: 5 | AB8: 0 | AC8: 0 | AD8: 0 | AE8: 0 | AF8: 0 | AG8: 0 | AH8: 0 | AI8: 0 | AJ8: 0 | AK8: 0 | AL8: 0 | AM8: 0 | AN8: 0 | AO8: 0 | AP8: 0 | AQ8: 0 | AR8: 0 | AS8: 0 | AT8: 0 | AU8: 0 | AV8: 0 | AW8: 5 | AX8: 0 | AY8: 0 | AZ8: 10 | BA8: 0 | BB8: 0 | BC8: 0 | BD8: 0 | BE8: 0 | BF8: 0 | BG8: 0 | BH8: 0 | BI8: 0 | BJ8: 0 | BK8: 0 | BL8: 0 | BM8: 0 | BN8: 0 | BO8: 0 | BP8: 0
A9: Sat | B9: 2019-09-14 | C9: Tottenham | D9: 4 | E9: 0 | F9: Crystal Palace | G9: 15:00:00 | I9: 5 | J9: 5 | K9: 5 | L9: 5 | M9: 5 | N9: 5 | O9: 5 | P9: 5 | Q9: 5 | R9: 5 | S9: 5 | T9: 5 | U9: 5 | V9: 5 | W9: 5 | X9: 5 | Y9: 5 | Z9: 5 | AA9: 5 | AB9: 5 | AC9: 5 | AD9: 5 | AE9: 5 | AF9: 5 | AG9: 5 | AH9: 5 | AI9: 5 | AJ9: 5 | AK9: 5 | AL9: 5 | AM9: 5 | AN9: 5 | AO9: 5 | AP9: 5 | AQ9: 5 | AR9: 5 | AS9: 5 | AT9: 5 | AU9: 5 | AV9: 5 | AW9: 5 | AX9: 5 | AY9: 5 | AZ9: 5 | BA9: 5 | BB9: 5 | BC9: 5 | BD9: 5 | BE9: 5 | BF9: 5 | BG9: 5 | BH9: 5 | BI9: 5 | BJ9: 5 | BK9: 5 | BL9: 5 | BM9: 5 | BN9: 5 | BO9: 5 | BP9: 5
A10: Sat | B10: 2019-09-14 | C10: Wolves | D10: 2 | E10: 5 | F10: Chelsea | G10: 15:00:00 | I10: 0 | J10: 0 | K10: 0 | L10: 0 | M10: 5 | N10: 0 | O10: 0 | P10: 0 | Q10: 0 | R10: 5 | S10: 5 | T10: 0 | U10: 0 | V10: 0 | W10: 5 | X10: 5 | Y10: 0 | Z10: 0 | AA10: 5 | AB10: 0 | AC10: 0 | AD10: 5 | AE10: 0 | AF10: 0 | AG10: 0 | AH10: 0 | AI10: 0 | AJ10: 0 | AK10: 0 | AL10: 0 | AM10: 5 | AN10: 0 | AO10: 0 | AP10: 0 | AQ10: 5 | AR10: 5 | AS10: 0 | AT10: 0 | AU10: 0 | AV10: 0 | AW10: 0 | AX10: 0 | AY10: 5 | AZ10: 5 | BA10: 0 | BB10: 0 | BC10: 0 | BD10: 5 | BE10: 5 | BF10: 5 | BG10: 0 | BH10: 0 | BI10: 5 | BJ10: 5 | BK10: 5 | BL10: 0 | BM10: 0 | BN10: 5 | BO10: 0 | BP10: 0
A11: Sat | B11: 2019-09-14 | C11: Norwich City | D11: 3 | E11: 2 | F11: Man City | G11: 17:30:00 | I11: 0 | J11: 0 | K11: 5 | L11: 0 | M11: 0 | N11: 5 | O11: 0 | P11: 0 | Q11: 0 | R11: 0 | S11: 0 | T11: 0 | U11: 0 | V11: 0 | W11: 0 | X11: 0 | Y11: 0 | Z11: 0 | AA11: 0 | AB11: 0 | AC11: 0 | AD11: 0 | AE11: 0 | AF11: 0 | AG11: 0 | AH11: 0 | AI11: 0 | AJ11: 0 | AK11: 0 | AL11: 0 | AM11: 0 | AN11: 0 | AO11: 0 | AP11: 0 | AQ11: 0 | AR11: 5 | AS11: 0 | AT11: 5 | AU11: 0 | AV11: 0 | AW11: 0 | AX11: 0 | AY11: 0 | AZ11: 0 | BA11: 0 | BB11: 0 | BC11: 0 | BD11: 0 | BE11: 0 | BF11: 0 | BG11: 0 | BH11: 0 | BI11: 0 | BJ11: 0 | BK11: 0 | BL11: 0 | BM11: 5 | BN11: 0 | BO11: 0 | BP11: 0
A12: Sun | B12: 2019-09-15 | C12: Bournemouth | D12: 3 | E12: 1 | F12: Everton | G12: 14:00:00 | I12: 0 | J12: 0 | K12: 5 | L12: 5 | M12: 5 | N12: 5 | O12: 5 | P12: 5 | Q12: 5 | R12: 0 | S12: 0 | T12: 0 | U12: 0 | V12: 0 | W12: 5 | X12: 0 | Y12: 5 | Z12: 5 | AA12: 0 | AB12: 0 | AC12: 0 | AD12: 5 | AE12: 5 | AF12: 0 | AG12: 0 | AH12: 0 | AI12: 0 | AJ12: 10 | AK12: 0 | AL12: 0 | AM12: 0 | AN12: 0 | AO12: 0 | AP12: 5 | AQ12: 0 | AR12: 0 | AS12: 0 | AT12: 5 | AU12: 0 | AV12: 5 | AW12: 0 | AX12: 0 | AY12: 0 | AZ12: 0 | BA12: 0 | BB12: 0 | BC12: 0 | BD12: 5 | BE12: 0 | BF12: 0 | BG12: 0 | BH12: 0 | BI12: 5 | BJ12: 0 | BK12: 0 | BL12: 0 | BM12: 5 | BN12: 5 | BO12: 0 | BP12: 0
A13: Sun | B13: 2019-09-15 | C13: Watford | D13: 2 | E13: 2 | F13: Arsenal | G13: 16:30:00 | I13: 0 | J13: 0 | K13: 0 | L13: 5 | M13: 5 | N13: 0 | O13: 0 | P13: 0 | Q13: 0 | R13: 0 | S13: 0 | T13: 0 | U13: 0 | V13: 0 | W13: 0 | X13: 0 | Y13: 0 | Z13: 0 | AA13: 0 | AB13: 0 | AC13: 0 | AD13: 0 | AE13: 0 | AF13: 0 | AG13: 0 | AH13: 0 | AI13: 0 | AJ13: 10 | AK13: 5 | AL13: 0 | AM13: 10 | AN13: 0 | AO13: 0 | AP13: 0 | AQ13: 0 | AR13: 0 | AS13: 10 | AT13: 0 | AU13: 0 | AV13: 0 | AW13: 0 | AX13: 0 | AY13: 0 | AZ13: 0 | BA13: 0 | BB13: 0 | BC13: 0 | BD13: 0 | BE13: 0 | BF13: 0 | BG13: 0 | BH13: 0 | BI13: 0 | BJ13: 0 | BK13: 0 | BL13: 0 | BM13: 0 | BN13: 0 | BO13: 0 | BP13: 5
A14: Mon | B14: 2019-09-16 | C14: Aston Villa | D14: 0 | E14: 0 | F14: West Ham | G14: 20:00:00 | I14: 0 | J14: 0 | K14: 0 | L14: 5 | M14: 0 | N14: 0 | O14: 10 | P14: 5 | Q14: 0 | R14: 5 | S14: 0 | T14: 0 | U14: 0 | V14: 0 | W14: 0 | X14: 5 | Y14: 0 | Z14: 5 | AA14: 5 | AB14: 0 | AC14: 0 | AD14: 5 | AE14: 5 | AF14: 0 | AG14: 0 | AH14: 0 | AI14: 5 | AJ14: 0 | AK14: 0 | AL14: 5 | AM14: 0 | AN14: 0 | AO14: 5 | AP14: 0 | AQ14: 5 | AR14: 0 | AS14: 0 | AT14: 0 | AU14: 0 | AV14: 0 | AW14: 0 | AX14: 5 | AY14: 0 | AZ14: 0 | BA14: 0 | BB14: 0 | BC14: 5 | BD14: 5 | BE14: 5 | BF14: 0 | BG14: 5 | BH14: 0 | BI14: 0 | BJ14: 5 | BK14: 0 | BL14: 5 | BM14: 0 | BN14: 0 | BO14: 0 | BP14: 0
A15: Fri | B15: 2019-09-20 | C15: Southampton | D15: 1 | E15: 3 | F15: Bournemouth | G15: 20:00:00 | I15: 0 | J15: 0 | K15: 0 | L15: 0 | M15: 0 | N15: 0 | O15: 0 | P15: 0 | Q15: 0 | R15: 0 | S15: 0 | T15: 0 | U15: 5 | V15: 5 | W15: 5 | X15: 0 | Y15: 0 | Z15: 0 | AA15: 0 | AB15: 0 | AC15: 0 | AD15: 0 | AE15: 0 | AF15: 0 | AG15: 0 | AH15: 0 | AI15: 0 | AJ15: 0 | AK15: 0 | AL15: 0 | AM15: 0 | AN15: 0 | AO15: 0 | AP15: 0 | AQ15: 0 | AR15: 0 | AS15: 0 | AT15: 5 | AU15: 0 | AV15: 0 | AW15: 0 | AX15: 0 | AY15: 0 | AZ15: 5 | BA15: 0 | BB15: 0 | BC15: 5 | BD15: 0 | BE15: 0 | BF15: 0 | BG15: 0 | BH15: 0 | BI15: 0 | BJ15: 0 | BK15: 0 | BL15: 0 | BM15: 0 | BN15: 0 | BO15: 0 | BP15: 0
A16: Sat | B16: 2019-09-21 | C16: Leicester City | D16: 2 | E16: 1 | F16: Tottenham | G16: 12:30:00 | I16: 10 | J16: 0 | K16: 5 | L16: 0 | M16: 0 | N16: 0 | O16: 0 | P16: 0 | Q16: 0 | R16: 0 | S16: 0 | T16: 0 | U16: 0 | V16: 0 | W16: 0 | X16: 0 | Y16: 0 | Z16: 0 | AA16: 0 | AB16: 0 | AC16: 0 | AD16: 10 | AE16: 0 | AF16: 0 | AG16: 0 | AH16: 0 | AI16: 0 | AJ16: 10 | AK16: 0 | AL16: 0 | AM16: 10 | AN16: 0 | AO16: 10 | AP16: 0 | AQ16: 0 | AR16: 0 | AS16: 10 | AT16: 5 | AU16: 0 | AV16: 0 | AW16: 0 | AX16: 0 | AY16: 10 | AZ16: 0 | BA16: 0 | BB16: 0 | BC16: 0 | BD16: 0 | BE16: 0 | BF16: 0 | BG16: 0 | BH16: 0 | BI16: 0 | BJ16: 0 | BK16: 10 | BL16: 0 | BM16: 0 | BN16: 0 | BO16: 10 | BP16: 0
A17: Sat | B17: 2019-09-21 | C17: Burnley | D17: 2 | E17: 0 | F17: Norwich City | G17: 15:00:00 | I17: 0 | J17: 0 | K17: 10 | L17: 5 | M17: 5 | N17: 0 | O17: 5 | P17: 5 | Q17: 10 | R17: 0 | S17: 0 | T17: 10 | U17: 0 | V17: 5 | W17: 0 | X17: 5 | Y17: 5 | Z17: 5 | AA17: 0 | AB17: 0 | AC17: 5 | AD17: 5 | AE17: 0 | AF17: 10 | AG17: 0 | AH17: 0 | AI17: 5 | AJ17: 5 | AK17: 5 | AL17: 5 | AM17: 10 | AN17: 0 | AO17: 5 | AP17: 0 | AQ17: 0 | AR17: 0 | AS17: 10 | AT17: 0 | AU17: 5 | AV17: 5 | AW17: 5 | AX17: 0 | AY17: 5 | AZ17: 0 | BA17: 5 | BB17: 0 | BC17: 0 | BD17: 10 | BE17: 5 | BF17: 0 | BG17: 5 | BH17: 0 | BI17: 0 | BJ17: 0 | BK17: 5 | BL17: 5 | BM17: 0 | BN17: 0 | BO17: 0 | BP17: 5
A18: Sat | B18: 2019-09-21 | C18: Everton | D18: 0 | E18: 2 | F18: Sheffield United | G18: 15:00:00 | I18: 0 | J18: 0 | K18: 0 | L18: 0 | M18: 0 | N18: 0 | O18: 0 | P18: 0 | Q18: 0 | R18: 0 | S18: 0 | T18: 0 | U18: 5 | V18: 0 | W18: 0 | X18: 0 | Y18: 0 | Z18: 0 | AA18: 0 | AB18: 0 | AC18: 0 | AD18: 0 | AE18: 0 | AF18: 0 | AG18: 0 | AH18: 0 | AI18: 0 | AJ18: 0 | AK18: 0 | AL18: 0 | AM18: 0 | AN18: 0 | AO18: 0 | AP18: 0 | AQ18: 0 | AR18: 0 | AS18: 0 | AT18: 0 | AU18: 0 | AV18: 0 | AW18: 0 | AX18: 0 | AY18: 0 | AZ18: 0 | BA18: 0 | BB18: 0 | BC18: 0 | BD18: 0 | BE18: 0 | BF18: 0 | BG18: 0 | BH18: 0 | BI18: 0 | BJ18: 0 | BK18: 0 | BL18: 0 | BM18: 0 | BN18: 0 | BO18: 0 | BP18: 0
A19: Sat | B19: 2019-09-21 | C19: Man City | D19: 8 | E19: 0 | F19: Watford | G19: 15:00:00 | I19: 5 | J19: 5 | K19: 5 | L19: 5 | M19: 5 | N19: 5 | O19: 5 | P19: 5 | Q19: 5 | R19: 5 | S19: 5 | T19: 5 | U19: 5 | V19: 5 | W19: 5 | X19: 5 | Y19: 5 | Z19: 5 | AA19: 5 | AB19: 5 | AC19: 5 | AD19: 5 | AE19: 5 | AF19: 5 | AG19: 5 | AH19: 5 | AI19: 5 | AJ19: 5 | AK19: 5 | AL19: 5 | AM19: 5 | AN19: 5 | AO19: 5 | AP19: 5 | AQ19: 0 | AR19: 5 | AS19: 5 | AT19: 5 | AU19: 5 | AV19: 5 | AW19: 5 | AX19: 5 | AY19: 5 | AZ19: 5 | BA19: 5 | BB19: 5 | BC19: 5 | BD19: 5 | BE19: 5 | BF19: 5 | BG19: 5 | BH19: 5 | BI19: 5 | BJ19: 5 | BK19: 5 | BL19: 5 | BM19: 5 | BN19: 5 | BO19: 5 | BP19: 5
A20: Sat | B20: 2019-09-21 | C20: Newcastle United | D20: 0 | E20: 0 | F20: Brighton | G20: 17:30:00 | I20: 0 | J20: 0 | K20: 0 | L20: 0 | M20: 0 | N20: 0 | O20: 0 | P20: 0 | Q20: 0 | R20: 0 | S20: 5 | T20: 0 | U20: 0 | V20: 5 | W20: 0 | X20: 0 | Y20: 5 | Z20: 0 | AA20: 5 | AB20: 0 | AC20: 0 | AD20: 5 | AE20: 5 | AF20: 0 | AG20: 0 | AH20: 0 | AI20: 0 | AJ20: 5 | AK20: 0 | AL20: 5 | AM20: 5 | AN20: 0 | AO20: 10 | AP20: 0 | AQ20: 0 | AR20: 5 | AS20: 0 | AT20: 5 | AU20: 0 | AV20: 0 | AW20: 5 | AX20: 0 | AY20: 0 | AZ20: 0 | BA20: 0 | BB20: 5 | BC20: 5 | BD20: 0 | BE20: 5 | BF20: 0 | BG20: 5 | BH20: 0 | BI20: 0 | BJ20: 0 | BK20: 5 | BL20: 5 | BM20: 0 | BN20: 0 | BO20: 0 | BP20: 0
A21: Sun | B21: 2019-09-22 | C21: Crystal Palace | D21: 1 | E21: 1 | F21: Wolves | G21: 14:00:00 | I21: 10 | J21: 10 | K21: 0 | L21: 0 | M21: 5 | N21: 0 | O21: 0 | P21: 10 | Q21: 0 | R21: 0 | S21: 0 | T21: 10 | U21: 10 | V21: 0 | W21: 0 | X21: 0 | Y21: 0 | Z21: 0 | AA21: 0 | AB21: 0 | AC21: 10 | AD21: 0 | AE21: 0 | AF21: 0 | AG21: 0 | AH21: 0 | AI21: 0 | AJ21: 10 | AK21: 0 | AL21: 0 | AM21: 10 | AN21: 0 | AO21: 0 | AP21: 10 | AQ21: 0 | AR21: 0 | AS21: 0 | AT21: 10 | AU21: 0 | AV21: 5 | AW21: 0 | AX21: 0 | AY21: 0 | AZ21: 0 | BA21: 0 | BB21: 0 | BC21: 5 | BD21: 0 | BE21: 0 | BF21: 0 | BG21: 0 | BH21: 10 | BI21: 0 | BJ21: 0 | BK21: 10 | BL21: 0 | BM21: 5 | BN21: 0 | BO21: 0 | BP21: 5
A22: Sun | B22: 2019-09-22 | C22: West Ham | D22: 2 | E22: 0 | F22: Man United | G22: 14:00:00 | I22: 0 | J22: 0 | K22: 10 | L22: 5 | M22: 5 | N22: 5 | O22: 5 | P22: 0 | Q22: 0 | R22: 0 | S22: 0 | T22: 0 | U22: 5 | V22: 5 | W22: 0 | X22: 0 | Y22: 5 | Z22: 0 | AA22: 0 | AB22: 5 | AC22: 0 | AD22: 10 | AE22: 5 | AF22: 5 | AG22: 0 | AH22: 0 | AI22: 0 | AJ22: 5 | AK22: 0 | AL22: 5 | AM22: 0 | AN22: 0 | AO22: 0 | AP22: 0 | AQ22: 0 | AR22: 5 | AS22: 0 | AT22: 10 | AU22: 0 | AV22: 0 | AW22: 0 | AX22: 0 | AY22: 0 | AZ22: 0 | BA22: 0 | BB22: 0 | BC22: 0 | BD22: 0 | BE22: 5 | BF22: 0 | BG22: 0 | BH22: 0 | BI22: 5 | BJ22: 0 | BK22: 5 | BL22: 0 | BM22: 0 | BN22: 0 | BO22: 0 | BP22: 0
A23: Sun | B23: 2019-09-22 | C23: Arsenal | D23: 3 | E23: 2 | F23: Aston Villa | G23: 16:30:00 | I23: 5 | J23: 5 | K23: 5 | L23: 5 | M23: 5 | N23: 5 | O23: 5 | P23: 5 | Q23: 5 | R23: 5 | S23: 5 | T23: 5 | U23: 5 | V23: 5 | W23: 5 | X23: 5 | Y23: 5 | Z23: 5 | AA23: 5 | AB23: 5 | AC23: 5 | AD23: 5 | AE23: 5 | AF23: 5 | AG23: 5 | AH23: 5 | AI23: 5 | AJ23: 5 | AK23: 5 | AL23: 5 | AM23: 5 | AN23: 5 | AO23: 5 | AP23: 5 | AQ23: 5 | AR23: 5 | AS23: 5 | AT23: 5 | AU23: 5 | AV23: 5 | AW23: 5 | AX23: 5 | AY23: 5 | AZ23: 5 | BA23: 5 | BB23: 5 | BC23: 5 | BD23: 5 | BE23: 5 | BF23: 5 | BG23: 5 | BH23: 5 | BI23: 5 | BJ23: 5 | BK23: 5 | BL23: 5 | BM23: 5 | BN23: 5 | BO23: 5 | BP23: 5
A24: Sun | B24: 2019-09-22 | C24: Chelsea | D24: 1 | E24: 2 | F24: Liverpool | G24: 16:30:00 | I24: 0 | J24: 10 | K24: 0 | L24: 5 | M24: 5 | N24: 5 | O24: 5 | P24: 0 | Q24: 5 | R24: 10 | S24: 5 | T24: 10 | U24: 5 | V24: 5 | W24: 10 | X24: 0 | Y24: 5 | Z24: 0 | AA24: 5 | AB24: 5 | AC24: 10 | AD24: 0 | AE24: 10 | AF24: 5 | AG24: 0 | AH24: 5 | AI24: 5 | AJ24: 5 | AK24: 5 | AL24: 10 | AM24: 0 | AN24: 0 | AO24: 10 | AP24: 5 | AQ24: 5 | AR24: 5 | AS24: 0 | AT24: 0 | AU24: 10 | AV24: 10 | AW24: 5 | AX24: 10 | AY24: 0 | AZ24: 10 | BA24: 0 | BB24: 10 | BC24: 5 | BD24: 0 | BE24: 5 | BF24: 5 | BG24: 5 | BH24: 5 | BI24: 5 | BJ24: 5 | BK24: 10 | BL24: 10 | BM24: 5 | BN24: 5 | BO24: 5 | BP24: 0
A25: Sat | B25: 2019-09-28 | C25: Sheffield United | D25: 0 | E25: 1 | F25: Liverpool | G25: 12:30:00 | I25: 5 | J25: 0 | K25: - | L25: 5 | M25: 5 | N25: 5 | O25: 5 | P25: 5 | Q25: 5 | R25: 5 | S25: 5 | T25: 5 | U25: 5 | V25: 5 | W25: 5 | X25: 5 | Y25: 5 | Z25: 5 | AA25: 5 | AB25: 5 | AC25: 5 | AD25: 5 | AE25: 5 | AF25: 5 | AG25: 5 | AH25: 5 | AI25: 5 | AJ25: 5 | AK25: 5 | AL25: 5 | AM25: 5 | AN25: 5 | AO25: 5 | AP25: 5 | AQ25: 0 | AR25: 5 | AS25: 5 | AT25: 0 | AU25: 5 | AV25: 0 | AW25: 5 | AX25: 5 | AY25: 5 | AZ25: 5 | BA25: 5 | BB25: 5 | BC25: 5 | BD25: 0 | BE25: 5 | BF25: 5 | BG25: 5 | BH25: 5 | BI25: 5 | BJ25: 5 | BK25: 5 | BL25: 5 | BM25: 0 | BN25: 5 | BO25: 5 | BP25: 5
A26: Sat | B26: 2019-09-28 | C26: Aston Villa | D26: 2 | E26: 2 | F26: Burnley | G26: 15:00:00 | I26: 0 | J26: 0 | K26: - | L26: 5 | M26: 0 | N26: 5 | O26: 5 | P26: 0 | Q26: 0 | R26: 0 | S26: 5 | T26: 5 | U26: 10 | V26: 0 | W26: 0 | X26: 0 | Y26: 5 | Z26: 0 | AA26: 5 | AB26: 0 | AC26: 0 | AD26: 0 | AE26: 5 | AF26: 0 | AG26: 0 | AH26: 0 | AI26: 0 | AJ26: 5 | AK26: 0 | AL26: 0 | AM26: 10 | AN26: 5 | AO26: 5 | AP26: 0 | AQ26: 0 | AR26: 5 | AS26: 0 | AT26: 0 | AU26: 0 | AV26: 0 | AW26: 0 | AX26: 0 | AY26: 0 | AZ26: 0 | BA26: 0 | BB26: 0 | BC26: 10 | BD26: 5 | BE26: 5 | BF26: 5 | BG26: 10 | BH26: 0 | BI26: 0 | BJ26: 0 | BK26: 5 | BL26: 10 | BM26: 0 | BN26: 5 | BO26: 5 | BP26: 5
A27: Sat | B27: 2019-09-28 | C27: Bournemouth | D27: 2 | E27: 2 | F27: West Ham | G27: 15:00:00 | I27: 5 | J27: 0 | K27: - | L27: 0 | M27: 0 | N27: 0 | O27: 0 | P27: 0 | Q27: 0 | R27: 10 | S27: 0 | T27: 0 | U27: 0 | V27: 5 | W27: 0 | X27: 0 | Y27: 0 | Z27: 0 | AA27: 0 | AB27: 0 | AC27: 0 | AD27: 5 | AE27: 0 | AF27: 0 | AG27: 0 | AH27: 10 | AI27: 0 | AJ27: 10 | AK27: 0 | AL27: 0 | AM27: 0 | AN27: 0 | AO27: 5 | AP27: 0 | AQ27: 0 | AR27: 0 | AS27: 0 | AT27: 0 | AU27: 0 | AV27: 0 | AW27: 5 | AX27: 0 | AY27: 0 | AZ27: 0 | BA27: 0 | BB27: 0 | BC27: 10 | BD27: 5 | BE27: 5 | BF27: 0 | BG27: 0 | BH27: 0 | BI27: 5 | BJ27: 0 | BK27: 0 | BL27: 0 | BM27: 0 | BN27: 5 | BO27: 5 | BP27: 0
A28: Sat | B28: 2019-09-28 | C28: Chelsea | D28: 2 | E28: 0 | F28: Brighton | G28: 15:00:00 | I28: 10 | J28: 5 | K28: - | L28: 10 | M28: 5 | N28: 5 | O28: 5 | P28: 5 | Q28: 5 | R28: 5 | S28: 10 | T28: 5 | U28: 10 | V28: 10 | W28: 5 | X28: 10 | Y28: 10 | Z28: 5 | AA28: 5 | AB28: 10 | AC28: 10 | AD28: 10 | AE28: 5 | AF28: 10 | AG28: 5 | AH28: 0 | AI28: 5 | AJ28: 5 | AK28: 5 | AL28: 10 | AM28: 5 | AN28: 10 | AO28: 5 | AP28: 5 | AQ28: 5 | AR28: 0 | AS28: 10 | AT28: 5 | AU28: 10 | AV28: 10 | AW28: 10 | AX28: 10 | AY28: 10 | AZ28: 5 | BA28: 5 | BB28: 10 | BC28: 5 | BD28: 5 | BE28: 10 | BF28: 5 | BG28: 5 | BH28: 5 | BI28: 5 | BJ28: 5 | BK28: 10 | BL28: 10 | BM28: 5 | BN28: 0 | BO28: 5 | BP28: 5
A29: Sat | B29: 2019-09-28 | C29: Crystal Palace | D29: 2 | E29: 0 | F29: Norwich City | G29: 15:00:00 | I29: 0 | J29: 5 | K29: - | L29: 5 | M29: 5 | N29: 5 | O29: 10 | P29: 5 | Q29: 10 | R29: 5 | S29: 5 | T29: 5 | U29: 0 | V29: 5 | W29: 5 | X29: 5 | Y29: 5 | Z29: 0 | AA29: 5 | AB29: 5 | AC29: 5 | AD29: 0 | AE29: 5 | AF29: 5 | AG29: 5 | AH29: 5 | AI29: 0 | AJ29: 0 | AK29: 5 | AL29: 5 | AM29: 5 | AN29: 0 | AO29: 5 | AP29: 0 | AQ29: 5 | AR29: 5 | AS29: 10 | AT29: 0 | AU29: 5 | AV29: 10 | AW29: 5 | AX29: 0 | AY29: 0 | AZ29: 0 | BA29: 5 | BB29: 0 | BC29: 5 | BD29: 10 | BE29: 0 | BF29: 0 | BG29: 10 | BH29: 0 | BI29: 0 | BJ29: 5 | BK29: 5 | BL29: 0 | BM29: 5 | BN29: 5 | BO29: 0 | BP29: 5
A30: Sat | B30: 2019-09-28 | C30: Tottenham | D30: 2 | E30: 1 | F30: Southampton | G30: 15:00:00 | I30: 5 | J30: 5 | K30: - | L30: 5 | M30: 5 | N30: 5 | O30: 5 | P30: 5 | Q30: 10 | R30: 5 | S30: 5 | T30: 5 | U30: 10 | V30: 5 | W30: 5 | X30: 10 | Y30: 5 | Z30: 10 | AA30: 10 | AB30: 5 | AC30: 5 | AD30: 5 | AE30: 10 | AF30: 5 | AG30: 5 | AH30: 5 | AI30: 0 | AJ30: 10 | AK30: 5 | AL30: 5 | AM30: 5 | AN30: 5 | AO30: 5 | AP30: 5 | AQ30: 10 | AR30: 5 | AS30: 5 | AT30: 5 | AU30: 5 | AV30: 5 | AW30: 5 | AX30: 10 | AY30: 5 | AZ30: 10 | BA30: 5 | BB30: 5 | BC30: 5 | BD30: 5 | BE30: 5 | BF30: 5 | BG30: 5 | BH30: 10 | BI30: 5 | BJ30: 5 | BK30: 5 | BL30: 5 | BM30: 10 | BN30: 5 | BO30: 5 | BP30: 5
A31: Sat | B31: 2019-09-28 | C31: Wolves | D31: 2 | E31: 0 | F31: Watford | G31: 15:00:00 | I31: 5 | J31: 5 | K31: - | L31: 10 | M31: 0 | N31: 0 | O31: 5 | P31: 10 | Q31: 10 | R31: 10 | S31: 5 | T31: 5 | U31: 5 | V31: 10 | W31: 0 | X31: 10 | Y31: 10 | Z31: 10 | AA31: 5 | AB31: 5 | AC31: 5 | AD31: 5 | AE31: 5 | AF31: 10 | AG31: 0 | AH31: 0 | AI31: 10 | AJ31: 10 | AK31: 5 | AL31: 10 | AM31: 0 | AN31: 5 | AO31: 0 | AP31: 10 | AQ31: 5 | AR31: 5 | AS31: 5 | AT31: 5 | AU31: 5 | AV31: 10 | AW31: 5 | AX31: 10 | AY31: 10 | AZ31: 10 | BA31: 5 | BB31: 10 | BC31: 5 | BD31: 5 | BE31: 5 | BF31: 5 | BG31: 0 | BH31: 5 | BI31: 10 | BJ31: 5 | BK31: 10 | BL31: 0 | BM31: 5 | BN31: 5 | BO31: 10 | BP31: 5
A32: Sat | B32: 2019-09-28 | C32: Everton | D32: 1 | E32: 3 | F32: Man City | G32: 17:30:00 | I32: 0 | J32: 0 | K32: - | L32: 5 | M32: 5 | N32: 0 | O32: 5 | P32: 10 | Q32: 10 | R32: 10 | S32: 10 | T32: 5 | U32: 5 | V32: 0 | W32: 10 | X32: 10 | Y32: 5 | Z32: 10 | AA32: 5 | AB32: 5 | AC32: 5 | AD32: 5 | AE32: 5 | AF32: 5 | AG32: 5 | AH32: 5 | AI32: 0 | AJ32: 5 | AK32: 10 | AL32: 5 | AM32: 10 | AN32: 5 | AO32: 10 | AP32: 5 | AQ32: 0 | AR32: 10 | AS32: 5 | AT32: 5 | AU32: 5 | AV32: 0 | AW32: 5 | AX32: 10 | AY32: 0 | AZ32: 10 | BA32: 5 | BB32: 5 | BC32: 5 | BD32: 0 | BE32: 0 | BF32: 10 | BG32: 5 | BH32: 5 | BI32: 5 | BJ32: 5 | BK32: 10 | BL32: 10 | BM32: 0 | BN32: 10 | BO32: 5 | BP32: 5
A33: Sun | B33: 2019-09-29 | C33: Leicester City | D33: 5 | E33: 0 | F33: Newcastle United | G33: 16:30:00 | I33: 5 | J33: 5 | K33: - | L33: 5 | M33: 5 | N33: 5 | O33: 5 | P33: 5 | Q33: 0 | R33: 5 | S33: 5 | T33: 5 | U33: 5 | V33: 5 | W33: 5 | X33: 5 | Y33: 5 | Z33: 5 | AA33: 5 | AB33: 5 | AC33: 5 | AD33: 5 | AE33: 5 | AF33: 5 | AG33: 0 | AH33: 5 | AI33: 5 | AJ33: 5 | AK33: 5 | AL33: 5 | AM33: 0 | AN33: 5 | AO33: 5 | AP33: 5 | AQ33: 5 | AR33: 5 | AS33: 5 | AT33: 5 | AU33: 5 | AV33: 5 | AW33: 5 | AX33: 5 | AY33: 5 | AZ33: 5 | BA33: 5 | BB33: 5 | BC33: 5 | BD33: 5 | BE33: 5 | BF33: 5 | BG33: 5 | BH33: 5 | BI33: 5 | BJ33: 5 | BK33: 5 | BL33: 5 | BM33: 5 | BN33: 5 | BO33: 5 | BP33: 5
A34: Mon | B34: 2019-09-30 | C34: Man United | D34: 1 | E34: 1 | F34: Arsenal | G34: 20:00:00 | I34: 0 | J34: 0 | K34: - | L34: 10 | M34: 0 | N34: 0 | O34: 0 | P34: 0 | Q34: 0 | R34: 0 | S34: 0 | T34: 0 | U34: 10 | V34: 0 | W34: 0 | X34: 10 | Y34: 0 | Z34: 0 | AA34: 5 | AB34: 0 | AC34: 0 | AD34: 5 | AE34: 0 | AF34: 10 | AG34: 0 | AH34: 5 | AI34: 10 | AJ34: 0 | AK34: 5 | AL34: 0 | AM34: 0 | AN34: 10 | AO34: 0 | AP34: 10 | AQ34: 5 | AR34: 5 | AS34: 0 | AT34: 0 | AU34: 10 | AV34: 0 | AW34: 0 | AX34: 0 | AY34: 0 | AZ34: 0 | BA34: 0 | BB34: 5 | BC34: 0 | BD34: 10 | BE34: 0 | BF34: 0 | BG34: 0 | BH34: 0 | BI34: 0 | BJ34: 0 | BK34: 0 | BL34: 5 | BM34: 0 | BN34: 10 | BO34: 0 | BP34: 0
A36: Goalscorer #1
A37: Harry Kane - Tottenham Hotspur | D37: =COUNT(H37:DV37) -> 15 | E37: =1+0+1+1 -> 3 | K37: =2*$E37 -> 6 | T37: =2*$E37 -> 6 | AB37: =2*$E37 -> 6 | AD37: =2*$E37 -> 6 | AE37: =2*$E37 -> 6 | AI37: =2*$E37 -> 6 | AJ37: =2*$E37 -> 6 | AM37: =2*$E37 -> 6 | AP37: =2*$E37 -> 6 | AW37: =2*$E37 -> 6 | AX37: =2*$E37 -> 6 | BD37: =2*$E37 -> 6 | BF37: =2*$E37 -> 6 | BL37: =2*$E37 -> 6 | BO37: =2*$E37 -> 6
A38: Marcus Rashford - Man United | D38: =COUNT(H38:DV38) -> 2 | E38: =1+0+0 -> 1 | I38: =2*$E38 -> 2 | AA38: =2*$E38 -> 2
A39: Mohamed Salah - Liverpool | D39: 22 | E39: =1+0+0 -> 1 | L39: =2*$E39 -> 2 | M39: =2*$E39 -> 2 | N39: =2*$E39 -> 2 | O39: =2*$E39 -> 2 | P39: =2*$E39 -> 2 | R39: =2*$E39 -> 2 | U39: =2*$E39 -> 2 | V39: =2*$E39 -> 2 | W39: =2*$E39 -> 2 | Z39: =2*$E39 -> 2 | AC39: =2*$E39 -> 2 | AH39: =2*$E39 -> 2 | AL39: =2*$E39 -> 2 | AN39: =2*$E39 -> 2 | AQ39: =2*$E39 -> 2 | AR39: =2*$E39 -> 2 | AS39: =2*$E39 -> 2 | AU39: =2*$E39 -> 2 | AY39: =2*$E39 -> 2 | BA39: =2*$E39 -> 2 | BE39: =2*$E39 -> 2 | BG39: =2*$E39 -> 2
A40: Pierre Emerick Aubameyang - Arsenal | D40: 8 | E40: =1+2+1+1 -> 5 | Q40: =2*$E40 -> 10 | S40: =2*$E40 -> 10 | Y40: =2*$E40 -> 10 | AF40: =2*$E40 -> 10 | AK40: =2*$E40 -> 10 | AZ40: =2*$E40 -> 10 | BB40: =2*$E40 -> 10 | BM40: =2*$E40 -> 10
A41: Sadio Mane - Liverpool | D41: 3 | E41: =2+0+0 -> 2 | BJ41: =2*$E41 -> 4 | BK41: =2*$E41 -> 4 | BN41: =2*$E41 -> 4
A42: Sergio Aguero - Man City | D42: 10 | E42: =1+1+0 -> 2 | J42: =2*$E42 -> 4 | X42: =2*$E42 -> 4 | AG42: =2*$E42 -> 4 | AO42: =2*$E42 -> 4 | AT42: =2*$E42 -> 4 | AV42: =2*$E42 -> 4 | BC42: =2*$E42 -> 4 | BH42: =2*$E42 -> 4 | BI42: =2*$E42 -> 4 | BP42: =2*$E42 -> 4
A44: Goalscorer #2
A45: Alexandre Lacazette - Arsenal | D45: =COUNT(H45:DV45) -> 9 | E45: =1+0+0+0 -> 1 | M45: =2*$E45 -> 2 | P45: =2*$E45 -> 2 | T45: =2*$E45 -> 2 | AD45: =2*$E45 -> 2 | AO45: =2*$E45 -> 2 | AP45: =2*$E45 -> 2 | AQ45: =2*$E45 -> 2 | BH45: =2*$E45 -> 2 | BN45: =2*$E45 -> 2
A46: Ayoze Perez - Leicester City | D46: 1 | E46: =0+0+0 -> 0 | AM46: =2*$E46 -> 0
A47: Callum Wilson - Bournemouth | D47: 1 | E47: =2+1+1 -> 4 | I47: =2*$E47 -> 8
A48: Jamie Vardy - Leicester City | D48: 4 | E48: =0+0+2 -> 2 | AF48: =2*$E48 -> 4 | AG48: =2*$E48 -> 4 | AR48: =2*$E48 -> 4 | BE48: =2*$E48 -> 4
A49: Raheem Sterling - Man City | D49: 43 | E49: =0+0+1 -> 1 | J49: =2*$E49 -> 2 | K49: =2*$E49 -> 2 | L49: =2*$E49 -> 2 | N49: =2*$E49 -> 2 | O49: =2*$E49 -> 2 | Q49: =2*$E49 -> 2 | R49: =2*$E49 -> 2 | S49: 2 | U49: 2 | V49: 2 | W49: 2 | X49: 2 | Y49: =2*$E49 -> 2 | AA49: =2*$E49 -> 2 | AB49: =2*$E49 -> 2 | AC49: =2*$E49 -> 2 | AE49: =2*$E49 -> 2 | AH49: =2*$E49 -> 2 | AI49: =2*$E49 -> 2 | AJ49: =2*$E49 -> 2 | AK49: =2*$E49 -> 2 | AL49: =2*$E49 -> 2 | AN49: =2*$E49 -> 2 | AS49: =2*$E49 -> 2 | AT49: 2 | AU49: 2 | AV49: 2 | AW49: 2 | AX49: 2 | AY49: 2 | BA49: =2*$E49 -> 2 | BB49: =2*$E49 -> 2 | BC49: =2*$E49 -> 2 | BD49: =2*$E49 -> 2 | BF49: =2*$E49 -> 2 | BG49: =2*$E49 -> 2 | BI49: =2*$E49 -> 2 | BJ49: =2*$E49 -> 2 | BK49: =2*$E49 -> 2 | BL49: =2*$E49 -> 2 | BM49: =2*$E49 -> 2 | BO49: =2*$E49 -> 2 | BP49: =2*$E49 -> 2
A50: Raul Jiminez - Wolves | D50: 2 | E50: =1+0+0+0 -> 1 | Z50: =2*$E50 -> 2 | AZ50: =2*$E50 -> 2
A52: Golden Gloves
A53: Alisson Becker - Liverpool | D53: =COUNT(H53:DV53) -> 37 | E53: =0+0+0 -> 0 | J53: =2*$E53 -> 0 | L53: =2*$E53 -> 0 | M53: =2*$E53 -> 0 | N53: =2*$E53 -> 0 | O53: =2*$E53 -> 0 | P53: =2*$E53 -> 0 | R53: =2*$E53 -> 0 | U53: =2*$E53 -> 0 | V53: =2*$E53 -> 0 | W53: =2*$E53 -> 0 | X53: =2*$E53 -> 0 | Z53: =2*$E53 -> 0 | AF53: =2*$E53 -> 0 | AH53: =2*$E53 -> 0 | AI53: =2*$E53 -> 0 | AK53: =2*$E53 -> 0 | AL53: =2*$E53 -> 0 | AN53: =2*$E53 -> 0 | AO53: =2*$E53 -> 0 | AP53: =2*$E53 -> 0 | AQ53: =2*$E53 -> 0 | AS53: =2*$E53 -> 0 | AU53: =2*$E53 -> 0 | AW53: =2*$E53 -> 0 | AY53: =2*$E53 -> 0 | BA53: =2*$E53 -> 0 | BB53: =2*$E53 -> 0 | BD53: =2*$E53 -> 0 | BE53: =2*$E53 -> 0 | BF53: =2*$E53 -> 0 | BI53: =2*$E53 -> 0 | BJ53: 0 | BK53: 0 | BL53: 0 | BM53: 0 | BN53: 0 | BP53: =2*$E53 -> 0
A54: Ederson - Man City | D54: 15 | E54: =0+1+0 -> 1 | I54: =2*$E54 -> 2 | S54: =2*$E54 -> 2 | T54: =2*$E54 -> 2 | Y54: =2*$E54 -> 2 | AB54: =2*$E54 -> 2 | AC54: =2*$E54 -> 2 | AE54: =2*$E54 -> 2 | AG54: =2*$E54 -> 2 | AJ54: =2*$E54 -> 2 | AM54: =2*$E54 -> 2 | AT54: =2*$E54 -> 2 | AV54: =2*$E54 -> 2 | AZ54: =2*$E54 -> 2 | BC54: =2*$E54 -> 2 | BG54: =2*$E54 -> 2
A55: David de Gea - Man United | D55: 5 | E55: =1+0+0 -> 1 | Q55: =2*$E55 -> 2 | AA55: =2*$E55 -> 2 | AR55: =2*$E55 -> 2 | AX55: =2*$E55 -> 2 | BH55: =2*$E55 -> 2
A56: Hugo Lloris - Tottenham Hotspur | D56: 2 | E56: =0+1+0 -> 1 | K56: =2*$E56 -> 2 | BO56: =2*$E56 -> 2
A57: Kepa Arrizabalaga - Chelsea | D57: 1 | E57: =0+0+1 -> 1 | AD57: =2*$E57 -> 2
A59: Sack Race
A60: Brendan Rodgers - Leicester City | D60: =COUNT(H60:DV60) -> 0
A61: Chris Wilder - Sheffield United | D61: 4 | R61: =15*$E61 -> 0 | AH61: =15*$E61 -> 0 | AL61: =15*$E61 -> 0 | AY61: =15*$E61 -> 0
A62: Daniel Farke - Norwich City | D62: 1 | AI62: =15*$E62 -> 0
A63: Dean Smith - Aston Villa | D63: 8 | O63: =15*$E63 -> 0 | X63: =15*$E63 -> 0 | AC63: =15*$E63 -> 0 | AE63: =15*$E63 -> 0 | AG63: =15*$E63 -> 0 | AN63: =15*$E63 -> 0 | BI63: =15*$E63 -> 0 | BO63: =15*$E63 -> 0
A64: Eddie Howe - Bournemouth | D64: 0
A65: Frank Lampard - Chelsea | D65: 1 | S65: =15*$E65 -> 0
A66: Graham Potter - Brighton | D66: 6 | T66: =15*$E66 -> 0 | AP66: =15*$E66 -> 0 | BD66: =15*$E66 -> 0 | BE66: =15*$E66 -> 0 | BG66: =15*$E66 -> 0 | BP66: =15*$E66 -> 0
A67: Javi Gracia - Watford | D67: 3 | E67: 1 | I67: =15*$E67 -> 15 | P67: =15*$E67 -> 15 | AW67: =15*$E67 -> 15
A68: Jurgen Klopp - Liverpool | D68: 0
A69: Manuel Pellegrini - West Ham United | D69: 4 | Z69: =15*$E69 -> 0 | AA69: =15*$E69 -> 0 | BF69: =15*$E69 -> 0 | BN69: =15*$E69 -> 0
A70: Marco Silva - Everton | D70: 4 | K70: =15*$E70 -> 0 | AX70: =15*$E70 -> 0 | BL70: =15*$E70 -> 0 | BM70: =15*$E70 -> 0
A71: Mauricio Pochettino - Tottenham Hotspur | D71: 0
A72: Nuno Espirito Santo - Wolves | D72: 0
A73: Ole Gunnar Solskjaer - Manchester United | D73: 9 | J73: =15*$E73 -> 0 | M73: =15*$E73 -> 0 | N73: =15*$E73 -> 0 | V73: =15*$E73 -> 0 | Y73: =15*$E73 -> 0 | AD73: =15*$E73 -> 0 | AK73: =15*$E73 -> 0 | AS73: =15*$E73 -> 0 | BB73: =15*$E73 -> 0
A74: Pep Guardiola - Manchester City | D74: 0
A75: Ralph Hassenhuttl - Southampton | D75: 2 | Q75: =15*$E75 -> 0 | AT75: =15*$E75 -> 0
A76: Roy Hodgson - Crystal Palace | D76: 8 | W76: =15*$E76 -> 0 | AB76: =15*$E76 -> 0 | AJ76: =15*$E76 -> 0 | AR76: =15*$E76 -> 0 | AU76: =15*$E76 -> 0 | BA76: =15*$E76 -> 0 | BC76: =15*$E76 -> 0 | BK76: =15*$E76 -> 0
A77: Sean Dyche - Burnley | D77: 3 | AM77: =15*$E77 -> 0 | AO77: =15*$E77 -> 0 | AV77: =15*$E77 -> 0
A78: Steve Bruce - Newcastle United | D78: 7 | L78: =15*$E78 -> 0 | U78: =15*$E78 -> 0 | AF78: =15*$E78 -> 0 | AQ78: =15*$E78 -> 0 | AZ78: =15*$E78 -> 0 | BH78: =15*$E78 -> 0 | BJ78: =15*$E78 -> 0
A79: Unai Emery - Arsenal | D79: 0
A81: Grand Total - September | I81: =SUM(I$3:I80) -> 127 | J81: =SUM(J$3:J80) -> 96 | K81: =SUM(K$3:K80) -> 75 | L81: =SUM(L$3:L80) -> 134 | M81: =SUM(M$3:M80) -> 104 | N81: =SUM(N$3:N80) -> 94 | O81: =SUM(O$3:O80) -> 114 | P81: =SUM(P$3:P80) -> 109 | Q81: =SUM(Q$3:Q80) -> 124 | R81: =SUM(R$3:R80) -> 109 | S81: =SUM(S$3:S80) -> 104 | T81: =SUM(T$3:T80) -> 120 | U81: =SUM(U$3:U80) -> 114 | V81: =SUM(V$3:V80) -> 99 | W81: =SUM(W$3:W80) -> 94 | X81: =SUM(X$3:X80) -> 131 | Y81: =SUM(Y$3:Y80) -> 134 | Z81: =SUM(Z$3:Z80) -> 104 | AA81: =SUM(AA$3:AA80) -> 121 | AB81: =SUM(AB$3:AB80) -> 85 | AC81: =SUM(AC$3:AC80) -> 121 | AD81: =SUM(AD$3:AD80) -> 130 | AE81: =SUM(AE$3:AE80) -> 115 | AF81: =SUM(AF$3:AF80) -> 124 | AG81: =SUM(AG$3:AG80) -> 75 | AH81: =SUM(AH$3:AH80) -> 84 | AI81: =SUM(AI$3:AI80) -> 93 | AJ81: =SUM(AJ$3:AJ80) -> 165 | AK81: =SUM(AK$3:AK80) -> 112 | AL81: =SUM(AL$3:AL80) -> 104 | AM81: =SUM(AM$3:AM80) -> 133 | AN81: =SUM(AN$3:AN80) -> 99 | AO81: =SUM(AO$3:AO80) -> 121 | AP81: =SUM(AP$3:AP80) -> 118 | AQ81: =SUM(AQ$3:AQ80) -> 79 | AR81: =SUM(AR$3:AR80) -> 108 | AS81: =SUM(AS$3:AS80) -> 99 | AT81: =SUM(AT$3:AT80) -> 113 | AU81: =SUM(AU$3:AU80) -> 94 | AV81: =SUM(AV$3:AV80) -> 113 | AW81: =SUM(AW$3:AW80) -> 133 | AX81: =SUM(AX$3:AX80) -> 100 | AY81: =SUM(AY$3:AY80) -> 99 | AZ81: =SUM(AZ$3:AZ80) -> 114 | BA81: =SUM(BA$3:BA80) -> 74 | BB81: =SUM(BB$3:BB80) -> 112 | BC81: =SUM(BC$3:BC80) -> 118 | BD81: =SUM(BD$3:BD80) -> 128 | BE81: =SUM(BE$3:BE80) -> 111 | BF81: =SUM(BF$3:BF80) -> 78 | BG81: =SUM(BG$3:BG80) -> 96 | BH81: =SUM(BH$3:BH80) -> 83 | BI81: =SUM(BI$3:BI80) -> 96 | BJ81: =SUM(BJ$3:BJ80) -> 81 | BK81: =SUM(BK$3:BK80) -> 136 | BL81: =SUM(BL$3:BL80) -> 118 | BM81: =SUM(BM$3:BM80) -> 92 | BN81: =SUM(BN$3:BN80) -> 116 | BO81: =SUM(BO$3:BO80) -> 95 | BP81: =SUM(BP$3:BP80) -> 96
A83: Ten Pointers | I83: =COUNTIF(I3:I34,"10") -> 5 | J83: 4 | K83: 2 | L83: 4 | M83: 1 | N83: 2 | O83: 3 | P83: 3 | Q83: 6 | R83: 4 | S83: 2 | T83: 4 | U83: 5 | V83: 2 | W83: 2 | X83: 6 | Y83: 4 | Z83: 4 | AA83: 3 | AB83: 1 | AC83: 5 | AD83: 4 | AE83: 3 | AF83: 5 | AG83: 1 | AH83: 2 | AI83: 2 | AJ83: 9 | AK83: 2 | AL83: 3 | AM83: 7 | AN83: 4 | AO83: =COUNTIF(AO3:AO34,"10") -> 4 | AP83: 4 | AQ83: 1 | AR83: 2 | AS83: 5 | AT83: 2 | AU83: 3 | AV83: 5 | AW83: 2 | AX83: 5 | AY83: 4 | AZ83: 5 | BA83: 1 | BB83: 5 | BC83: 3 | BD83: 5 | BE83: 2 | BF83: 1 | BG83: 2 | BH83: 2 | BI83: 2 | BJ83: 0 | BK83: 6 | BL83: 5 | BM83: 1 | BN83: 3 | BO83: 2 | BP83: 1

Sheet October
I1: Aidan Scanlon | J1: Aidan White | K1: Aiden Desch | L1: Anastas Popov | M1: Andy Dunne | N1: Anthony Michaels | O1: Barry McGoldrick | P1: Bobby Hynes | Q1: Brendan Maguire | R1: Brian Haughton | S1: Brian Mullen | T1: Brian Prendergast | U1: Callum Dunne | V1: Caroline Carroll | W1: Chris Keohan | X1: Ciaran O'Hart | Y1: Con McSweeney | Z1: Craig Calvert | AA1: Damien Martin | AB1: Darragh Kenny | AC1: Dave McGinley | AD1: David Cooney | AE1: Declan O'Neill | AF1: Eamon Fox | AG1: Eoghan Farrelly | AH1: Frank McSweeney | AI1: Gary Donnelly | AJ1: Gary Fitzpatrick | AK1: Gary McGurk | AL1: Gavin Morgan | AM1: Gerard McCluskey | AN1: Gerry Draper | AO1: Gerry Moore | AP1: Graham Goodwin | AQ1: Javier Suarez | AR1: Joe Behan | AS1: Joe Turner | AT1: John Brophy | AU1: Jonathan Fox | AV1: Karl Boland | AW1: Kevin Philpott | AX1: Kris Stainton | AY1: Liam Geraghty | AZ1: Liam Keohan | BA1: Mai-Ly Turner | BB1: Matthew Lynch | BC1: Micheal Joyce | BD1: Niall Carroll | BE1: Paul Moore | BF1: Paul Prendergast | BG1: Phil Doyle | BH1: Philip Jordan | BI1: Ralph Goodwin | BJ1: Richard Johnston | BK1: Roisin Joyce | BL1: Sean O'Mairtin | BM1: Simon Scanlon | BN1: Trevor Byrne | BO1: Victoria Reid | BP1: Wayne Donovan
A2: Day | B2: Date | C2: Teams | G2: Time
A3: Sat | B3: 2019-10-05 | C3: Brighton | D3: 3 | E3: 0 | F3: Tottenham | G3: 12:30:00 | I3: 0 | J3: 0 | K3: 0 | L3: 0 | M3: 0 | N3: 0 | O3: 0 | P3: 0 | Q3: 0 | R3: 0 | S3: 0 | T3: 0 | U3: 0 | V3: 0 | W3: 0 | X3: 0 | Y3: 0 | Z3: 0 | AA3: 5 | AB3: 0 | AC3: 0 | AD3: 0 | AE3: 0 | AF3: 0 | AG3: 0 | AH3: 0 | AI3: 0 | AJ3: 0 | AK3: 0 | AL3: 0 | AM3: 5 | AN3: 0 | AO3: 0 | AP3: 0 | AQ3: 0 | AR3: 0 | AS3: 0 | AT3: 0 | AU3: 0 | AV3: 0 | AW3: 0 | AX3: 0 | AY3: 0 | AZ3: 0 | BA3: 0 | BB3: 0 | BC3: 0 | BD3: 0 | BE3: 0 | BF3: 0 | BG3: 0 | BH3: 0 | BI3: 0 | BJ3: 5 | BK3: 0 | BL3: 0 | BM3: 0 | BN3: 0 | BO3: 0 | BP3: 0
A4: Sat | B4: 2019-10-05 | C4: Burnley | D4: 1 | E4: 0 | F4: Everton | G4: 15:00:00 | I4: 0 | J4: 0 | K4: 0 | L4: 10 | M4: 5 | N4: 0 | O4: 5 | P4: 5 | Q4: 5 | R4: 5 | S4: 0 | T4: 0 | U4: 0 | V4: 0 | W4: 5 | X4: 10 | Y4: 5 | Z4: 5 | AA4: 0 | AB4: 5 | AC4: 0 | AD4: 5 | AE4: 0 | AF4: 5 | AG4: 5 | AH4: 0 | AI4: 0 | AJ4: 5 | AK4: 5 | AL4: 5 | AM4: 10 | AN4: 10 | AO4: 0 | AP4: 0 | AQ4: 0 | AR4: 5 | AS4: 0 | AT4: 10 | AU4: 10 | AV4: 0 | AW4: 0 | AX4: 0 | AY4: 0 | AZ4: 0 | BA4: 0 | BB4: 0 | BC4: 0 | BD4: 0 | BE4: 5 | BF4: 5 | BG4: 5 | BH4: 10 | BI4: 5 | BJ4: 0 | BK4: 5 | BL4: 5 | BM4: 0 | BN4: 0 | BO4: 0 | BP4: 10
A5: Sat | B5: 2019-10-05 | C5: Liverpool | D5: 2 | E5: 1 | F5: Leicester City | G5: 15:00:00 | I5: 0 | J5: 10 | K5: 5 | L5: 5 | M5: 5 | N5: 5 | O5: 5 | P5: 10 | Q5: 5 | R5: 5 | S5: 0 | T5: 10 | U5: 5 | V5: 5 | W5: 5 | X5: 0 | Y5: 5 | Z5: 0 | AA5: 5 | AB5: 5 | AC5: 5 | AD5: 5 | AE5: 5 | AF5: 10 | AG5: 5 | AH5: 5 | AI5: 5 | AJ5: 10 | AK5: 5 | AL5: 10 | AM5: 5 | AN5: 10 | AO5: 0 | AP5: 5 | AQ5: 10 | AR5: 5 | AS5: 10 | AT5: 0 | AU5: 10 | AV5: 5 | AW5: 10 | AX5: 0 | AY5: 5 | AZ5: 0 | BA5: 5 | BB5: 5 | BC5: 0 | BD5: 0 | BE5: 5 | BF5: 5 | BG5: 0 | BH5: 5 | BI5: 10 | BJ5: 5 | BK5: 5 | BL5: 5 | BM5: 0 | BN5: 5 | BO5: 5 | BP5: 10
A6: Sat | B6: 2019-10-05 | C6: Norwich City | D6: 1 | E6: 5 | F6: Aston Villa | G6: 15:00:00 | I6: 5 | J6: 0 | K6: 5 | L6: 0 | M6: 0 | N6: 5 | O6: 0 | P6: 0 | Q6: 0 | R6: 0 | S6: 0 | T6: 0 | U6: 0 | V6: 0 | W6: 0 | X6: 0 | Y6: 0 | Z6: 0 | AA6: 5 | AB6: 0 | AC6: 0 | AD6: 0 | AE6: 0 | AF6: 0 | AG6: 5 | AH6: 0 | AI6: 5 | AJ6: 0 | AK6: 0 | AL6: 0 | AM6: 0 | AN6: 0 | AO6: 0 | AP6: 0 | AQ6: 0 | AR6: 0 | AS6: 0 | AT6: 0 | AU6: 0 | AV6: 0 | AW6: 0 | AX6: 0 | AY6: 0 | AZ6: 5 | BA6: 0 | BB6: 0 | BC6: 5 | BD6: 5 | BE6: 0 | BF6: 5 | BG6: 0 | BH6: 5 | BI6: 0 | BJ6: 0 | BK6: 0 | BL6: 0 | BM6: 0 | BN6: 0 | BO6: 0 | BP6: 0
A7: Sat | B7: 2019-10-05 | C7: Watford | D7: 0 | E7: 0 | F7: Sheffield United | G7: 15:00:00 | I7: 0 | J7: 5 | K7: 0 | L7: 0 | M7: 5 | N7: 10 | O7: 5 | P7: 0 | Q7: 0 | R7: 5 | S7: 0 | T7: 0 | U7: 5 | V7: 5 | W7: 0 | X7: 0 | Y7: 0 | Z7: 5 | AA7: 0 | AB7: 0 | AC7: 5 | AD7: 0 | AE7: 0 | AF7: 0 | AG7: 0 | AH7: 0 | AI7: 0 | AJ7: 0 | AK7: 0 | AL7: 0 | AM7: 0 | AN7: 0 | AO7: 5 | AP7: 10 | AQ7: 10 | AR7: 0 | AS7: 5 | AT7: 10 | AU7: 0 | AV7: 0 | AW7: 0 | AX7: 0 | AY7: 0 | AZ7: 0 | BA7: 5 | BB7: 5 | BC7: 0 | BD7: 0 | BE7: 5 | BF7: 0 | BG7: 0 | BH7: 5 | BI7: 0 | BJ7: 0 | BK7: 0 | BL7: 5 | BM7: 0 | BN7: 5 | BO7: 0 | BP7: 5
A8: Sat | B8: 2019-10-05 | C8: West Ham | D8: 1 | E8: 2 | F8: Crystal Palace | G8: 17:30:00 | I8: 0 | J8: 0 | K8: 0 | L8: 0 | M8: 0 | N8: 5 | O8: 0 | P8: 0 | Q8: 0 | R8: 0 | S8: 0 | T8: 0 | U8: 0 | V8: 0 | W8: 0 | X8: 0 | Y8: 0 | Z8: 0 | AA8: 0 | AB8: 0 | AC8: 0 | AD8: 0 | AE8: 0 | AF8: 0 | AG8: 0 | AH8: 0 | AI8: 0 | AJ8: 0 | AK8: 0 | AL8: 0 | AM8: 0 | AN8: 0 | AO8: 0 | AP8: 0 | AQ8: 10 | AR8: 0 | AS8: 0 | AT8: 0 | AU8: 0 | AV8: 0 | AW8: 0 | AX8: 0 | AY8: 5 | AZ8: 0 | BA8: 0 | BB8: 0 | BC8: 0 | BD8: 0 | BE8: 0 | BF8: 0 | BG8: 0 | BH8: 0 | BI8: 0 | BJ8: 0 | BK8: 0 | BL8: 0 | BM8: 0 | BN8: 0 | BO8: 0 | BP8: 0
A9: Sun | B9: 2019-10-06 | C9: Arsenal | D9: 1 | E9: 0 | F9: Bournemouth | G9: 14:00:00 | I9: 5 | J9: 5 | K9: 5 | L9: 5 | M9: 5 | N9: 5 | O9: 5 | P9: 5 | Q9: 5 | R9: 5 | S9: 5 | T9: 5 | U9: 5 | V9: 5 | W9: 5 | X9: 5 | Y9: 5 | Z9: 5 | AA9: 5 | AB9: 5 | AC9: 5 | AD9: 5 | AE9: 5 | AF9: 5 | AG9: 5 | AH9: 5 | AI9: 5 | AJ9: 5 | AK9: 5 | AL9: 5 | AM9: 10 | AN9: 5 | AO9: 5 | AP9: 5 | AQ9: 5 | AR9: 5 | AS9: 5 | AT9: 5 | AU9: 5 | AV9: 5 | AW9: 5 | AX9: 5 | AY9: 5 | AZ9: 5 | BA9: 5 | BB9: 5 | BC9: 5 | BD9: 5 | BE9: 5 | BF9: 5 | BG9: 5 | BH9: 10 | BI9: 10 | BJ9: 5 | BK9: 5 | BL9: 5 | BM9: 5 | BN9: 5 | BO9: 5 | BP9: 5
A10: Sun | B10: 2019-10-06 | C10: Man City | D10: 0 | E10: 2 | F10: Wolves | G10: 14:00:00 | I10: 0 | J10: 0 | K10: 0 | L10: 0 | M10: 0 | N10: 0 | O10: 0 | P10: 0 | Q10: 0 | R10: 0 | S10: 0 | T10: 0 | U10: 0 | V10: 0 | W10: 0 | X10: 0 | Y10: 0 | Z10: 0 | AA10: 0 | AB10: 0 | AC10: 0 | AD10: 0 | AE10: 0 | AF10: 0 | AG10: 0 | AH10: 0 | AI10: 0 | AJ10: 0 | AK10: 0 | AL10: 0 | AM10: 0 | AN10: 0 | AO10: 0 | AP10: 0 | AQ10: 0 | AR10: 0 | AS10: 0 | AT10: 0 | AU10: 0 | AV10: 0 | AW10: 0 | AX10: 0 | AY10: 0 | AZ10: 0 | BA10: 0 | BB10: 0 | BC10: 0 | BD10: 0 | BE10: 0 | BF10: 0 | BG10: 0 | BH10: 0 | BI10: 0 | BJ10: 0 | BK10: 0 | BL10: 0 | BM10: 0 | BN10: 0 | BO10: 0 | BP10: 0
A11: Sun | B11: 2019-10-06 | C11: Southampton | D11: 1 | E11: 4 | F11: Chelsea | G11: 14:00:00 | I11: 5 | J11: 5 | K11: 0 | L11: 5 | M11: 0 | N11: 5 | O11: 5 | P11: 5 | Q11: 0 | R11: 5 | S11: 5 | T11: 5 | U11: 5 | V11: 5 | W11: 5 | X11: 0 | Y11: 5 | Z11: 5 | AA11: 5 | AB11: 0 | AC11: 5 | AD11: 5 | AE11: 0 | AF11: 5 | AG11: 5 | AH11: 5 | AI11: 5 | AJ11: 0 | AK11: 0 | AL11: 5 | AM11: 0 | AN11: 5 | AO11: 5 | AP11: 5 | AQ11: 10 | AR11: 0 | AS11: 5 | AT11: 5 | AU11: 5 | AV11: 5 | AW11: 5 | AX11: 5 | AY11: 5 | AZ11: 5 | BA11: 5 | BB11: 5 | BC11: 5 | BD11: 5 | BE11: 5 | BF11: 5 | BG11: 5 | BH11: 5 | BI11: 5 | BJ11: 10 | BK11: 5 | BL11: 0 | BM11: 5 | BN11: 5 | BO11: 0 | BP11: 5
A12: Sun | B12: 2019-10-06 | C12: Newcastle United | D12: 1 | E12: 0 | F12: Man United | G12: 16:30:00 | I12: 0 | J12: 0 | K12: 10 | L12: 0 | M12: 10 | N12: 5 | O12: 0 | P12: 0 | Q12: 0 | R12: 0 | S12: 0 | T12: 0 | U12: 10 | V12: 0 | W12: 0 | X12: 0 | Y12: 0 | Z12: 0 | AA12: 0 | AB12: 0 | AC12: 0 | AD12: 0 | AE12: 0 | AF12: 0 | AG12: 0 | AH12: 0 | AI12: 0 | AJ12: 0 | AK12: 0 | AL12: 0 | AM12: 10 | AN12: 0 | AO12: 0 | AP12: 0 | AQ12: 0 | AR12: 0 | AS12: 0 | AT12: 10 | AU12: 0 | AV12: 0 | AW12: 0 | AX12: 0 | AY12: 0 | AZ12: 0 | BA12: 0 | BB12: 0 | BC12: 0 | BD12: 0 | BE12: 0 | BF12: 0 | BG12: 0 | BH12: 0 | BI12: 0 | BJ12: 5 | BK12: 0 | BL12: 0 | BM12: 0 | BN12: 0 | BO12: 5 | BP12: 0
A13: Sat | B13: 2019-10-19 | C13: Everton | F13: West Ham | G13: 12:30:00
A14: Sat | B14: 2019-10-19 | C14: Aston Villa | F14: Brighton | G14: 15:00:00
A15: Sat | B15: 2019-10-19 | C15: Bournemouth | F15: Norwich City | G15: 15:00:00
A16: Sat | B16: 2019-10-19 | C16: Chelsea | F16: Newcastle United | G16: 15:00:00
A17: Sat | B17: 2019-10-19 | C17: Leicester City | F17: Burnley | G17: 15:00:00
A18: Sat | B18: 2019-10-19 | C18: Tottenham | F18: Watford | G18: 15:00:00
A19: Sat | B19: 2019-10-19 | C19: Wolves | F19: Southampton | G19: 15:00:00
A20: Sat | B20: 2019-10-19 | C20: Crystal Palace | F20: Man City | G20: 17:30:00
A21: Sun | B21: 2019-10-20 | C21: Man United | F21: Liverpool | G21: 16:30:00
A22: Mon | B22: 2019-10-21 | C22: Sheffield United | F22: Arsenal | G22: 20:00:00
A23: Fri | B23: 2019-10-25 | C23: Southampton | F23: Leicester City | G23: 20:00:00
A24: Sat | B24: 2019-10-26 | C24: Man City | F24: Aston Villa | G24: 12:30:00
A25: Sat | B25: 2019-10-26 | C25: Brighton | F25: Everton | G25: 15:00:00
A26: Sat | B26: 2019-10-26 | C26: Watford | F26: Bournemouth | G26: 15:00:00
A27: Sat | B27: 2019-10-26 | C27: West Ham | F27: Sheffield United | G27: 15:00:00
A28: Sat | B28: 2019-10-26 | C28: Burnley | F28: Chelsea | G28: 17:30:00
A29: Sun | B29: 2019-10-27 | C29: Newcastle United | F29: Wolves | G29: 14:00:00
A30: Sun | B30: 2019-10-27 | C30: Arsenal | F30: Crystal Palace | G30: 16:30:00
A31: Sun | B31: 2019-10-27 | C31: Liverpool | F31: Tottenham | G31: 16:30:00
A32: Sun | B32: 2019-10-27 | C32: Norwich City | F32: Man United | G32: 16:30:00
A34: Goalscorer #1
A35: Harry Kane - Tottenham Hotspur | D35: =COUNT(H35:DV35) -> 15 | E35: =0 -> 0 | K35: =2*$E35 -> 0 | T35: =2*$E35 -> 0 | AB35: =2*$E35 -> 0 | AD35: =2*$E35 -> 0 | AE35: =2*$E35 -> 0 | AI35: =2*$E35 -> 0 | AJ35: =2*$E35 -> 0 | AM35: =2*$E35 -> 0 | AP35: =2*$E35 -> 0 | AW35: =2*$E35 -> 0 | AX35: =2*$E35 -> 0 | BD35: =2*$E35 -> 0 | BF35: =2*$E35 -> 0 | BL35: =2*$E35 -> 0 | BO35: =2*$E35 -> 0
A36: Marcus Rashford - Man United | D36: =COUNT(H36:DV36) -> 2 | E36: =0 -> 0 | I36: =2*$E36 -> 0 | AA36: =2*$E36 -> 0
A37: Mohamed Salah - Liverpool | D37: 22 | E37: =0 -> 0 | L37: =2*$E37 -> 0 | M37: =2*$E37 -> 0 | N37: =2*$E37 -> 0 | O37: =2*$E37 -> 0 | P37: =2*$E37 -> 0 | R37: =2*$E37 -> 0 | U37: =2*$E37 -> 0 | V37: =2*$E37 -> 0 | W37: =2*$E37 -> 0 | Z37: =2*$E37 -> 0 | AC37: =2*$E37 -> 0 | AH37: =2*$E37 -> 0 | AL37: =2*$E37 -> 0 | AN37: =2*$E37 -> 0 | AQ37: =2*$E37 -> 0 | AR37: =2*$E37 -> 0 | AS37: =2*$E37 -> 0 | AU37: =2*$E37 -> 0 | AY37: =2*$E37 -> 0 | BA37: =2*$E37 -> 0 | BE37: =2*$E37 -> 0 | BG37: =2*$E37 -> 0
A38: Pierre Emerick Aubameyang - Arsenal | D38: 8 | E38: =0 -> 0 | Q38: =2*$E38 -> 0 | S38: =2*$E38 -> 0 | Y38: =2*$E38 -> 0 | AF38: =2*$E38 -> 0 | AK38: =2*$E38 -> 0 | AZ38: =2*$E38 -> 0 | BB38: =2*$E38 -> 0 | BM38: =2*$E38 -> 0
A39: Sadio Mane - Liverpool | D39: 3 | E39: =1 -> 1 | BJ39: =2*$E39 -> 2 | BK39: =2*$E39 -> 2 | BN39: =2*$E39 -> 2
A40: Sergio Aguero - Man City | D40: 10 | E40: =0 -> 0 | J40: =2*$E40 -> 0 | X40: =2*$E40 -> 0 | AG40: =2*$E40 -> 0 | AO40: =2*$E40 -> 0 | AT40: =2*$E40 -> 0 | AV40: =2*$E40 -> 0 | BC40: =2*$E40 -> 0 | BH40: =2*$E40 -> 0 | BI40: =2*$E40 -> 0 | BP40: =2*$E40 -> 0
A42: Goalscorer #2
A43: Alexandre Lacazette - Arsenal | D43: =COUNT(H43:DV43) -> 9 | E43: =0 -> 0 | M43: =2*$E43 -> 0 | P43: =2*$E43 -> 0 | T43: =2*$E43 -> 0 | AD43: =2*$E43 -> 0 | AO43: =2*$E43 -> 0 | AP43: =2*$E43 -> 0 | AQ43: =2*$E43 -> 0 | BH43: =2*$E43 -> 0 | BN43: =2*$E43 -> 0
A44: Ayoze Perez - Leicester City | D44: 1 | E44: =0 -> 0 | AM44: =2*$E44 -> 0
A45: Callum Wilson - Bournemouth | D45: 1 | E45: =0 -> 0 | I45: =2*$E45 -> 0
A46: Jamie Vardy - Leicester City | D46: 4 | E46: =0 -> 0 | AF46: =2*$E46 -> 0 | AG46: =2*$E46 -> 0 | AR46: =2*$E46 -> 0 | BE46: =2*$E46 -> 0
A47: Raheem Sterling - Man City | D47: 43 | E47: =0 -> 0 | J47: =2*$E47 -> 0 | K47: =2*$E47 -> 0 | L47: =2*$E47 -> 0 | N47: =2*$E47 -> 0 | O47: =2*$E47 -> 0 | Q47: =2*$E47 -> 0 | R47: =2*$E47 -> 0 | S47: 0 | U47: 0 | V47: 0 | W47: 0 | X47: 0 | Y47: =2*$E47 -> 0 | AA47: =2*$E47 -> 0 | AB47: =2*$E47 -> 0 | AC47: =2*$E47 -> 0 | AE47: =2*$E47 -> 0 | AH47: =2*$E47 -> 0 | AI47: =2*$E47 -> 0 | AJ47: =2*$E47 -> 0 | AK47: =2*$E47 -> 0 | AL47: =2*$E47 -> 0 | AN47: =2*$E47 -> 0 | AS47: =2*$E47 -> 0 | AT47: 0 | AU47: 0 | AV47: 0 | AW47: 0 | AX47: 0 | AY47: 0 | BA47: =2*$E47 -> 0 | BB47: =2*$E47 -> 0 | BC47: =2*$E47 -> 0 | BD47: =2*$E47 -> 0 | BF47: =2*$E47 -> 0 | BG47: =2*$E47 -> 0 | BI47: =2*$E47 -> 0 | BJ47: =2*$E47 -> 0 | BK47: =2*$E47 -> 0 | BL47: =2*$E47 -> 0 | BM47: =2*$E47 -> 0 | BO47: =2*$E47 -> 0 | BP47: =2*$E47 -> 0
A48: Raul Jiminez - Wolves | D48: 2 | E48: =0 -> 0 | Z48: =2*$E48 -> 0 | AZ48: =2*$E48 -> 0
A50: Golden Gloves
A51: Alisson Becker - Liverpool | D51: =COUNT(H51:DV51) -> 37 | E51: =0 -> 0 | J51: =2*$E51 -> 0 | L51: =2*$E51 -> 0 | M51: =2*$E51 -> 0 | N51: =2*$E51 -> 0 | O51: =2*$E51 -> 0 | P51: =2*$E51 -> 0 | R51: =2*$E51 -> 0 | U51: =2*$E51 -> 0 | V51: =2*$E51 -> 0 | W51: =2*$E51 -> 0 | X51: =2*$E51 -> 0 | Z51: =2*$E51 -> 0 | AF51: =2*$E51 -> 0 | AH51: =2*$E51 -> 0 | AI51: =2*$E51 -> 0 | AK51: =2*$E51 -> 0 | AL51: =2*$E51 -> 0 | AN51: =2*$E51 -> 0 | AO51: =2*$E51 -> 0 | AP51: =2*$E51 -> 0 | AQ51: =2*$E51 -> 0 | AS51: =2*$E51 -> 0 | AU51: =2*$E51 -> 0 | AW51: =2*$E51 -> 0 | AY51: =2*$E51 -> 0 | BA51: =2*$E51 -> 0 | BB51: =2*$E51 -> 0 | BD51: =2*$E51 -> 0 | BE51: =2*$E51 -> 0 | BF51: =2*$E51 -> 0 | BI51: =2*$E51 -> 0 | BJ51: 0 | BK51: 0 | BL51: 0 | BM51: 0 | BN51: 0 | BP51: =2*$E51 -> 0
A52: Ederson - Man City | D52: 15 | E52: =0 -> 0 | I52: =2*$E52 -> 0 | S52: =2*$E52 -> 0 | T52: =2*$E52 -> 0 | Y52: =2*$E52 -> 0 | AB52: =2*$E52 -> 0 | AC52: =2*$E52 -> 0 | AE52: =2*$E52 -> 0 | AG52: =2*$E52 -> 0 | AJ52: =2*$E52 -> 0 | AM52: =2*$E52 -> 0 | AT52: =2*$E52 -> 0 | AV52: =2*$E52 -> 0 | AZ52: =2*$E52 -> 0 | BC52: =2*$E52 -> 0 | BG52: =2*$E52 -> 0
A53: David de Gea - Man United | D53: 5 | E53: =0 -> 0 | Q53: =2*$E53 -> 0 | AA53: =2*$E53 -> 0 | AR53: =2*$E53 -> 0 | AX53: =2*$E53 -> 0 | BH53: =2*$E53 -> 0
A54: Hugo Lloris - Tottenham Hotspur | D54: 2 | E54: =0 -> 0 | K54: =2*$E54 -> 0 | BO54: =2*$E54 -> 0
A55: Kepa Arrizabalaga - Chelsea | D55: 1 | E55: =0 -> 0 | AD55: =2*$E55 -> 0
A57: Grand Total - October | I57: =SUM(I$3:I56) -> 15 | J57: =SUM(J$3:J56) -> 25 | K57: =SUM(K$3:K56) -> 25 | L57: =SUM(L$3:L56) -> 25 | M57: =SUM(M$3:M56) -> 30 | N57: =SUM(N$3:N56) -> 40 | O57: =SUM(O$3:O56) -> 25 | P57: =SUM(P$3:P56) -> 25 | Q57: =SUM(Q$3:Q56) -> 15 | R57: =SUM(R$3:R56) -> 25 | S57: =SUM(S$3:S56) -> 10 | T57: =SUM(T$3:T56) -> 20 | U57: =SUM(U$3:U56) -> 30 | V57: =SUM(V$3:V56) -> 20 | W57: =SUM(W$3:W56) -> 20 | X57: =SUM(X$3:X56) -> 15 | Y57: =SUM(Y$3:Y56) -> 20 | Z57: =SUM(Z$3:Z56) -> 20 | AA57: =SUM(AA$3:AA56) -> 25 | AB57: =SUM(AB$3:AB56) -> 15 | AC57: =SUM(AC$3:AC56) -> 20 | AD57: =SUM(AD$3:AD56) -> 20 | AE57: =SUM(AE$3:AE56) -> 10 | AF57: =SUM(AF$3:AF56) -> 25 | AG57: =SUM(AG$3:AG56) -> 25 | AH57: =SUM(AH$3:AH56) -> 15 | AI57: =SUM(AI$3:AI56) -> 20 | AJ57: =SUM(AJ$3:AJ56) -> 20 | AK57: =SUM(AK$3:AK56) -> 15 | AL57: =SUM(AL$3:AL56) -> 25 | AM57: =SUM(AM$3:AM56) -> 40 | AN57: =SUM(AN$3:AN56) -> 30 | AO57: =SUM(AO$3:AO56) -> 15 | AP57: =SUM(AP$3:AP56) -> 25 | AQ57: =SUM(AQ$3:AQ56) -> 45 | AR57: =SUM(AR$3:AR56) -> 15 | AS57: =SUM(AS$3:AS56) -> 25 | AT57: =SUM(AT$3:AT56) -> 40 | AU57: =SUM(AU$3:AU56) -> 30 | AV57: =SUM(AV$3:AV56) -> 15 | AW57: =SUM(AW$3:AW56) -> 20 | AX57: =SUM(AX$3:AX56) -> 10 | AY57: =SUM(AY$3:AY56) -> 20 | AZ57: =SUM(AZ$3:AZ56) -> 15 | BA57: =SUM(BA$3:BA56) -> 20 | BB57: =SUM(BB$3:BB56) -> 20 | BC57: =SUM(BC$3:BC56) -> 15 | BD57: =SUM(BD$3:BD56) -> 15 | BE57: =SUM(BE$3:BE56) -> 25 | BF57: =SUM(BF$3:BF56) -> 25 | BG57: =SUM(BG$3:BG56) -> 15 | BH57: =SUM(BH$3:BH56) -> 40 | BI57: =SUM(BI$3:BI56) -> 30 | BJ57: =SUM(BJ$3:BJ56) -> 32 | BK57: =SUM(BK$3:BK56) -> 22 | BL57: =SUM(BL$3:BL56) -> 20 | BM57: =SUM(BM$3:BM56) -> 10 | BN57: =SUM(BN$3:BN56) -> 22 | BO57: =SUM(BO$3:BO56) -> 15 | BP57: =SUM(BP$3:BP56) -> 35
A59: Ten Pointers | I59: =COUNTIF(I1:I32,"10") -> 0 | J59: 1 | K59: 1 | L59: 1 | M59: 1 | N59: 1 | O59: 0 | P59: 1 | Q59: 0 | R59: 0 | S59: 0 | T59: 1 | U59: 1 | V59: 0 | W59: 0 | X59: 1 | Y59: 0 | Z59: 0 | AA59: 0 | AB59: 0 | AC59: 0 | AD59: 0 | AE59: 0 | AF59: 1 | AG59: 0 | AH59: 0 | AI59: 0 | AJ59: 1 | AK59: 0 | AL59: 1 | AM59: 3 | AN59: 2 | AO59: 0 | AP59: 1 | AQ59: 4 | AR59: 0 | AS59: 1 | AT59: 3 | AU59: 2 | AV59: 0 | AW59: 1 | AX59: 0 | AY59: 0 | AZ59: 0 | BA59: 0 | BB59: 0 | BC59: 0 | BD59: 0 | BE59: 0 | BF59: 0 | BG59: 0 | BH59: 2 | BI59: 2 | BJ59: 1 | BK59: 0 | BL59: 0 | BM59: 0 | BN59: 0 | BO59: 0 | BP59: 2

Sheet Ten Point Table
A5: No. | B5: Name | C5: Team Name | D5: 2019-08-01 | E5: 2019-09-01 | F5: 2019-10-01 | G5: 2019-11-01 | H5: 2019-12-01 | I5: 2020-01-01 | J5: 2020-02-01 | K5: 2020-03-01 | L5: 2020-04-01 | M5: 2020-05-01 | N5: Total
A6: 1 | B6: Eamon Fox | C6: It's Never Over, Never Really Over | D6: =HLOOKUP(B6,August!$I$1:$BP$89,89,FALSE) -> 9 | E6: =HLOOKUP(B6,September!$I$1:$BP$83,83,FALSE) -> 5 | N6: =SUM(D6:M6) -> 14
A7: 2 | B7: Sean O'Mairtin | C7: Creweless | D7: =HLOOKUP(B7,August!$I$1:$BP$89,89,FALSE) -> 7 | E7: =HLOOKUP(B7,September!$I$1:$BP$83,83,FALSE) -> 5 | N7: =SUM(D7:M7) -> 12
A8: 3 | B8: Brendan Maguire | C8: Cantthinkofone | D8: =HLOOKUP(B8,August!$I$1:$BP$89,89,FALSE) -> 5 | E8: =HLOOKUP(B8,September!$I$1:$BP$83,83,FALSE) -> 6 | N8: =SUM(D8:M8) -> 11
A9: 4 | B9: Callum Dunne | C9: Seattle Sound Lads | D9: =HLOOKUP(B9,August!$I$1:$BP$89,89,FALSE) -> 6 | E9: =HLOOKUP(B9,September!$I$1:$BP$83,83,FALSE) -> 5 | N9: =SUM(D9:M9) -> 11
A10: 5 | B10: Ciaran O'Hart | C10: Riverchapel Plate | D10: =HLOOKUP(B10,August!$I$1:$BP$89,89,FALSE) -> 5 | E10: =HLOOKUP(B10,September!$I$1:$BP$83,83,FALSE) -> 6 | N10: =SUM(D10:M10) -> 11
A11: 6 | B11: Gerard McCluskey | C11: Breffni Blues 2019 | D11: =HLOOKUP(B11,August!$I$1:$BP$89,89,FALSE) -> 4 | E11: =HLOOKUP(B11,September!$I$1:$BP$83,83,FALSE) -> 7 | N11: =SUM(D11:M11) -> 11
A12: 7 | B12: Anastas Popov | C12: Super Saints | D12: =HLOOKUP(B12,August!$I$1:$BP$89,89,FALSE) -> 6 | E12: =HLOOKUP(B12,September!$I$1:$BP$83,83,FALSE) -> 4 | N12: =SUM(D12:M12) -> 10
A13: 8 | B13: Chris Keohan | C13: Moves Like Agger | D13: =HLOOKUP(B13,August!$I$1:$BP$89,89,FALSE) -> 8 | E13: =HLOOKUP(B13,September!$I$1:$BP$83,83,FALSE) -> 2 | N13: =SUM(D13:M13) -> 10
A14: 9 | B14: Craig Calvert | C14: United Manchester FC | D14: =HLOOKUP(B14,August!$I$1:$BP$89,89,FALSE) -> 6 | E14: =HLOOKUP(B14,September!$I$1:$BP$83,83,FALSE) -> 4 | N14: =SUM(D14:M14) -> 10
A15: 10 | B15: David Cooney | C15: Lifeafterhazard | D15: =HLOOKUP(B15,August!$I$1:$BP$89,89,FALSE) -> 6 | E15: =HLOOKUP(B15,September!$I$1:$BP$83,83,FALSE) -> 4 | N15: =SUM(D15:M15) -> 10
A16: 11 | B16: Gary Fitzpatrick | C16: Sun's Out Gunn's Out | D16: =HLOOKUP(B16,August!$I$1:$BP$89,89,FALSE) -> 1 | E16: =HLOOKUP(B16,September!$I$1:$BP$83,83,FALSE) -> 9 | N16: =SUM(D16:M16) -> 10
A17: 12 | B17: Joe Turner | C17: The Joy of Six | D17: =HLOOKUP(B17,August!$I$1:$BP$89,89,FALSE) -> 5 | E17: =HLOOKUP(B17,September!$I$1:$BP$83,83,FALSE) -> 5 | N17: =SUM(D17:M17) -> 10
A18: 13 | B18: Roisin Joyce | C18: LCR FC | D18: =HLOOKUP(B18,August!$I$1:$BP$89,89,FALSE) -> 4 | E18: =HLOOKUP(B18,September!$I$1:$BP$83,83,FALSE) -> 6 | N18: =SUM(D18:M18) -> 10
A19: 14 | B19: Gerry Moore | C19: Unai Has The Pepe In His Step | D19: =HLOOKUP(B19,August!$I$1:$BP$89,89,FALSE) -> 5 | E19: =HLOOKUP(B19,September!$I$1:$BP$83,83,FALSE) -> 4 | N19: =SUM(D19:M19) -> 9
A20: 15 | B20: Matthew Lynch | C20: The Village Idiots | D20: =HLOOKUP(B20,August!$I$1:$BP$89,89,FALSE) -> 4 | E20: =HLOOKUP(B20,September!$I$1:$BP$83,83,FALSE) -> 5 | N20: =SUM(D20:M20) -> 9
A21: 16 | B21: Aidan Scanlon | C21: Kilflynn Santos | D21: =HLOOKUP(B21,August!$I$1:$BP$89,89,FALSE) -> 3 | E21: =HLOOKUP(B21,September!$I$1:$BP$83,83,FALSE) -> 5 | N21: =SUM(D21:M21) -> 8
A22: 17 | B22: Declan O'Neill | C22: Athletico Spurs | D22: =HLOOKUP(B22,August!$I$1:$BP$89,89,FALSE) -> 5 | E22: =HLOOKUP(B22,September!$I$1:$BP$83,83,FALSE) -> 3 | N22: =SUM(D22:M22) -> 8
A23: 18 | B23: Frank McSweeney | C23: Poolabu | D23: =HLOOKUP(B23,August!$I$1:$BP$89,89,FALSE) -> 6 | E23: =HLOOKUP(B23,September!$I$1:$BP$83,83,FALSE) -> 2 | N23: =SUM(D23:M23) -> 8
A24: 19 | B24: Jonathan Fox | C24: Klopp Of The League | D24: =HLOOKUP(B24,August!$I$1:$BP$89,89,FALSE) -> 5 | E24: =HLOOKUP(B24,September!$I$1:$BP$83,83,FALSE) -> 3 | N24: =SUM(D24:M24) -> 8
A25: 20 | B25: Kris Stainton | C25: Ole's Revolutionaries | D25: =HLOOKUP(B25,August!$I$1:$BP$89,89,FALSE) -> 3 | E25: =HLOOKUP(B25,September!$I$1:$BP$83,83,FALSE) -> 5 | N25: =SUM(D25:M25) -> 8
A26: 21 | B26: Micheal Joyce | C26: At Last 2019 | D26: =HLOOKUP(B26,August!$I$1:$BP$89,89,FALSE) -> 5 | E26: =HLOOKUP(B26,September!$I$1:$BP$83,83,FALSE) -> 3 | N26: =SUM(D26:M26) -> 8
A27: 22 | B27: Paul Moore | C27: TAA LAA | D27: =HLOOKUP(B27,August!$I$1:$BP$89,89,FALSE) -> 6 | E27: =HLOOKUP(B27,September!$I$1:$BP$83,83,FALSE) -> 2 | N27: =SUM(D27:M27) -> 8
A28: 23 | B28: Phil Doyle | C28: FC Muertos Errantes | D28: =HLOOKUP(B28,August!$I$1:$BP$89,89,FALSE) -> 6 | E28: =HLOOKUP(B28,September!$I$1:$BP$83,83,FALSE) -> 2 | N28: =SUM(D28:M28) -> 8
A29: 24 | B29: Wayne Donovan | C29: Deprive The Five | D29: =HLOOKUP(B29,August!$I$1:$BP$89,89,FALSE) -> 7 | E29: =HLOOKUP(B29,September!$I$1:$BP$83,83,FALSE) -> 1 | N29: =SUM(D29:M29) -> 8
A30: 25 | B30: Anthony Michaels | C30: Offside Ref | D30: =HLOOKUP(B30,August!$I$1:$BP$89,89,FALSE) -> 5 | E30: =HLOOKUP(B30,September!$I$1:$BP$83,83,FALSE) -> 2 | N30: =SUM(D30:M30) -> 7
A31: 26 | B31: Bobby Hynes | C31: Born To Run | D31: =HLOOKUP(B31,August!$I$1:$BP$89,89,FALSE) -> 4 | E31: =HLOOKUP(B31,September!$I$1:$BP$83,83,FALSE) -> 3 | N31: =SUM(D31:M31) -> 7
A32: 27 | B32: Brian Haughton | C32: The Wexicans | D32: =HLOOKUP(B32,August!$I$1:$BP$89,89,FALSE) -> 3 | E32: =HLOOKUP(B32,September!$I$1:$BP$83,83,FALSE) -> 4 | N32: =SUM(D32:M32) -> 7
A33: 28 | B33: Brian Prendergast | C33: Magical Mustafi | D33: =HLOOKUP(B33,August!$I$1:$BP$89,89,FALSE) -> 3 | E33: =HLOOKUP(B33,September!$I$1:$BP$83,83,FALSE) -> 4 | N33: =SUM(D33:M33) -> 7
A34: 29 | B34: Con McSweeney | C34: Dowtcha Boys | D34: =HLOOKUP(B34,August!$I$1:$BP$89,89,FALSE) -> 3 | E34: =HLOOKUP(B34,September!$I$1:$BP$83,83,FALSE) -> 4 | N34: =SUM(D34:M34) -> 7
A35: 30 | B35: Damien Martin | C35: Rath Rovers | D35: =HLOOKUP(B35,August!$I$1:$BP$89,89,FALSE) -> 4 | E35: =HLOOKUP(B35,September!$I$1:$BP$83,83,FALSE) -> 3 | N35: =SUM(D35:M35) -> 7
A36: 31 | B36: Dave McGinley | C36: Reservoir Dubs | D36: =HLOOKUP(B36,August!$I$1:$BP$89,89,FALSE) -> 2 | E36: =HLOOKUP(B36,September!$I$1:$BP$83,83,FALSE) -> 5 | N36: =SUM(D36:M36) -> 7
A37: 32 | B37: Gary McGurk | C37: Origi In Madrid | D37: =HLOOKUP(B37,August!$I$1:$BP$89,89,FALSE) -> 5 | E37: =HLOOKUP(B37,September!$I$1:$BP$83,83,FALSE) -> 2 | N37: =SUM(D37:M37) -> 7
A38: 33 | B38: Karl Boland | C38: Boaty McBoatface FC | D38: =HLOOKUP(B38,August!$I$1:$BP$89,89,FALSE) -> 2 | E38: =HLOOKUP(B38,September!$I$1:$BP$83,83,FALSE) -> 5 | N38: =SUM(D38:M38) -> 7
A39: 34 | B39: Liam Geraghty | C39: What Shade of Blue? | D39: =HLOOKUP(B39,August!$I$1:$BP$89,89,FALSE) -> 3 | E39: =HLOOKUP(B39,September!$I$1:$BP$83,83,FALSE) -> 4 | N39: =SUM(D39:M39) -> 7
A40: 35 | B40: Niall Carroll | C40: Dejan 6 | D40: =HLOOKUP(B40,August!$I$1:$BP$89,89,FALSE) -> 2 | E40: =HLOOKUP(B40,September!$I$1:$BP$83,83,FALSE) -> 5 | N40: =SUM(D40:M40) -> 7
A41: 36 | B41: Philip Jordan | C41: Frankie's Army | D41: =HLOOKUP(B41,August!$I$1:$BP$89,89,FALSE) -> 5 | E41: =HLOOKUP(B41,September!$I$1:$BP$83,83,FALSE) -> 2 | N41: =SUM(D41:M41) -> 7
A42: 37 | B42: Ralph Goodwin | C42: Gorey Celtic Stars | D42: =HLOOKUP(B42,August!$I$1:$BP$89,89,FALSE) -> 5 | E42: =HLOOKUP(B42,September!$I$1:$BP$83,83,FALSE) -> 2 | N42: =SUM(D42:M42) -> 7
A43: 38 | B43: Aidan White | C43: Return of the Villans | D43: =HLOOKUP(B43,August!$I$1:$BP$89,89,FALSE) -> 2 | E43: =HLOOKUP(B43,September!$I$1:$BP$83,83,FALSE) -> 4 | N43: =SUM(D43:M43) -> 6
A44: 39 | B44: Brian Mullen | C44: Where's Tony Galvin Now? | D44: =HLOOKUP(B44,August!$I$1:$BP$89,89,FALSE) -> 4 | E44: =HLOOKUP(B44,September!$I$1:$BP$83,83,FALSE) -> 2 | N44: =SUM(D44:M44) -> 6
A45: 40 | B45: Gavin Morgan | C45: Aimless Wanderers | D45: =HLOOKUP(B45,August!$I$1:$BP$89,89,FALSE) -> 3 | E45: =HLOOKUP(B45,September!$I$1:$BP$83,83,FALSE) -> 3 | N45: =SUM(D45:M45) -> 6
A46: 41 | B46: Gerry Draper | C46: Everton10 | D46: =HLOOKUP(B46,August!$I$1:$BP$89,89,FALSE) -> 2 | E46: =HLOOKUP(B46,September!$I$1:$BP$83,83,FALSE) -> 4 | N46: =SUM(D46:M46) -> 6
A47: 42 | B47: Graham Goodwin | C47: Pochettino's Parrot | D47: =HLOOKUP(B47,August!$I$1:$BP$89,89,FALSE) -> 2 | E47: =HLOOKUP(B47,September!$I$1:$BP$83,83,FALSE) -> 4 | N47: =SUM(D47:M47) -> 6
A48: 43 | B48: Javier Suarez | C48: Tika Taka | D48: =HLOOKUP(B48,August!$I$1:$BP$89,89,FALSE) -> 5 | E48: =HLOOKUP(B48,September!$I$1:$BP$83,83,FALSE) -> 1 | N48: =SUM(D48:M48) -> 6
A49: 44 | B49: Liam Keohan | C49: Irish Gunner | D49: =HLOOKUP(B49,August!$I$1:$BP$89,89,FALSE) -> 1 | E49: =HLOOKUP(B49,September!$I$1:$BP$83,83,FALSE) -> 5 | N49: =SUM(D49:M49) -> 6
A50: 45 | B50: Trevor Byrne | C50: Noddys 11 | D50: =HLOOKUP(B50,August!$I$1:$BP$89,89,FALSE) -> 3 | E50: =HLOOKUP(B50,September!$I$1:$BP$83,83,FALSE) -> 3 | N50: =SUM(D50:M50) -> 6
A51: 46 | B51: Caroline Carroll | C51: Mane 10 | D51: =HLOOKUP(B51,August!$I$1:$BP$89,89,FALSE) -> 3 | E51: =HLOOKUP(B51,September!$I$1:$BP$83,83,FALSE) -> 2 | N51: =SUM(D51:M51) -> 5
A52: 47 | B52: Gary Donnelly | C52: Storm A Brewstering…. | D52: =HLOOKUP(B52,August!$I$1:$BP$89,89,FALSE) -> 3 | E52: =HLOOKUP(B52,September!$I$1:$BP$83,83,FALSE) -> 2 | N52: =SUM(D52:M52) -> 5
A53: 48 | B53: Joe Behan | C53: Melchester Rovers | D53: =HLOOKUP(B53,August!$I$1:$BP$89,89,FALSE) -> 3 | E53: =HLOOKUP(B53,September!$I$1:$BP$83,83,FALSE) -> 2 | N53: =SUM(D53:M53) -> 5
A54: 49 | B54: Simon Scanlon | C54: Taking It Serious This Year | D54: =HLOOKUP(B54,August!$I$1:$BP$89,89,FALSE) -> 4 | E54: =HLOOKUP(B54,September!$I$1:$BP$83,83,FALSE) -> 1 | N54: =SUM(D54:M54) -> 5
A55: 50 | B55: Aiden Desch | C55: NumNuts | D55: =HLOOKUP(B55,August!$I$1:$BP$89,89,FALSE) -> 2 | E55: =HLOOKUP(B55,September!$I$1:$BP$83,83,FALSE) -> 2 | N55: =SUM(D55:M55) -> 4
A56: 51 | B56: Barry McGoldrick | C56: The Blarney Pilgrims | D56: =HLOOKUP(B56,August!$I$1:$BP$89,89,FALSE) -> 1 | E56: =HLOOKUP(B56,September!$I$1:$BP$83,83,FALSE) -> 3 | N56: =SUM(D56:M56) -> 4
A57: 52 | B57: Darragh Kenny | C57: Luca Connell CSC | D57: =HLOOKUP(B57,August!$I$1:$BP$89,89,FALSE) -> 3 | E57: =HLOOKUP(B57,September!$I$1:$BP$83,83,FALSE) -> 1 | N57: =SUM(D57:M57) -> 4
A58: 53 | B58: John Brophy | C58: Carrig Combo | D58: =HLOOKUP(B58,August!$I$1:$BP$89,89,FALSE) -> 2 | E58: =HLOOKUP(B58,September!$I$1:$BP$83,83,FALSE) -> 2 | N58: =SUM(D58:M58) -> 4
A59: 54 | B59: Mai-Ly Turner | C59: Mo The Magnificent | D59: =HLOOKUP(B59,August!$I$1:$BP$89,89,FALSE) -> 3 | E59: =HLOOKUP(B59,September!$I$1:$BP$83,83,FALSE) -> 1 | N59: =SUM(D59:M59) -> 4
A60: 55 | B60: Paul Prendergast | C60: The Untouchables | D60: =HLOOKUP(B60,August!$I$1:$BP$89,89,FALSE) -> 3 | E60: =HLOOKUP(B60,September!$I$1:$BP$83,83,FALSE) -> 1 | N60: =SUM(D60:M60) -> 4
A61: 56 | B61: Victoria Reid | C61: Tristan's Titans | D61: =HLOOKUP(B61,August!$I$1:$BP$89,89,FALSE) -> 2 | E61: =HLOOKUP(B61,September!$I$1:$BP$83,83,FALSE) -> 2 | N61: =SUM(D61:M61) -> 4
A62: 57 | B62: Eoghan Farrelly | C62: Last Chance Saloon | D62: =HLOOKUP(B62,August!$I$1:$BP$89,89,FALSE) -> 2 | E62: =HLOOKUP(B62,September!$I$1:$BP$83,83,FALSE) -> 1 | N62: =SUM(D62:M62) -> 3
A63: 58 | B63: Kevin Philpott | C63: Kevlaar | D63: =HLOOKUP(B63,August!$I$1:$BP$89,89,FALSE) -> 1 | E63: =HLOOKUP(B63,September!$I$1:$BP$83,83,FALSE) -> 2 | N63: =SUM(D63:M63) -> 3
A64: 59 | B64: Richard Johnston | C64: Ba Mhaith Liom Cupan Tae | D64: =HLOOKUP(B64,August!$I$1:$BP$89,89,FALSE) -> 3 | E64: =HLOOKUP(B64,September!$I$1:$BP$83,83,FALSE) -> 0 | N64: =SUM(D64:M64) -> 3
A65: 60 | B65: Andy Dunne | C65: Matipswich Town | D65: =HLOOKUP(B65,August!$I$1:$BP$89,89,FALSE) -> 0 | E65: =HLOOKUP(B65,September!$I$1:$BP$83,83,FALSE) -> 1 | N65: =SUM(D65:M65) -> 1

Sheet Mini Leagues
A5: The Behan Counters
A6: Pos. | B6: Name | C6: Team Name | D6: Points
A7: 1 | B7: Roisin Joyce | C7: LCR FC | D7: =VLOOKUP(B7,Leaderboard!$B$6:$N$66,13,FALSE) -> 279
A8: 2 | B8: Declan O'Neill | C8: Athletico Spurs | D8: =VLOOKUP(B8,Leaderboard!$B$6:$N$66,13,FALSE) -> 273
A9: 3 | B9: Dave McGinley | C9: Reservoir Dubs | D9: =VLOOKUP(B9,Leaderboard!$B$6:$N$66,13,FALSE) -> 256
A10: 4 | B10: Micheal Joyce | C10: At Last 2019 | D10: =VLOOKUP(B10,Leaderboard!$B$6:$N$66,13,FALSE) -> 254
A11: 5 | B11: Javier Suarez | C11: Tika Taka | D11: =VLOOKUP(B11,Leaderboard!$B$6:$N$66,13,FALSE) -> 249
A12: 6 | B12: Joe Behan | C12: Melchester Rovers | D12: =VLOOKUP(B12,Leaderboard!$B$6:$N$66,13,FALSE) -> 242
A14: CIT Old Boys Network
A15: Pos. | B15: Name | C15: Team Name | D15: Points
A16: 1 | B16: Anastas Popov | C16: Super Saints | D16: =VLOOKUP(B16,Leaderboard!$B$6:$N$66,13,FALSE) -> 332
A17: 2 | B17: Con McSweeney | C17: Dowtcha Boys | D17: =VLOOKUP(B17,Leaderboard!$B$6:$N$66,13,FALSE) -> 292
A18: 3 | B18: Brian Prendergast | C18: Magical Mustafi | D18: =VLOOKUP(B18,Leaderboard!$B$6:$N$66,13,FALSE) -> 270
A19: 4 | B19: Kevin Philpott | C19: Kevlaar | D19: =VLOOKUP(B19,Leaderboard!$B$6:$N$66,13,FALSE) -> 264
A20: 5 | B20: Joe Turner | C20: The Joy of Six | D20: =VLOOKUP(B20,Leaderboard!$B$6:$N$66,13,FALSE) -> 262
A21: 6 | B21: Gavin Morgan | C21: Aimless Wanderers | D21: =VLOOKUP(B21,Leaderboard!$B$6:$N$66,13,FALSE) -> 252
A22: 7 | B22: Gerry Draper | C22: Everton10 | D22: =VLOOKUP(B22,Leaderboard!$B$6:$N$66,13,FALSE) -> 247
A23: 8 | B23: Aidan White | C23: Return of the Villans | D23: =VLOOKUP(B23,Leaderboard!$B$6:$N$66,13,FALSE) -> 225
A25: Champions of Europe Members Club
A26: Pos. | B26: Name | C26: Team Name | D26: Points
A27: 1 | B27: Bobby Hynes | C27: Born To Run | D27: =VLOOKUP(B27,Leaderboard!$B$6:$N$66,13,FALSE) -> 274
A28: 2 | B28: Callum Dunne | C28: Seattle Sound Lads | D28: =VLOOKUP(B28,Leaderboard!$B$6:$N$66,13,FALSE) -> 272
A29: 3 | B29: Paul Moore | C29: TAA LAA | D29: =VLOOKUP(B29,Leaderboard!$B$6:$N$66,13,FALSE) -> 270
A30: 4 | B30: Gary McGurk | C30: Origi In Madrid | D30: =VLOOKUP(B30,Leaderboard!$B$6:$N$66,13,FALSE) -> 268
A31: 5 | B31: Joe Turner | C31: The Joy of Six | D31: =VLOOKUP(B31,Leaderboard!$B$6:$N$66,13,FALSE) -> 262
A32: 6 | B32: Jonathan Fox | C32: Klopp Of The League | D32: =VLOOKUP(B32,Leaderboard!$B$6:$N$66,13,FALSE) -> 262
A33: 7 | B33: Niall Carroll | C33: Dejan 6 | D33: =VLOOKUP(B33,Leaderboard!$B$6:$N$66,13,FALSE) -> 259
A34: 8 | B34: Caroline Carroll | C34: Mane 10 | D34: =VLOOKUP(B34,Leaderboard!$B$6:$N$66,13,FALSE) -> 257
A35: 9 | B35: Brian Haughton | C35: The Wexicans | D35: =VLOOKUP(B35,Leaderboard!$B$6:$N$66,13,FALSE) -> 252
A36: 10 | B36: Javier Suarez | C36: Tika Taka | D36: =VLOOKUP(B36,Leaderboard!$B$6:$N$66,13,FALSE) -> 249
A37: 11 | B37: Gary Donnelly | C37: Storm A Brewstering…. | D37: =VLOOKUP(B37,Leaderboard!$B$6:$N$66,13,FALSE) -> 244
A38: 12 | B38: Trevor Byrne | C38: Noddys 11 | D38: =VLOOKUP(B38,Leaderboard!$B$6:$N$66,13,FALSE) -> 241
A39: 13 | B39: Richard Johnston | C39: Ba Mhaith Liom Cupan Tae | D39: =VLOOKUP(B39,Leaderboard!$B$6:$N$66,13,FALSE) -> 234
A40: 14 | B40: Paul Prendergast | C40: The Untouchables | D40: =VLOOKUP(B40,Leaderboard!$B$6:$N$66,13,FALSE) -> 229
A41: 15 | B41: Andy Dunne | C41: Matipswich Town | D41: =VLOOKUP(B41,Leaderboard!$B$6:$N$66,13,FALSE) -> 224
A42: 16 | B42: Mai-Ly Turner | C42: Mo The Magnificent | D42: =VLOOKUP(B42,Leaderboard!$B$6:$N$66,13,FALSE) -> 217
A44: McSweeney's Mercenaries
A45: Pos. | B45: Name | C45: Team Name | D45: Points
A46: 1 | B46: Con McSweeney | C46: Dowtcha Boys | D46: =VLOOKUP(B46,Leaderboard!$B$6:$N$66,13,FALSE) -> 292
A47: 2 | B47: Gerard McCluskey | C47: Breffni Blues 2019 | D47: =VLOOKUP(B47,Leaderboard!$B$6:$N$66,13,FALSE) -> 286
A48: 3 | B48: Damien Martin | C48: Rath Rovers | D48: =VLOOKUP(B48,Leaderboard!$B$6:$N$66,13,FALSE) -> 277
A49: 4 | B49: Victoria Reid | C49: Tristan's Titans | D49: =VLOOKUP(B49,Leaderboard!$B$6:$N$66,13,FALSE) -> 219
A51: The Wicklow League
A52: Pos. | B52: Name | C52: Team Name | D52: Points
A53: 1 | B53: Ralph Goodwin | C53: Gorey Celtic Stars | D53: =VLOOKUP(B53,Leaderboard!$B$6:$N$66,13,FALSE) -> 290
A54: 2 | B54: John Brophy | C54: Carrig Combo | D54: =VLOOKUP(B54,Leaderboard!$B$6:$N$66,13,FALSE) -> 284
A55: 3 | B55: Brendan Maguire | C55: Cantthinkofone | D55: =VLOOKUP(B55,Leaderboard!$B$6:$N$66,13,FALSE) -> 280
A56: 4 | B56: Bobby Hynes | C56: Born To Run | D56: =VLOOKUP(B56,Leaderboard!$B$6:$N$66,13,FALSE) -> 274
A57: 5 | B57: Joe Turner | C57: The Joy of Six | D57: =VLOOKUP(B57,Leaderboard!$B$6:$N$66,13,FALSE) -> 262
A58: 6 | B58: Trevor Byrne | C58: Noddys 11 | D58: =VLOOKUP(B58,Leaderboard!$B$6:$N$66,13,FALSE) -> 241
A59: 7 | B59: Simon Scanlon | C59: Taking It Serious This Year | D59: =VLOOKUP(B59,Leaderboard!$B$6:$N$66,13,FALSE) -> 238
A60: 8 | B60: Brian Mullen | C60: Where's Tony Galvin Now? | D60: =VLOOKUP(B60,Leaderboard!$B$6:$N$66,13,FALSE) -> 237
A61: 9 | B61: Liam Geraghty | C61: What Shade of Blue? | D61: =VLOOKUP(B61,Leaderboard!$B$6:$N$66,13,FALSE) -> 237
A62: 10 | B62: Richard Johnston | C62: Ba Mhaith Liom Cupan Tae | D62: =VLOOKUP(B62,Leaderboard!$B$6:$N$66,13,FALSE) -> 234
A63: 11 | B63: Graham Goodwin | C63: Pochettino's Parrot | D63: =VLOOKUP(B63,Leaderboard!$B$6:$N$66,13,FALSE) -> 231
A64: 12 | B64: Paul Prendergast | C64: The Untouchables | D64: =VLOOKUP(B64,Leaderboard!$B$6:$N$66,13,FALSE) -> 229
A65: 13 | B65: Aidan White | C65: Return of the Villans | D65: =VLOOKUP(B65,Leaderboard!$B$6:$N$66,13,FALSE) -> 225
A66: 14 | B66: Mai-Ly Turner | C66: Mo The Magnificent | D66: =VLOOKUP(B66,Leaderboard!$B$6:$N$66,13,FALSE) -> 217

Sheet Jokers
A1: No. | B1: Player | C1: Team Name | D1: Joker | E1: 1 | F1: 2 | G1: 3 | H1: 4 | I1: 5 | J1: 6 | K1: 7 | L1: 8 | M1: 9 | N1: 10 | O1: 11 | P1: 12 | Q1: 13 | R1: 14 | S1: 15 | T1: 16 | U1: 17 | V1: 18 | W1: 19 | X1: 20 | Y1: 21 | Z1: 22 | AA1: 23 | AB1: 24 | AC1: 25 | AD1: 26 | AE1: 27 | AF1: 28 | AG1: 29 | AH1: 30 | AI1: Total
A2: 1 | B2: Aidan Scanlon | C2: Kilflynn Santos | AI2: =COUNTIF(E2:AH2,"a") -> 0
A3: 2 | B3: Aidan White | C3: Return of the Villans | D3: 1-0 | E3: a | F3: a | G3: a | H3: a | I3: a | J3: a | K3: a | L3: a | M3: a | N3: a | O3: a | AI3: 11
A4: 3 | B4: Aiden Desch | C4: NumNuts | D4: 2-0 | E4: a | F4: a | G4: a | H4: a | I4: a | J4: a | K4: a | L4: a | M4: a | N4: a | O4: a | P4: a | Q4: a | R4: a | S4: a | T4: a | U4: a | V4: a | W4: a | X4: a | Y4: a | Z4: a | AA4: a | AB4: a | AC4: a | AD4: a | AE4: a | AF4: a | AG4: a | AH4: a | AI4: 30
A5: 4 | B5: Anastas Popov | C5: Super Saints | AI5: 0
A6: 5 | B6: Andy Dunne | C6: Matipswich Town | AI6: 0
A7: 6 | B7: Anthony Michaels | C7: Offside Ref | D7: 1-0 | E7: a | F7: a | G7: a | H7: a | I7: a | J7: a | K7: a | L7: a | M7: a | N7: a | O7: a | P7: a | Q7: a | R7: a | S7: a | T7: a | U7: a | V7: a | W7: a | X7: a | Y7: a | AI7: 21
A8: 7 | B8: Barry McGoldrick | C8: The Blarney Pilgrims | D8: 2-1 | E8: a | F8: a | G8: a | H8: a | I8: a | J8: a | K8: a | L8: a | M8: a | N8: a | AI8: 10
A9: 8 | B9: Bobby Hynes | C9: Born To Run | AI9: 0
A10: 9 | B10: Brendan Maguire | C10: Cantthinkofone | AI10: 0
A11: 10 | B11: Brian Haughton | C11: The Wexicans | AI11: 0
A12: 11 | B12: Brian Mullen | C12: Where's Tony Galvin Now? | AI12: 0
A13: 12 | B13: Brian Prendergast | C13: Magical Mustafi | D13: 2-1 | E13: a | AI13: 1
A14: 13 | B14: Callum Dunne | C14: Seattle Sound Lads | AI14: 0
A15: 14 | B15: Caroline Carroll | C15: Mane 10 | D15: 2-0 | E15: a | AI15: =COUNTIF(E15:AH15,"a") -> 1
A16: 15 | B16: Chris Keohan | C16: Moves Like Agger | D16: 2-0 | E16: a | AI16: =COUNTIF(E16:AH16,"a") -> 1
A17: 16 | B17: Ciaran O'Hart | C17: Riverchapel Plate | AI17: 0
A18: 17 | B18: Con McSweeney | C18: Dowtcha Boys | AI18: 0
A19: 18 | B19: Craig Calvert | C19: United Manchester FC | AI19: 0
A20: 19 | B20: Damien Martin | C20: Rath Rovers | D20: 1-0 | E20: a | F20: a | G20: a | AI20: 3
A21: 20 | B21: Darragh Kenny | C21: Luca Connell CSC | AI21: 0
A22: 21 | B22: Dave McGinley | C22: Reservoir Dubs | D22: 2-1 | E22: a | F22: a | AI22: 2
A23: 22 | B23: David Cooney | C23: Lifeafterhazard | AI23: 0
A24: 23 | B24: Declan O'Neill | C24: Athletico Spurs | AI24: 0
A25: 24 | B25: Eamon Fox | C25: It's Never Over, Never Really Over | AI25: 0
A26: 25 | B26: Eoghan Farrelly | C26: Last Chance Saloon | D26: 1-0 | E26: a | F26: a | AI26: 2
A27: 26 | B27: Frank McSweeney | C27: Poolabu | AI27: 0
A28: 27 | B28: Gary Donnelly | C28: Storm A Brewstering…. | AI28: 0
A29: 28 | B29: Gary Fitzpatrick | C29: Sun's Out Gunn's Out | AI29: 0
A30: 29 | B30: Gary McGurk | C30: Origi In Madrid | AI30: 0
A31: 30 | B31: Gavin Morgan | C31: Aimless Wanderers | D31: 2-1 | E31: a | AI31: 1
A32: 31 | B32: Gerard McCluskey | C32: Breffni Blues 2019 | D32: 1-0 | E32: a | F32: a | G32: a | H32: a | I32: a | J32: a | K32: a | L32: a | M32: a | N32: a | O32: a | P32: a | Q32: a | R32: a | S32: a | T32: a | U32: a | V32: a | W32: a | X32: a | AI32: 20
A33: 32 | B33: Gerry Draper | C33: Everton10 | AI33: 0
A34: 33 | B34: Gerry Moore | C34: Unai Has The Pepe In His Step | D34: 2-1 | E34: a | F34: a | G34: a | AI34: 3
A35: 34 | B35: Graham Goodwin | C35: Pochettino's Parrot | AI35: 0
A36: 35 | B36: Javier Suarez | C36: Tika Taka | D36: 2-1 | E36: a | F36: a | G36: a | H36: a | I36: a | J36: a | K36: a | L36: a | AI36: 8
A37: 36 | B37: Joe Behan | C37: Melchester Rovers | AI37: 0
A38: 37 | B38: Joe Turner | C38: The Joy of Six | AI38: 0
A39: 38 | B39: John Brophy | C39: Carrig Combo | D39: 2-0 | E39: a | F39: a | G39: a | H39: a | I39: a | J39: a | K39: a | L39: a | M39: a | N39: a | AI39: 10
A40: 39 | B40: Jonathan Fox | C40: Klopp Of The League | AI40: 0
A41: 40 | B41: Karl Boland | C41: Boaty McBoatface FC | D41: 2-0 | E41: a | F41: a | G41: a | H41: a | I41: a | J41: a | K41: a | L41: a | M41: a | N41: a | AI41: 10
A42: 41 | B42: Kevin Philpott | C42: Kevlaar | D42: 2-0 | E42: a | AI42: 1
A43: 42 | B43: Kris Stainton | C43: Ole's Revolutionaries | D43: 1-0 | E43: a | F43: a | AI43: 2
A44: 43 | B44: Liam Geraghty | C44: What Shade of Blue? | D44: 2-1 | E44: a | F44: a | G44: a | AI44: 3
A45: 44 | B45: Liam Keohan | C45: Irish Gunner | D45: 2-1 | E45: a | AI45: 1
A46: 45 | B46: Mai-Ly Turner | C46: Mo The Magnificent | AI46: 0
A47: 46 | B47: Matthew Lynch | C47: The Village Idiots | D47: 0-0 | E47: a | AI47: 1
A48: 47 | B48: Micheal Joyce | C48: At Last 2019 | AI48: 0
A49: 48 | B49: Niall Carroll | C49: Dejan 6 | D49: 2-0 | E49: a | AI49: 1
A50: 49 | B50: Paul Moore | C50: TAA LAA | AI50: 0
A51: 50 | B51: Paul Prendergast | C51: The Untouchables | AI51: 0
A52: 51 | B52: Phil Doyle | C52: FC Muertos Errantes | AI52: 0
A53: 52 | B53: Philip Jordan | C53: Frankie's Army | AI53: 0
A54: 53 | B54: Ralph Goodwin | C54: Gorey Celtic Stars | AI54: 0
A55: 54 | B55: Richard Johnston | C55: Ba Mhaith Liom Cupan Tae | D55: 2-1 | E55: a | F55: a | G55: a | AI55: 3
A56: 55 | B56: Roisin Joyce | C56: LCR FC | AI56: 0
A57: 56 | B57: Sean O'Mairtin | C57: Creweless | AI57: 0
A58: 57 | B58: Simon Scanlon | C58: Taking It Serious This Year | D58: 2-1 | E58: a | F58: a | G58: a | H58: a | I58: a | J58: a | K58: a | L58: a | M58: a | N58: a | O58: a | P58: a | Q58: a | R58: a | S58: a | T58: a | U58: a | V58: a | W58: a | X58: a | Y58: a | Z58: a | AA58: a | AB58: a | AC58: a | AD58: a | AE58: a | AF58: a | AG58: a | AI58: 29
A59: 58 | B59: Trevor Byrne | C59: Noddys 11 | AI59: 0
A60: 59 | B60: Victoria Reid | C60: Tristan's Titans | AI60: 0
A61: 60 | B61: Wayne Donovan | C61: Deprive The Five | D61: 2-1 | E61: a | AI61: 1
